﻿organisation_name,service_responsible,supplier_code,supplier_name,payment_date,transaction_ref,net_amount_by_line_item,irrecoverable_vat,purpose_of_spend,procurement_category_name,transaction_type,payment_type,card_transaction,invoice_date,financial_year,financial_period,supplier_invoice_reference,cost_centre_code,cost_centre_desc,account_code,account_desc,SeRCOP_subdivision_code,SeRCOP_Subdivision_description,SeRCOP_division_codee,SeRCOP_division_description,SeRCOP_service_code,SeRCOP_service_description,SeRCOP_major_service_code,SeRCOP_major_service_description
GUILDFORD BOROUGH COUNCIL,Acquisition of Land and Buildings,1000649,Brookworth Homes (Holdings) Limited,03/04/2023,30099271,28194.41,0,Miscellaneous Expenses,,Invoice,CHAPS,No,27/02/2023 00:00,2022,12,219008A,N10026,20 The Street,1444,Miscellaneous Expenses,XXX99,*** UNASSIGNED ***,WCC,CEC Recharges,WC,CEC Recharges,A,Central Services
GUILDFORD BOROUGH COUNCIL,Housing Services,957790,Anonymous,03/04/2023,30099195,1500,0,Partnerships,,Invoice,CHAPS,No,31/03/2023 00:00,2022,12,Rent in advance,C3311,Homelessness,D6013,Partnerships,KGU00,Supporting People - Strategy,KGU,Supporting People,KG,Housing General Fund,K,Housing Services
GUILDFORD BOROUGH COUNCIL,Legal & Democratic Services,748800,Shaw & Sons Limited,03/04/2023,30099234,766.6,0,Stationery & Paper,Printing Service Providers,Invoice,CHAPS,No,27/03/2023 00:00,2022,12,288970,F2151,Elections,D5007,Stationery & Paper,ACE10,Conducting Elections,ACE,Elections,AC,Central Services to the Public,A,Central Services
GUILDFORD BOROUGH COUNCIL,Finance,509000,Albury Parish Council,06/04/2023,30099650,932.5,0,Grants And Subscriptions,Local Government [Uk Only],Invoice,BACS,No,06/04/2023 00:00,2023,1,Parish Precepts April 2023,F1115,Parish Liaison,D9001,Grants And Subscriptions,AAD00,Democratic Representation & Management,AAD,Democratic Representation & Management,AA,Corporate & Democratic Core,A,Central Services
GUILDFORD BOROUGH COUNCIL,Revenue Balances,509000,Albury Parish Council,06/04/2023,30099650,21801,0,OOE - Parish Precepts Paid,Local Government [Uk Only],Invoice,BACS,No,06/04/2023 00:00,2023,1,Parish Precepts April 2023,V01005,Gf Net Revenue Account,2482,OOE - Parish Precepts Paid,XXX99,*** UNASSIGNED ***,WCC,CEC Recharges,WC,CEC Recharges,A,Central Services
GUILDFORD BOROUGH COUNCIL,Revenue Balances,637000,Artington Parish Council,06/04/2023,30099653,2457.5,0,OOE - Parish Precepts Paid,Local Government [Uk Only],Invoice,BACS,No,06/04/2023 00:00,2023,1,Parish Precepts April 2023,V01005,Gf Net Revenue Account,2482,OOE - Parish Precepts Paid,XXX99,*** UNASSIGNED ***,WCC,CEC Recharges,WC,CEC Recharges,A,Central Services
GUILDFORD BOROUGH COUNCIL,Finance,657000,Ash Parish Council (Precepts),06/04/2023,30099654,22493,0,Grants And Subscriptions,Local Government [Uk Only],Invoice,BACS,No,06/04/2023 00:00,2023,1,Parish Precepts April 2023,F1115,Parish Liaison,D9001,Grants And Subscriptions,AAD00,Democratic Representation & Management,AAD,Democratic Representation & Management,AA,Corporate & Democratic Core,A,Central Services
GUILDFORD BOROUGH COUNCIL,Revenue Balances,657000,Ash Parish Council (Precepts),06/04/2023,30099654,273793.5,0,OOE - Parish Precepts Paid,Local Government [Uk Only],Invoice,BACS,No,06/04/2023 00:00,2023,1,Parish Precepts April 2023,V01005,Gf Net Revenue Account,2482,OOE - Parish Precepts Paid,XXX99,*** UNASSIGNED ***,WCC,CEC Recharges,WC,CEC Recharges,A,Central Services
GUILDFORD BOROUGH COUNCIL,Finance,143300,Compton Parish Council,06/04/2023,30099645,920.5,0,Grants And Subscriptions,Local Government [Uk Only],Invoice,BACS,No,06/04/2023 00:00,2023,1,Parish Precepts April 2023,F1115,Parish Liaison,D9001,Grants And Subscriptions,AAD00,Democratic Representation & Management,AAD,Democratic Representation & Management,AA,Corporate & Democratic Core,A,Central Services
GUILDFORD BOROUGH COUNCIL,Revenue Balances,143300,Compton Parish Council,06/04/2023,30099645,13436.5,0,OOE - Parish Precepts Paid,Local Government [Uk Only],Invoice,BACS,No,06/04/2023 00:00,2023,1,Parish Precepts April 2023,V01005,Gf Net Revenue Account,2482,OOE - Parish Precepts Paid,XXX99,*** UNASSIGNED ***,WCC,CEC Recharges,WC,CEC Recharges,A,Central Services
GUILDFORD BOROUGH COUNCIL,Revenue Balances,181300,East Clandon Parish Council (Precepts),06/04/2023,30099646,4778,0,OOE - Parish Precepts Paid,Local Government [Uk Only],Invoice,BACS,No,06/04/2023 00:00,2023,1,Parish Precepts April 2023,V01005,Gf Net Revenue Account,2482,OOE - Parish Precepts Paid,XXX99,*** UNASSIGNED ***,WCC,CEC Recharges,WC,CEC Recharges,A,Central Services
GUILDFORD BOROUGH COUNCIL,Finance,181600,East Horsley Parish Council,06/04/2023,30099647,738,0,Grants And Subscriptions,Local Government [Uk Only],Invoice,BACS,No,06/04/2023 00:00,2023,1,Parish Precepts April 2023,F1115,Parish Liaison,D9001,Grants And Subscriptions,AAD00,Democratic Representation & Management,AAD,Democratic Representation & Management,AA,Corporate & Democratic Core,A,Central Services
GUILDFORD BOROUGH COUNCIL,Revenue Balances,181600,East Horsley Parish Council,06/04/2023,30099647,75671,0,OOE - Parish Precepts Paid,Local Government [Uk Only],Invoice,BACS,No,06/04/2023 00:00,2023,1,Parish Precepts April 2023,V01005,Gf Net Revenue Account,2482,OOE - Parish Precepts Paid,XXX99,*** UNASSIGNED ***,WCC,CEC Recharges,WC,CEC Recharges,A,Central Services
GUILDFORD BOROUGH COUNCIL,Finance,183900,Effingham Parish Council,06/04/2023,30099648,780.5,0,Grants And Subscriptions,Local Government [Uk Only],Invoice,BACS,No,06/04/2023 00:00,2023,1,Parish Precepts April 2023,F1115,Parish Liaison,D9001,Grants And Subscriptions,AAD00,Democratic Representation & Management,AAD,Democratic Representation & Management,AA,Corporate & Democratic Core,A,Central Services
GUILDFORD BOROUGH COUNCIL,Revenue Balances,183900,Effingham Parish Council,06/04/2023,30099648,64890.5,0,OOE - Parish Precepts Paid,Local Government [Uk Only],Invoice,BACS,No,06/04/2023 00:00,2023,1,Parish Precepts April 2023,V01005,Gf Net Revenue Account,2482,OOE - Parish Precepts Paid,XXX99,*** UNASSIGNED ***,WCC,CEC Recharges,WC,CEC Recharges,A,Central Services
GUILDFORD BOROUGH COUNCIL,Housing Services,951870,Martin & Co Lettings,06/04/2023,30099583,801.42,0,Partnerships,,Invoice,CHAPS,No,05/04/2023 00:00,2022,12,Rent in advance,C3311,Homelessness,D6013,Partnerships,KGU00,Supporting People - Strategy,KGU,Supporting People,KG,Housing General Fund,K,Housing Services
GUILDFORD BOROUGH COUNCIL,Finance,622700,Normandy Parish Council,06/04/2023,30099651,3617.5,0,Grants And Subscriptions,Local Government [Uk Only],Invoice,BACS,No,06/04/2023 00:00,2023,1,Parish Precepts April 2023,F1115,Parish Liaison,D9001,Grants And Subscriptions,AAD00,Democratic Representation & Management,AAD,Democratic Representation & Management,AA,Corporate & Democratic Core,A,Central Services
GUILDFORD BOROUGH COUNCIL,Revenue Balances,622700,Normandy Parish Council,06/04/2023,30099651,77240.5,0,OOE - Parish Precepts Paid,Local Government [Uk Only],Invoice,BACS,No,06/04/2023 00:00,2023,1,Parish Precepts April 2023,V01005,Gf Net Revenue Account,2482,OOE - Parish Precepts Paid,XXX99,*** UNASSIGNED ***,WCC,CEC Recharges,WC,CEC Recharges,A,Central Services
GUILDFORD BOROUGH COUNCIL,Revenue Balances,626500,Ockham Parish Council,06/04/2023,30099652,7967.5,0,OOE - Parish Precepts Paid,Local Government [Uk Only],Invoice,BACS,No,06/04/2023 00:00,2023,1,Parish Precepts April 2023,V01005,Gf Net Revenue Account,2482,OOE - Parish Precepts Paid,XXX99,*** UNASSIGNED ***,WCC,CEC Recharges,WC,CEC Recharges,A,Central Services
GUILDFORD BOROUGH COUNCIL,Finance,978300,Pirbright Parish Council,06/04/2023,30099667,598.5,0,Grants And Subscriptions,Local Government [Uk Only],Invoice,BACS,No,06/04/2023 00:00,2023,1,Parish Precepts April 2023,F1115,Parish Liaison,D9001,Grants And Subscriptions,AAD00,Democratic Representation & Management,AAD,Democratic Representation & Management,AA,Corporate & Democratic Core,A,Central Services
GUILDFORD BOROUGH COUNCIL,Revenue Balances,978300,Pirbright Parish Council,06/04/2023,30099667,38680.5,0,OOE - Parish Precepts Paid,Local Government [Uk Only],Invoice,BACS,No,06/04/2023 00:00,2023,1,Parish Precepts April 2023,V01005,Gf Net Revenue Account,2482,OOE - Parish Precepts Paid,XXX99,*** UNASSIGNED ***,WCC,CEC Recharges,WC,CEC Recharges,A,Central Services
GUILDFORD BOROUGH COUNCIL,Finance,676700,Puttenham Parish Council,06/04/2023,30099655,375,0,Grants And Subscriptions,Local Government [Uk Only],Invoice,BACS,No,06/04/2023 00:00,2023,1,Parish Precepts April 2023,F1115,Parish Liaison,D9001,Grants And Subscriptions,AAD00,Democratic Representation & Management,AAD,Democratic Representation & Management,AA,Corporate & Democratic Core,A,Central Services
GUILDFORD BOROUGH COUNCIL,Revenue Balances,676700,Puttenham Parish Council,06/04/2023,30099655,7300,0,OOE - Parish Precepts Paid,Local Government [Uk Only],Invoice,BACS,No,06/04/2023 00:00,2023,1,Parish Precepts April 2023,V01005,Gf Net Revenue Account,2482,OOE - Parish Precepts Paid,XXX99,*** UNASSIGNED ***,WCC,CEC Recharges,WC,CEC Recharges,A,Central Services
GUILDFORD BOROUGH COUNCIL,Finance,715000,Ripley Parish Council,06/04/2023,30099656,1902.5,0,Grants And Subscriptions,Local Government [Uk Only],Invoice,BACS,No,06/04/2023 00:00,2023,1,Parish Precepts April 2023,F1115,Parish Liaison,D9001,Grants And Subscriptions,AAD00,Democratic Representation & Management,AAD,Democratic Representation & Management,AA,Corporate & Democratic Core,A,Central Services
GUILDFORD BOROUGH COUNCIL,Revenue Balances,715000,Ripley Parish Council,06/04/2023,30099656,45695,0,OOE - Parish Precepts Paid,Local Government [Uk Only],Invoice,BACS,No,06/04/2023 00:00,2023,1,Parish Precepts April 2023,V01005,Gf Net Revenue Account,2482,OOE - Parish Precepts Paid,XXX99,*** UNASSIGNED ***,WCC,CEC Recharges,WC,CEC Recharges,A,Central Services
GUILDFORD BOROUGH COUNCIL,Revenue Balances,743900,Seale And Sands Parish Council (Precepts only),06/04/2023,30099657,9750,0,OOE - Parish Precepts Paid,Local Government [Uk Only],Invoice,BACS,No,06/04/2023 00:00,2023,1,Parish Precepts April 2023,V01005,Gf Net Revenue Account,2482,OOE - Parish Precepts Paid,XXX99,*** UNASSIGNED ***,WCC,CEC Recharges,WC,CEC Recharges,A,Central Services
GUILDFORD BOROUGH COUNCIL,Finance,236590,Send Parish Council,06/04/2023,30099649,698,0,Grants And Subscriptions,Local Government [Uk Only],Invoice,BACS,No,06/04/2023 00:00,2023,1,Parish Precepts April 2023,F1115,Parish Liaison,D9001,Grants And Subscriptions,AAD00,Democratic Representation & Management,AAD,Democratic Representation & Management,AA,Corporate & Democratic Core,A,Central Services
GUILDFORD BOROUGH COUNCIL,Revenue Balances,236590,Send Parish Council,06/04/2023,30099649,42616.5,0,OOE - Parish Precepts Paid,Local Government [Uk Only],Invoice,BACS,No,06/04/2023 00:00,2023,1,Parish Precepts April 2023,V01005,Gf Net Revenue Account,2482,OOE - Parish Precepts Paid,XXX99,*** UNASSIGNED ***,WCC,CEC Recharges,WC,CEC Recharges,A,Central Services
GUILDFORD BOROUGH COUNCIL,Revenue Balances,747900,Shackleford Parish Council,06/04/2023,30099658,8350,0,OOE - Parish Precepts Paid,Local Government [Uk Only],Invoice,BACS,No,06/04/2023 00:00,2023,1,Parish Precepts April 2023,V01005,Gf Net Revenue Account,2482,OOE - Parish Precepts Paid,XXX99,*** UNASSIGNED ***,WCC,CEC Recharges,WC,CEC Recharges,A,Central Services
GUILDFORD BOROUGH COUNCIL,Finance,748200,Shalford Parish Council,06/04/2023,30099659,2111.5,0,Grants And Subscriptions,Local Government [Uk Only],Invoice,BACS,No,06/04/2023 00:00,2023,1,Parish Precepts April 2023,F1115,Parish Liaison,D9001,Grants And Subscriptions,AAD00,Democratic Representation & Management,AAD,Democratic Representation & Management,AA,Corporate & Democratic Core,A,Central Services
GUILDFORD BOROUGH COUNCIL,Revenue Balances,748200,Shalford Parish Council,06/04/2023,30099659,58687.5,0,OOE - Parish Precepts Paid,Local Government [Uk Only],Invoice,BACS,No,06/04/2023 00:00,2023,1,Parish Precepts April 2023,V01005,Gf Net Revenue Account,2482,OOE - Parish Precepts Paid,XXX99,*** UNASSIGNED ***,WCC,CEC Recharges,WC,CEC Recharges,A,Central Services
GUILDFORD BOROUGH COUNCIL,Finance,750000,Shere Parish Council,06/04/2023,30099660,2651.5,0,Grants And Subscriptions,Local Government [Uk Only],Invoice,BACS,No,06/04/2023 00:00,2023,1,Parish Precepts April 2023,F1115,Parish Liaison,D9001,Grants And Subscriptions,AAD00,Democratic Representation & Management,AAD,Democratic Representation & Management,AA,Corporate & Democratic Core,A,Central Services
GUILDFORD BOROUGH COUNCIL,Revenue Balances,750000,Shere Parish Council,06/04/2023,30099660,89411,0,OOE - Parish Precepts Paid,Local Government [Uk Only],Invoice,BACS,No,06/04/2023 00:00,2023,1,Parish Precepts April 2023,V01005,Gf Net Revenue Account,2482,OOE - Parish Precepts Paid,XXX99,*** UNASSIGNED ***,WCC,CEC Recharges,WC,CEC Recharges,A,Central Services
GUILDFORD BOROUGH COUNCIL,Revenue Balances,932300,St Martha Parish Council,06/04/2023,30099666,6925,0,OOE - Parish Precepts Paid,Local Government [Uk Only],Invoice,BACS,No,06/04/2023 00:00,2023,1,Parish Precepts April 2023,V01005,Gf Net Revenue Account,2482,OOE - Parish Precepts Paid,XXX99,*** UNASSIGNED ***,WCC,CEC Recharges,WC,CEC Recharges,A,Central Services
GUILDFORD BOROUGH COUNCIL,Finance,824200,Tongham Parish Council,06/04/2023,30099661,2200.5,0,Grants And Subscriptions,Local Government [Uk Only],Invoice,BACS,No,06/04/2023 00:00,2023,1,Parish Precepts April 2023,F1115,Parish Liaison,D9001,Grants And Subscriptions,AAD00,Democratic Representation & Management,AAD,Democratic Representation & Management,AA,Corporate & Democratic Core,A,Central Services
GUILDFORD BOROUGH COUNCIL,Revenue Balances,824200,Tongham Parish Council,06/04/2023,30099661,21095,0,OOE - Parish Precepts Paid,Local Government [Uk Only],Invoice,BACS,No,06/04/2023 00:00,2023,1,Parish Precepts April 2023,V01005,Gf Net Revenue Account,2482,OOE - Parish Precepts Paid,XXX99,*** UNASSIGNED ***,WCC,CEC Recharges,WC,CEC Recharges,A,Central Services
GUILDFORD BOROUGH COUNCIL,Revenue Balances,853100,Wanborough Parish Council,06/04/2023,30099662,2750,0,OOE - Parish Precepts Paid,Local Government [Uk Only],Invoice,BACS,No,06/04/2023 00:00,2023,1,Parish Precepts April 2023,V01005,Gf Net Revenue Account,2482,OOE - Parish Precepts Paid,XXX99,*** UNASSIGNED ***,WCC,CEC Recharges,WC,CEC Recharges,A,Central Services
GUILDFORD BOROUGH COUNCIL,Finance,856801,West Clandon Parish Council,06/04/2023,30099663,388,0,Grants And Subscriptions,,Invoice,BACS,No,06/04/2023 00:00,2023,1,Parish Precepts April 2023,F1115,Parish Liaison,D9001,Grants And Subscriptions,AAD00,Democratic Representation & Management,AAD,Democratic Representation & Management,AA,Corporate & Democratic Core,A,Central Services
GUILDFORD BOROUGH COUNCIL,Revenue Balances,856801,West Clandon Parish Council,06/04/2023,30099663,13071.5,0,OOE - Parish Precepts Paid,,Invoice,BACS,No,06/04/2023 00:00,2023,1,Parish Precepts April 2023,V01005,Gf Net Revenue Account,2482,OOE - Parish Precepts Paid,XXX99,*** UNASSIGNED ***,WCC,CEC Recharges,WC,CEC Recharges,A,Central Services
GUILDFORD BOROUGH COUNCIL,Finance,857200,West Horsley Parish Council,06/04/2023,30099664,522.5,0,Grants And Subscriptions,Local Government [Uk Only],Invoice,BACS,No,06/04/2023 00:00,2023,1,Parish Precepts April 2023,F1115,Parish Liaison,D9001,Grants And Subscriptions,AAD00,Democratic Representation & Management,AAD,Democratic Representation & Management,AA,Corporate & Democratic Core,A,Central Services
GUILDFORD BOROUGH COUNCIL,Revenue Balances,857200,West Horsley Parish Council,06/04/2023,30099664,48527.5,0,OOE - Parish Precepts Paid,Local Government [Uk Only],Invoice,BACS,No,06/04/2023 00:00,2023,1,Parish Precepts April 2023,V01005,Gf Net Revenue Account,2482,OOE - Parish Precepts Paid,XXX99,*** UNASSIGNED ***,WCC,CEC Recharges,WC,CEC Recharges,A,Central Services
GUILDFORD BOROUGH COUNCIL,Finance,867500,Worplesdon Parish Council,06/04/2023,30099665,4712,0,Grants And Subscriptions,Local Government [Uk Only],Invoice,BACS,No,06/04/2023 00:00,2023,1,Parish Precepts April 2023,F1115,Parish Liaison,D9001,Grants And Subscriptions,AAD00,Democratic Representation & Management,AAD,Democratic Representation & Management,AA,Corporate & Democratic Core,A,Central Services
GUILDFORD BOROUGH COUNCIL,Revenue Balances,867500,Worplesdon Parish Council,06/04/2023,30099665,152162.5,0,OOE - Parish Precepts Paid,Local Government [Uk Only],Invoice,BACS,No,06/04/2023 00:00,2023,1,Parish Precepts April 2023,V01005,Gf Net Revenue Account,2482,OOE - Parish Precepts Paid,XXX99,*** UNASSIGNED ***,WCC,CEC Recharges,WC,CEC Recharges,A,Central Services
GUILDFORD BOROUGH COUNCIL,Environmental Services,1000693,E File UK Ltd,11/04/2023,30098763,523.6,0,Maintenance Contracts,,Invoice,BACS,No,02/03/2023 00:00,2023,1,SP65268,A1500,Crematorium,D1002,Maintenance Contracts,CEA10,Crematoria,CEA,"Cemetery, Cremation and Mortuary Services",CE,Environmental & Regulatory Services,C,"Cultural, Environmental & Planning Services"
GUILDFORD BOROUGH COUNCIL,Environmental Services,627570,Weed Management Ltd,11/04/2023,30099710,1961.4,0,Materials,Landscaping Contractors,Invoice,CHAPS,No,27/03/2023 00:00,2023,1,24444,A1200,Sports Grounds,D2003,Materials,CCE00,Community Parks & Open Spaces,CCE,Open Spaces,CC,Cultural & Related Services,C,"Cultural, Environmental & Planning Services"
GUILDFORD BOROUGH COUNCIL,Housing Services,1000451,AMG Electrical Ltd,13/04/2023,30099903,1007.35,0,Services,,Invoice,BACS,No,04/04/2023 00:00,2023,1,2304-01,K1515,Building Maintenance,D6004,Services,DBX45,Property Services,DBX,Support Service and Management Costs,DB,Children's Social Care,E,Childrens and Education Services
GUILDFORD BOROUGH COUNCIL,Housing Services,921860,Cinnamon Construction Limited (CIS),13/04/2023,30099897,520,0,Services,General Builders,Invoice,BACS,No,11/04/2023 00:00,2023,1,772023,K1515,Building Maintenance,D6004,Services,DBX45,Property Services,DBX,Support Service and Management Costs,DB,Children's Social Care,E,Childrens and Education Services
GUILDFORD BOROUGH COUNCIL,Housing Services,921860,Cinnamon Construction Limited (CIS),13/04/2023,30099912,5414,0,Services,General Builders,Invoice,BACS,No,11/04/2023 00:00,2023,1,154,K1515,Building Maintenance,D6004,Services,DBX45,Property Services,DBX,Support Service and Management Costs,DB,Children's Social Care,E,Childrens and Education Services
GUILDFORD BOROUGH COUNCIL,Housing Services,963100,Civica UK Ltd,13/04/2023,30099821,3682.5,0,ICT Software,Computer Systems Integrators,Invoice,BACS,No,17/03/2023 00:00,2023,1,M/HG113108,G6525,Housing Surveying Services,D7002,ICT Software,CEE20,Housing Standards,CEE,Environmental Health (Regulatory Services),CE,Environmental & Regulatory Services,C,"Cultural, Environmental & Planning Services"
GUILDFORD BOROUGH COUNCIL,HRA Service Delivery,130140,Clarke Gammon Estates  (please check you are using the correct CG supplier),13/04/2023,30099834,500,0,Valuers Fees,,Invoice,BACS,No,05/04/2023 00:00,2023,1,15470,M1151,Tenants Services (BHS),D6002,Valuers Fees,W3A05,Current Service Costs - Housing Services,W3A,Current Service Costs adjustment,W3,Current Service Costs,W,Other Operating Income and Expenditure
GUILDFORD BOROUGH COUNCIL,Housing Services,713710,D G Property Refurbishment Ltd,13/04/2023,30099837,3528.75,0,Services,Restoration Specialists,Invoice,BACS,No,03/04/2023 00:00,2023,1,175,K1515,Building Maintenance,D6004,Services,DBX45,Property Services,DBX,Support Service and Management Costs,DB,Children's Social Care,E,Childrens and Education Services
GUILDFORD BOROUGH COUNCIL,Housing Services,713710,D G Property Refurbishment Ltd,13/04/2023,30099837,4200,0,Materials,Restoration Specialists,Invoice,BACS,No,03/04/2023 00:00,2023,1,175,K1515,Building Maintenance,D2003,Materials,DBX45,Property Services,DBX,Support Service and Management Costs,DB,Children's Social Care,E,Childrens and Education Services
GUILDFORD BOROUGH COUNCIL,Housing Services,713710,D G Property Refurbishment Ltd,13/04/2023,30099817,3028.56,0,Services,Restoration Specialists,Invoice,BACS,No,03/04/2023 00:00,2023,1,176,K1515,Building Maintenance,D6004,Services,DBX45,Property Services,DBX,Support Service and Management Costs,DB,Children's Social Care,E,Childrens and Education Services
GUILDFORD BOROUGH COUNCIL,Housing Services,713710,D G Property Refurbishment Ltd,13/04/2023,30099817,4600,0,Materials,Restoration Specialists,Invoice,BACS,No,03/04/2023 00:00,2023,1,176,K1515,Building Maintenance,D2003,Materials,DBX45,Property Services,DBX,Support Service and Management Costs,DB,Children's Social Care,E,Childrens and Education Services
GUILDFORD BOROUGH COUNCIL,Housing Services,713710,D G Property Refurbishment Ltd,13/04/2023,30099894,1328,0,Services,Restoration Specialists,Invoice,BACS,No,11/04/2023 00:00,2023,1,177,K1515,Building Maintenance,D6004,Services,DBX45,Property Services,DBX,Support Service and Management Costs,DB,Children's Social Care,E,Childrens and Education Services
GUILDFORD BOROUGH COUNCIL,Housing Services,713710,D G Property Refurbishment Ltd,13/04/2023,30099894,1600,0,Materials,Restoration Specialists,Invoice,BACS,No,11/04/2023 00:00,2023,1,177,K1515,Building Maintenance,D2003,Materials,DBX45,Property Services,DBX,Support Service and Management Costs,DB,Children's Social Care,E,Childrens and Education Services
GUILDFORD BOROUGH COUNCIL,Housing Services,946970,Davis Property Services GU Limited (CIS),13/04/2023,30099609,9597.88,0,Services,Roofers,Invoice,BACS,No,04/04/2023 00:00,2023,1,2403,K1515,Building Maintenance,D6004,Services,DBX45,Property Services,DBX,Support Service and Management Costs,DB,Children's Social Care,E,Childrens and Education Services
GUILDFORD BOROUGH COUNCIL,Housing Services,1000896,Anonymous,13/04/2023,30099800,1000,0,Partnerships,,Invoice,BACS,No,06/04/2023 00:00,2023,1,Rent in advance,C3311,Homelessness,D6013,Partnerships,KGU00,Supporting People - Strategy,KGU,Supporting People,KG,Housing General Fund,K,Housing Services
GUILDFORD BOROUGH COUNCIL,Environmental Services,1000119,Professional Construction Recruitment Limited,13/04/2023,30099803,573.5,0,Agency,,Invoice,BACS,No,13/12/2022 00:00,2023,1,153846,B4452,Woking Road Depot,A5191,Agency,XXX99,*** UNASSIGNED ***,WCC,CEC Recharges,WC,CEC Recharges,A,Central Services
GUILDFORD BOROUGH COUNCIL,Environmental Services,1000119,Professional Construction Recruitment Limited,13/04/2023,30099804,573.5,0,Agency,,Invoice,BACS,No,20/12/2022 00:00,2023,1,154074,B4452,Woking Road Depot,A5191,Agency,XXX99,*** UNASSIGNED ***,WCC,CEC Recharges,WC,CEC Recharges,A,Central Services
GUILDFORD BOROUGH COUNCIL,Housing Services,846250,Revive Services (CIS),13/04/2023,30099815,2700,0,Services,Other Cleaning And Janitorial Service Providers,Invoice,BACS,No,03/04/2023 00:00,2023,1,204A,K1515,Building Maintenance,D6004,Services,DBX45,Property Services,DBX,Support Service and Management Costs,DB,Children's Social Care,E,Childrens and Education Services
GUILDFORD BOROUGH COUNCIL,Housing Services,769600,RGB Decorating Limited (CIS),13/04/2023,30099906,18985,0,Services,Painters And Decorators,Invoice,BACS,No,11/04/2023 00:00,2023,1,312324,K1515,Building Maintenance,D6004,Services,DBX45,Property Services,DBX,Support Service and Management Costs,DB,Children's Social Care,E,Childrens and Education Services
GUILDFORD BOROUGH COUNCIL,Finance,715000,Ripley Parish Council,13/04/2023,30099860,4594.5,0,Grants And Subscriptions,Local Government [Uk Only],Invoice,BACS,No,12/04/2023 00:00,2023,1,Grant Aid - Bus Shelter,F1115,Parish Liaison,D9001,Grants And Subscriptions,AAD00,Democratic Representation & Management,AAD,Democratic Representation & Management,AA,Corporate & Democratic Core,A,Central Services
GUILDFORD BOROUGH COUNCIL,Finance,878030,Royal Mail Group Ltd (Chesterfield),13/04/2023,30099839,609.63,0,Postage,,Invoice,BACS,No,20/03/2023 00:00,2023,1,9067069040,F6141,Council Tax Collectn Expenses,D5003,Postage,ACA00,Council Tax Collection,ACA,Local Tax Collection,AC,Central Services to the Public,A,Central Services
GUILDFORD BOROUGH COUNCIL,Finance,878030,Royal Mail Group Ltd (Chesterfield),13/04/2023,30099839,1735.52,0,Postage,,Invoice,BACS,No,20/03/2023 00:00,2023,1,9067069040,F6151,Business Rates Collection Exps,D5003,Postage,ACA40,Non Domestic Rates Collection,ACA,Local Tax Collection,AC,Central Services to the Public,A,Central Services
GUILDFORD BOROUGH COUNCIL,Commercial Services,878030,Royal Mail Group Ltd (Chesterfield),13/04/2023,30099839,1843.25,0,Postage,,Invoice,BACS,No,20/03/2023 00:00,2023,1,9067069040,B2111,Car Parks - Administration,D5003,Postage,HTP10,Off-Street Parking,HTP,Parking Services,HT,"Highways, Roads and Transport Services",H,"Highways, Roads and Transport Services"
GUILDFORD BOROUGH COUNCIL,Housing Services,688330,Seymours Lettings & Management,13/04/2023,30099801,1200,0,Partnerships,Property Letting And Estate Agents,Invoice,BACS,No,06/04/2023 00:00,2023,1,Rent in advance,C3311,Homelessness,D6013,Partnerships,KGU00,Supporting People - Strategy,KGU,Supporting People,KG,Housing General Fund,K,Housing Services
GUILDFORD BOROUGH COUNCIL,Housing Services,686720,Surrey County Windows Ltd,13/04/2023,30099914,3311,0,Services,Window And Door Installers,Invoice,BACS,No,07/04/2023 00:00,2023,1,120,K1515,Building Maintenance,D6004,Services,DBX45,Property Services,DBX,Support Service and Management Costs,DB,Children's Social Care,E,Childrens and Education Services
GUILDFORD BOROUGH COUNCIL,Housing Services,686720,Surrey County Windows Ltd,13/04/2023,30099914,7169.27,0,Materials,Window And Door Installers,Invoice,BACS,No,07/04/2023 00:00,2023,1,120,K1515,Building Maintenance,D2003,Materials,DBX45,Property Services,DBX,Support Service and Management Costs,DB,Children's Social Care,E,Childrens and Education Services
GUILDFORD BOROUGH COUNCIL,Environmental Services,208310,Thames Water Utilities Ltd (Swindon),13/04/2023,30099910,566.93,0,Utilities,Mains Water Suppliers,Invoice,BACS,No,22/02/2023 00:00,2023,1,9.00072E+17,A1345,Chilworth Gunpowder Mills Site,B2001,Utilities,CCE00,Community Parks & Open Spaces,CCE,Open Spaces,CC,Cultural & Related Services,C,"Cultural, Environmental & Planning Services"
GUILDFORD BOROUGH COUNCIL,Executive - Miscellaneous,988070,Tony Gee And Partners Llp,13/04/2023,30099932,8323,0,Consultants Fees,,Invoice,BACS,No,12/04/2023 00:00,2023,1,14307,P79037,Ash Road Bridge,1221,Consultants Fees,XXX99,*** UNASSIGNED ***,WCC,CEC Recharges,WC,CEC Recharges,A,Central Services
GUILDFORD BOROUGH COUNCIL,Housing Services,957790,Anonymous,14/04/2023,30100045,923.08,0,Deposit/Bonds Re-Paid,,Invoice,CHAPS,No,14/04/2023 00:00,2023,1,Bond claim,C3311,Homelessness,D1202,Deposit/Bonds Re-Paid,KGU00,Supporting People - Strategy,KGU,Supporting People,KG,Housing General Fund,K,Housing Services
GUILDFORD BOROUGH COUNCIL,Commercial Services,718130,A.I.M. Removals & Deliveries,18/04/2023,30100048,325.71,0,GF Assets - Maintenance,Removal Service Providers,Invoice,BACS,No,28/02/2023 00:00,2023,1,1161,F3311,Guildhall,B1004,GF Assets - Maintenance,CCA30,Museums & Galleries,CCA,Culture & Heritage,CC,Cultural & Related Services,C,"Cultural, Environmental & Planning Services"
GUILDFORD BOROUGH COUNCIL,Communication & Customer Services,834160,Banner Group Limited,18/04/2023,30099736,682.43,0,Stationery & Paper,Other Office Equipment Suppliers,Invoice,BACS,No,01/03/2023 00:00,2023,1,9467860,G3550,Resources Caseworker,D5007,Stationery & Paper,DBX35,Finance (including Internal Audit),DBX,Support Service and Management Costs,DB,Children's Social Care,E,Childrens and Education Services
GUILDFORD BOROUGH COUNCIL,Environmental Services,218050,Bevan Brittan LLP,18/04/2023,30099995,345.5,0,Services,Solicitors [Uk Only],Invoice,BACS,No,23/02/2023 00:00,2023,1,10218515,K4551,Street Cleansing,D6004,Services,CES00,Street Cleansing (not chargeable to highways),CES,Street Cleansing (not chargeable to highways),CE,Environmental & Regulatory Services,C,"Cultural, Environmental & Planning Services"
GUILDFORD BOROUGH COUNCIL,Grants,938540,BJC Design (Southeast) Ltd,18/04/2023,30099713,699.6,0,Grants To Private Owners,Surveyors And Inspectors,Invoice,BACS,No,06/03/2023 00:00,2023,1,1028,N51008,Mandatory DFG,1311,Grants To Private Owners,XXX99,*** UNASSIGNED ***,WCC,CEC Recharges,WC,CEC Recharges,A,Central Services
GUILDFORD BOROUGH COUNCIL,Renovations,1000873,bSure Testing Limited,18/04/2023,30100093,695,0,Miscellaneous Expenses,,Invoice,BACS,No,19/01/2023 00:00,2023,1,29737,N40299,Asbestos removal,1444,Miscellaneous Expenses,XXX99,*** UNASSIGNED ***,WCC,CEC Recharges,WC,CEC Recharges,A,Central Services
GUILDFORD BOROUGH COUNCIL,Commercial Services,900320,BSW Building Services Ltd,18/04/2023,30100053,640,0,Consultancy,"Plumbing, Heating And Ac (Hvac) Contractors",Invoice,BACS,No,31/03/2023 00:00,2023,1,78479,D5700,Building Control - Fee,D6001,Consultancy,CPB00,Building Regulations,CPB,Building Control,CP,Planning and Development Services,C,"Cultural, Environmental & Planning Services"
GUILDFORD BOROUGH COUNCIL,Housing Services,127500,Chambers Waste Management Plc,18/04/2023,30099916,363.94,0,Materials,Other Waste Disposal Suppliers,Invoice,BACS,No,26/03/2023 00:00,2023,1,P618919,K1515,Building Maintenance,D2003,Materials,DBX45,Property Services,DBX,Support Service and Management Costs,DB,Children's Social Care,E,Childrens and Education Services
GUILDFORD BOROUGH COUNCIL,Organisational Development,324350,Comensura Ltd,18/04/2023,30099601,65659,0,Agency,Other Recruitment Agencies And Service Providers,Invoice,BACS,No,02/04/2023 00:00,2023,1,1099279,G1161,Commensura Holding Account,A5191,Agency,W3A40,Current Service Costs - HR Admin,W3A,Current Service Costs adjustment,W3,Current Service Costs,W,Other Operating Income and Expenditure
GUILDFORD BOROUGH COUNCIL,Grants,1000863,Disabled Adaptations & Solutions Ltd (DAAS),18/04/2023,30100091,7338.19,0,Grants To Private Owners,,Invoice,BACS,No,13/04/2023 00:00,2023,1,Disabled Adaptations Solutions INV-0115,N51008,Mandatory DFG,1311,Grants To Private Owners,XXX99,*** UNASSIGNED ***,WCC,CEC Recharges,WC,CEC Recharges,A,Central Services
GUILDFORD BOROUGH COUNCIL,Assets and Property,656190,EDF Energy,18/04/2023,30099908,253.77,0,Utilities,Mains Electricity Suppliers,Invoice,BACS,No,14/03/2023 00:00,2023,1,E74179216009,B6100,Other Property Admin,B2001,Utilities,CPJ00,Market Undertakings,CPJ,Economic Development,CP,Planning and Development Services,C,"Cultural, Environmental & Planning Services"
GUILDFORD BOROUGH COUNCIL,Environmental Services,882220,Fuller Tyres Limited,18/04/2023,30099275,259,0,Repair And Maintenance Of Vehicles,Other Vehicle Equipment Providers,Invoice,BACS,No,14/03/2023 00:00,2023,1,FTI-43352,K5551,Fleet Workshops,C1002,Repair And Maintenance Of Vehicles,W3A48,Current Service Costs - Fleet Management,W3A,Current Service Costs adjustment,W3,Current Service Costs,W,Other Operating Income and Expenditure
GUILDFORD BOROUGH COUNCIL,Environmental Services,882220,Fuller Tyres Limited,18/04/2023,30099428,296.67,0,Materials,Other Vehicle Equipment Providers,Invoice,BACS,No,23/03/2023 00:00,2023,1,FTI-43407,K5551,Fleet Workshops,D2003,Materials,W3A48,Current Service Costs - Fleet Management,W3A,Current Service Costs adjustment,W3,Current Service Costs,W,Other Operating Income and Expenditure
GUILDFORD BOROUGH COUNCIL,Planning & Development,1000475,G2 Recruitment Solutions,18/04/2023,30099863,1530,0,Consultancy,,Invoice,BACS,No,09/06/2022 00:00,2023,1,Adj for Credit 3535 Taken Twice,D5100,Development Control - Fee Earn,D6001,Consultancy,CPC00,Development Control Advice,CPC,Development Control,CP,Planning and Development Services,C,"Cultural, Environmental & Planning Services"
GUILDFORD BOROUGH COUNCIL,Finance,156250,Hays Specialist Recruitment Limited,18/04/2023,30098572,2255,0,Agency,Other Recruitment Agencies And Service Providers,Invoice,BACS,No,22/03/2023 00:00,2023,1,1012856254,G3593,Procurement Services,A5191,Agency,DBX35,Finance (including Internal Audit),DBX,Support Service and Management Costs,DB,Children's Social Care,E,Childrens and Education Services
GUILDFORD BOROUGH COUNCIL,Grants,1000428,K6 Gas,18/04/2023,30099712,5830,0,Grants To Private Owners,,Invoice,BACS,No,08/03/2023 00:00,2023,1,114,N51008,Mandatory DFG,1311,Grants To Private Owners,XXX99,*** UNASSIGNED ***,WCC,CEC Recharges,WC,CEC Recharges,A,Central Services
GUILDFORD BOROUGH COUNCIL,Spectrum,1000803,MANAGEMENT & CONSTRUCTION SERVICES LIMITED,18/04/2023,30099457,134022.69,0,Contractor Payments,,Invoice,BACS,No,03/04/2023 00:00,2023,1,SL011320,P22067,Lido - Drainage Works,1233,Contractor Payments,XXX99,*** UNASSIGNED ***,WCC,CEC Recharges,WC,CEC Recharges,A,Central Services
GUILDFORD BOROUGH COUNCIL,HRA Service Delivery,729420,Morgan Hunt UK Limited,18/04/2023,30099146,1899.05,0,Agency,Other Recruitment Agencies And Service Providers,Invoice,BACS,No,26/03/2023 00:00,2023,1,1310794,M5111,Repairs-Admin (BHS),A5191,Agency,W3A05,Current Service Costs - Housing Services,W3A,Current Service Costs adjustment,W3,Current Service Costs,W,Other Operating Income and Expenditure
GUILDFORD BOROUGH COUNCIL,Other Short Term Creditors,971670,My Staff Shop Limited,18/04/2023,30099610,1282,0,Payments,Other Business Service Providers,Invoice,BACS,No,03/04/2023 00:00,2023,1,INV-9246,L08013,Sals Dedns - Childcare Voucher,2489,Payments,XXX99,*** UNASSIGNED ***,WCC,CEC Recharges,WC,CEC Recharges,A,Central Services
GUILDFORD BOROUGH COUNCIL,Housing Services,1000917,Oasis Hotel Limited,18/04/2023,30099414,1388.57,0,Emergency Accomodation,,Invoice,BACS,No,01/01/2022 00:00,2023,1,28266,C3311,Homelessness,D8009,Emergency Accomodation,KGU00,Supporting People - Strategy,KGU,Supporting People,KG,Housing General Fund,K,Housing Services
GUILDFORD BOROUGH COUNCIL,Environmental Services,668300,Plants Limited,18/04/2023,30100098,512,0,Materials,Garden Centres And Nurseries,Invoice,BACS,No,13/02/2023 00:00,2023,1,77418,A1250,Stoke Park,D2003,Materials,CCE00,Community Parks & Open Spaces,CCE,Open Spaces,CC,Cultural & Related Services,C,"Cultural, Environmental & Planning Services"
GUILDFORD BOROUGH COUNCIL,Commercial Services,836600,Salnor Roofing Services Ltd,18/04/2023,30099425,575,0,GF Assets - Maintenance,Roofers,Invoice,BACS,No,01/04/2023 00:00,2023,1,PN/R19947/APR,A2141,G Live,B1004,GF Assets - Maintenance,CCA10,Arts Development & Support,CCA,Culture & Heritage,CC,Cultural & Related Services,C,"Cultural, Environmental & Planning Services"
GUILDFORD BOROUGH COUNCIL,Grants,729250,SCBS (Grants only),18/04/2023,30099984,2110.54,0,Grants To Private Owners,General Builders,Invoice,BACS,No,06/04/2023 00:00,2023,1,1896,N51008,Mandatory DFG,1311,Grants To Private Owners,XXX99,*** UNASSIGNED ***,WCC,CEC Recharges,WC,CEC Recharges,A,Central Services
GUILDFORD BOROUGH COUNCIL,Grants,803110,Specialist Adaptive Services Ltd,18/04/2023,30099802,454,0,Grants To Private Owners,Fixed Disability Equipment Suppliers,Invoice,BACS,No,02/04/2023 00:00,2023,1,INV-0046,N51024,BCF- Prevention Grant,1311,Grants To Private Owners,XXX99,*** UNASSIGNED ***,WCC,CEC Recharges,WC,CEC Recharges,A,Central Services
GUILDFORD BOROUGH COUNCIL,Grants,803110,Specialist Adaptive Services Ltd,18/04/2023,30099716,6965,0,Grants To Private Owners,Fixed Disability Equipment Suppliers,Invoice,BACS,No,31/03/2023 00:00,2023,1,INV-0045,N51008,Mandatory DFG,1311,Grants To Private Owners,XXX99,*** UNASSIGNED ***,WCC,CEC Recharges,WC,CEC Recharges,A,Central Services
GUILDFORD BOROUGH COUNCIL,Commercial Services,1000512,St Edward Homes Limited,18/04/2023,30100060,3333.37,0,Rents Payable,,Invoice,BACS,No,18/07/2022 00:00,2023,1,14000078,B2241,Commercial Road 2 Car Park,B3001,Rents Payable,HTP10,Off-Street Parking,HTP,Parking Services,HT,"Highways, Roads and Transport Services",H,"Highways, Roads and Transport Services"
GUILDFORD BOROUGH COUNCIL,Commercial Services,1000512,St Edward Homes Limited,18/04/2023,30100076,3333.37,0,Rents Payable,,Invoice,BACS,No,16/01/2023 00:00,2023,1,14000104,B2241,Commercial Road 2 Car Park,B3001,Rents Payable,HTP10,Off-Street Parking,HTP,Parking Services,HT,"Highways, Roads and Transport Services",H,"Highways, Roads and Transport Services"
GUILDFORD BOROUGH COUNCIL,Commercial Services,1000512,St Edward Homes Limited,18/04/2023,30100082,3333.37,0,Rents Payable,,Invoice,BACS,No,15/02/2023 00:00,2023,1,14000108,B2241,Commercial Road 2 Car Park,B3001,Rents Payable,HTP10,Off-Street Parking,HTP,Parking Services,HT,"Highways, Roads and Transport Services",H,"Highways, Roads and Transport Services"
GUILDFORD BOROUGH COUNCIL,Planning & Development,230230,Surrey County Council,18/04/2023,30100010,5206,0,Services,Local Government [Uk Only],Invoice,BACS,No,12/04/2023 00:00,2023,1,9500326734,F4111,Local Land Charges,D6004,Services,CPD10,Local Development Framework inc Supplementary Planning Guidance,CPD,Planning Policy,CP,Planning and Development Services,C,"Cultural, Environmental & Planning Services"
GUILDFORD BOROUGH COUNCIL,Housing Services,686720,Surrey County Windows Ltd,18/04/2023,30100078,1476.32,0,Services,Window And Door Installers,Invoice,BACS,No,14/04/2023 00:00,2023,1,121,K1515,Building Maintenance,D6004,Services,DBX45,Property Services,DBX,Support Service and Management Costs,DB,Children's Social Care,E,Childrens and Education Services
GUILDFORD BOROUGH COUNCIL,Housing Services,686720,Surrey County Windows Ltd,18/04/2023,30100078,3480.72,0,Materials,Window And Door Installers,Invoice,BACS,No,14/04/2023 00:00,2023,1,121,K1515,Building Maintenance,D2003,Materials,DBX45,Property Services,DBX,Support Service and Management Costs,DB,Children's Social Care,E,Childrens and Education Services
GUILDFORD BOROUGH COUNCIL,HRA Service Delivery,1000849,Terra Cotta (Estate Agents) Ltd (Lettings),18/04/2023,30100097,3500,0,Expenses,,Invoice,BACS,No,17/04/2023 00:00,2023,1,1 Month Temporary Accommodation 3 Forrest Place,M1151,Tenants Services (BHS),D8004,Expenses,W3A05,Current Service Costs - Housing Services,W3A,Current Service Costs adjustment,W3,Current Service Costs,W,Other Operating Income and Expenditure
GUILDFORD BOROUGH COUNCIL,Executive - Miscellaneous,827120,Thames Water Utilities Limited (Reading),18/04/2023,30099812,2122277.28,0,Consultants Fees,Mains Water Suppliers,Invoice,BACS,No,04/04/2023 00:00,2023,1,CBA2300015,P79104,Wuv - Thames Water Relocation,1221,Consultants Fees,XXX99,*** UNASSIGNED ***,WCC,CEC Recharges,WC,CEC Recharges,A,Central Services
GUILDFORD BOROUGH COUNCIL,Housing Services,227810,Virgin Media Payments Ltd (A/C 24285951),18/04/2023,30100008,29921.79,0,Telephones & Broadband,Fixed Telecoms Service Providers,Invoice,BACS,No,25/03/2023 00:00,2023,1,924100-132,F7540,Town Centre CCTV System,D7004,Telephones & Broadband,HTX10,Highways & Transport - Professional and Engineering Services,HTX,Highways Management and Support,HT,"Highways, Roads and Transport Services",H,"Highways, Roads and Transport Services"
GUILDFORD BOROUGH COUNCIL,Assets and Property,917440,Wadham & Isherwood Management Ltd Client A/C,18/04/2023,30099990,372.01,0,Building Expenses,Property Letting And Estate Agents,Invoice,BACS,No,24/03/2023 00:00,2023,1,18328,B6111,Investment Property,B1002,Building Expenses,CPJ00,Market Undertakings,CPJ,Economic Development,CP,Planning and Development Services,C,"Cultural, Environmental & Planning Services"
GUILDFORD BOROUGH COUNCIL,Assets and Property,917440,Wadham & Isherwood Management Ltd Client A/C,18/04/2023,30100000,2943.87,0,Building Expenses,Property Letting And Estate Agents,Invoice,BACS,No,09/12/2020 00:00,2023,1,15735,B6111,Investment Property,B1002,Building Expenses,CPJ00,Market Undertakings,CPJ,Economic Development,CP,Planning and Development Services,C,"Cultural, Environmental & Planning Services"
GUILDFORD BOROUGH COUNCIL,Assets and Property,917440,Wadham & Isherwood Management Ltd Client A/C,18/04/2023,30100009,3645.26,0,Building Expenses,Property Letting And Estate Agents,Invoice,BACS,No,24/03/2023 00:00,2023,1,18326,B6111,Investment Property,B1002,Building Expenses,CPJ00,Market Undertakings,CPJ,Economic Development,CP,Planning and Development Services,C,"Cultural, Environmental & Planning Services"
GUILDFORD BOROUGH COUNCIL,Assets and Property,917440,Wadham & Isherwood Management Ltd Client A/C,18/04/2023,30100033,3645.26,0,Building Expenses,Property Letting And Estate Agents,Invoice,BACS,No,09/12/2020 00:00,2023,1,15736,B6111,Investment Property,B1002,Building Expenses,CPJ00,Market Undertakings,CPJ,Economic Development,CP,Planning and Development Services,C,"Cultural, Environmental & Planning Services"
GUILDFORD BOROUGH COUNCIL,Assets and Property,917440,Wadham & Isherwood Management Ltd Client A/C,18/04/2023,30100040,2943.87,0,Building Expenses,Property Letting And Estate Agents,Invoice,BACS,No,24/03/2023 00:00,2023,1,18325,B6111,Investment Property,B1002,Building Expenses,CPJ00,Market Undertakings,CPJ,Economic Development,CP,Planning and Development Services,C,"Cultural, Environmental & Planning Services"
GUILDFORD BOROUGH COUNCIL,HRA Service Delivery,713700,A P Benson Roofing & Building Limited,20/04/2023,30100477,3290,0,Asset Maintenance,Roofers,Invoice,BACS,No,06/09/2022 00:00,2023,1,4958,M5114,Repairs-Cyclical (BHS),B1001,Asset Maintenance,W3A05,Current Service Costs - Housing Services,W3A,Current Service Costs adjustment,W3,Current Service Costs,W,Other Operating Income and Expenditure
GUILDFORD BOROUGH COUNCIL,HRA Service Delivery,713700,A P Benson Roofing & Building Limited,20/04/2023,30100478,3290,0,Asset Maintenance,Roofers,Invoice,BACS,No,08/02/2023 00:00,2023,1,5017,M5114,Repairs-Cyclical (BHS),B1001,Asset Maintenance,W3A05,Current Service Costs - Housing Services,W3A,Current Service Costs adjustment,W3,Current Service Costs,W,Other Operating Income and Expenditure
GUILDFORD BOROUGH COUNCIL,HRA Service Delivery,713700,A P Benson Roofing & Building Limited,20/04/2023,30100479,3290,0,Asset Maintenance,Roofers,Invoice,BACS,No,08/02/2023 00:00,2023,1,5018,M5114,Repairs-Cyclical (BHS),B1001,Asset Maintenance,W3A05,Current Service Costs - Housing Services,W3A,Current Service Costs adjustment,W3,Current Service Costs,W,Other Operating Income and Expenditure
GUILDFORD BOROUGH COUNCIL,Heating,900320,BSW Building Services Ltd,20/04/2023,30100455,11007.36,0,Contractor Payments,"Plumbing, Heating And Ac (Hvac) Contractors",Invoice,BACS,No,24/03/2023 00:00,2023,1,78384,N44076,Domestic Air Source Heat Pump heating  systems,1233,Contractor Payments,XXX99,*** UNASSIGNED ***,WCC,CEC Recharges,WC,CEC Recharges,A,Central Services
GUILDFORD BOROUGH COUNCIL,Heating,900320,BSW Building Services Ltd,20/04/2023,30100456,10790.12,0,Contractor Payments,"Plumbing, Heating And Ac (Hvac) Contractors",Invoice,BACS,No,24/03/2023 00:00,2023,1,78385,N44076,Domestic Air Source Heat Pump heating  systems,1233,Contractor Payments,XXX99,*** UNASSIGNED ***,WCC,CEC Recharges,WC,CEC Recharges,A,Central Services
GUILDFORD BOROUGH COUNCIL,Heating,900320,BSW Building Services Ltd,20/04/2023,30100457,10818.76,0,Contractor Payments,"Plumbing, Heating And Ac (Hvac) Contractors",Invoice,BACS,No,24/03/2023 00:00,2023,1,78386,N44076,Domestic Air Source Heat Pump heating  systems,1233,Contractor Payments,XXX99,*** UNASSIGNED ***,WCC,CEC Recharges,WC,CEC Recharges,A,Central Services
GUILDFORD BOROUGH COUNCIL,Heating,900320,BSW Building Services Ltd,20/04/2023,30100458,12422.8,0,Contractor Payments,"Plumbing, Heating And Ac (Hvac) Contractors",Invoice,BACS,No,24/03/2023 00:00,2023,1,78387,N44076,Domestic Air Source Heat Pump heating  systems,1233,Contractor Payments,XXX99,*** UNASSIGNED ***,WCC,CEC Recharges,WC,CEC Recharges,A,Central Services
GUILDFORD BOROUGH COUNCIL,Heating,900320,BSW Building Services Ltd,20/04/2023,30100459,11061.97,0,Contractor Payments,"Plumbing, Heating And Ac (Hvac) Contractors",Invoice,BACS,No,24/03/2023 00:00,2023,1,78388,N44076,Domestic Air Source Heat Pump heating  systems,1233,Contractor Payments,XXX99,*** UNASSIGNED ***,WCC,CEC Recharges,WC,CEC Recharges,A,Central Services
GUILDFORD BOROUGH COUNCIL,Heating,900320,BSW Building Services Ltd,20/04/2023,30100460,11061.97,0,Contractor Payments,"Plumbing, Heating And Ac (Hvac) Contractors",Invoice,BACS,No,24/03/2023 00:00,2023,1,78389,N44076,Domestic Air Source Heat Pump heating  systems,1233,Contractor Payments,XXX99,*** UNASSIGNED ***,WCC,CEC Recharges,WC,CEC Recharges,A,Central Services
GUILDFORD BOROUGH COUNCIL,Heating,900320,BSW Building Services Ltd,20/04/2023,30100461,12486.66,0,Contractor Payments,"Plumbing, Heating And Ac (Hvac) Contractors",Invoice,BACS,No,24/03/2023 00:00,2023,1,78390,N44076,Domestic Air Source Heat Pump heating  systems,1233,Contractor Payments,XXX99,*** UNASSIGNED ***,WCC,CEC Recharges,WC,CEC Recharges,A,Central Services
GUILDFORD BOROUGH COUNCIL,Heating,900320,BSW Building Services Ltd,20/04/2023,30100462,12420.01,0,Contractor Payments,"Plumbing, Heating And Ac (Hvac) Contractors",Invoice,BACS,No,24/03/2023 00:00,2023,1,78391,N44076,Domestic Air Source Heat Pump heating  systems,1233,Contractor Payments,XXX99,*** UNASSIGNED ***,WCC,CEC Recharges,WC,CEC Recharges,A,Central Services
GUILDFORD BOROUGH COUNCIL,Heating,900320,BSW Building Services Ltd,20/04/2023,30100463,10818.76,0,Contractor Payments,"Plumbing, Heating And Ac (Hvac) Contractors",Invoice,BACS,No,24/03/2023 00:00,2023,1,78392,N44076,Domestic Air Source Heat Pump heating  systems,1233,Contractor Payments,XXX99,*** UNASSIGNED ***,WCC,CEC Recharges,WC,CEC Recharges,A,Central Services
GUILDFORD BOROUGH COUNCIL,Heating,900320,BSW Building Services Ltd,20/04/2023,30100464,10790.12,0,Contractor Payments,"Plumbing, Heating And Ac (Hvac) Contractors",Invoice,BACS,No,24/03/2023 00:00,2023,1,78393,N44076,Domestic Air Source Heat Pump heating  systems,1233,Contractor Payments,XXX99,*** UNASSIGNED ***,WCC,CEC Recharges,WC,CEC Recharges,A,Central Services
GUILDFORD BOROUGH COUNCIL,Heating,900320,BSW Building Services Ltd,20/04/2023,30100465,12857.59,0,Contractor Payments,"Plumbing, Heating And Ac (Hvac) Contractors",Invoice,BACS,No,24/03/2023 00:00,2023,1,78394,N44076,Domestic Air Source Heat Pump heating  systems,1233,Contractor Payments,XXX99,*** UNASSIGNED ***,WCC,CEC Recharges,WC,CEC Recharges,A,Central Services
GUILDFORD BOROUGH COUNCIL,Heating,900320,BSW Building Services Ltd,20/04/2023,30100466,12857.59,0,Contractor Payments,"Plumbing, Heating And Ac (Hvac) Contractors",Invoice,BACS,No,24/03/2023 00:00,2023,1,78395,N44076,Domestic Air Source Heat Pump heating  systems,1233,Contractor Payments,XXX99,*** UNASSIGNED ***,WCC,CEC Recharges,WC,CEC Recharges,A,Central Services
GUILDFORD BOROUGH COUNCIL,HRA Service Delivery,982900,C L C Contractors Limited,20/04/2023,30100232,388.17,0,Asset Maintenance,Property Maintenance Contractors,Invoice,BACS,No,06/04/2023 00:00,2023,1,INV017751,M5113,Repairs-Responsive (BHS),B1001,Asset Maintenance,W3A05,Current Service Costs - Housing Services,W3A,Current Service Costs adjustment,W3,Current Service Costs,W,Other Operating Income and Expenditure
GUILDFORD BOROUGH COUNCIL,HRA Service Delivery,982900,C L C Contractors Limited,20/04/2023,30100232,758.8,0,Asset Maintenance,Property Maintenance Contractors,Invoice,BACS,No,06/04/2023 00:00,2023,1,INV017751,M5113,Repairs-Responsive (BHS),B1001,Asset Maintenance,W3A05,Current Service Costs - Housing Services,W3A,Current Service Costs adjustment,W3,Current Service Costs,W,Other Operating Income and Expenditure
GUILDFORD BOROUGH COUNCIL,HRA Service Delivery,982900,C L C Contractors Limited,20/04/2023,30100232,4872.4,0,Asset Maintenance,Property Maintenance Contractors,Invoice,BACS,No,06/04/2023 00:00,2023,1,INV017751,M5114,Repairs-Cyclical (BHS),B1001,Asset Maintenance,W3A05,Current Service Costs - Housing Services,W3A,Current Service Costs adjustment,W3,Current Service Costs,W,Other Operating Income and Expenditure
GUILDFORD BOROUGH COUNCIL,HRA Service Delivery,982900,C L C Contractors Limited,20/04/2023,30100232,5582.43,0,Asset Maintenance,Property Maintenance Contractors,Invoice,BACS,No,06/04/2023 00:00,2023,1,INV017751,M5114,Repairs-Cyclical (BHS),B1001,Asset Maintenance,W3A05,Current Service Costs - Housing Services,W3A,Current Service Costs adjustment,W3,Current Service Costs,W,Other Operating Income and Expenditure
GUILDFORD BOROUGH COUNCIL,HRA Service Delivery,982900,C L C Contractors Limited,20/04/2023,30100232,2225.43,0,Asset Maintenance,Property Maintenance Contractors,Invoice,BACS,No,06/04/2023 00:00,2023,1,INV017751,M5114,Repairs-Cyclical (BHS),B1001,Asset Maintenance,W3A05,Current Service Costs - Housing Services,W3A,Current Service Costs adjustment,W3,Current Service Costs,W,Other Operating Income and Expenditure
GUILDFORD BOROUGH COUNCIL,HRA Service Delivery,982900,C L C Contractors Limited,20/04/2023,30100233,1514.05,0,Asset Maintenance,Property Maintenance Contractors,Invoice,BACS,No,06/04/2023 00:00,2023,1,INV017753,M5113,Repairs-Responsive (BHS),B1001,Asset Maintenance,W3A05,Current Service Costs - Housing Services,W3A,Current Service Costs adjustment,W3,Current Service Costs,W,Other Operating Income and Expenditure
GUILDFORD BOROUGH COUNCIL,HRA Service Delivery,982900,C L C Contractors Limited,20/04/2023,30100233,764.37,0,Building Expenses,Property Maintenance Contractors,Invoice,BACS,No,06/04/2023 00:00,2023,1,INV017753,M5114,Repairs-Cyclical (BHS),B1002,Building Expenses,W3A05,Current Service Costs - Housing Services,W3A,Current Service Costs adjustment,W3,Current Service Costs,W,Other Operating Income and Expenditure
GUILDFORD BOROUGH COUNCIL,HRA Service Delivery,982900,C L C Contractors Limited,20/04/2023,30100233,1010.45,0,Building Expenses,Property Maintenance Contractors,Invoice,BACS,No,06/04/2023 00:00,2023,1,INV017753,M5114,Repairs-Cyclical (BHS),B1002,Building Expenses,W3A05,Current Service Costs - Housing Services,W3A,Current Service Costs adjustment,W3,Current Service Costs,W,Other Operating Income and Expenditure
GUILDFORD BOROUGH COUNCIL,HRA Service Delivery,982900,C L C Contractors Limited,20/04/2023,30100233,834.41,0,Building Expenses,Property Maintenance Contractors,Invoice,BACS,No,06/04/2023 00:00,2023,1,INV017753,M5114,Repairs-Cyclical (BHS),B1002,Building Expenses,W3A05,Current Service Costs - Housing Services,W3A,Current Service Costs adjustment,W3,Current Service Costs,W,Other Operating Income and Expenditure
GUILDFORD BOROUGH COUNCIL,HRA Service Delivery,982900,C L C Contractors Limited,20/04/2023,30100233,273.85,0,Building Expenses,Property Maintenance Contractors,Invoice,BACS,No,06/04/2023 00:00,2023,1,INV017753,M5114,Repairs-Cyclical (BHS),B1002,Building Expenses,W3A05,Current Service Costs - Housing Services,W3A,Current Service Costs adjustment,W3,Current Service Costs,W,Other Operating Income and Expenditure
GUILDFORD BOROUGH COUNCIL,HRA Service Delivery,982900,C L C Contractors Limited,20/04/2023,30100233,1526.36,0,Building Expenses,Property Maintenance Contractors,Invoice,BACS,No,06/04/2023 00:00,2023,1,INV017753,M5114,Repairs-Cyclical (BHS),B1002,Building Expenses,W3A05,Current Service Costs - Housing Services,W3A,Current Service Costs adjustment,W3,Current Service Costs,W,Other Operating Income and Expenditure
GUILDFORD BOROUGH COUNCIL,HRA Service Delivery,982900,C L C Contractors Limited,20/04/2023,30100233,1041.2,0,Building Expenses,Property Maintenance Contractors,Invoice,BACS,No,06/04/2023 00:00,2023,1,INV017753,M5114,Repairs-Cyclical (BHS),B1002,Building Expenses,W3A05,Current Service Costs - Housing Services,W3A,Current Service Costs adjustment,W3,Current Service Costs,W,Other Operating Income and Expenditure
GUILDFORD BOROUGH COUNCIL,HRA Service Delivery,982900,C L C Contractors Limited,20/04/2023,30100233,430.24,0,Building Expenses,Property Maintenance Contractors,Invoice,BACS,No,06/04/2023 00:00,2023,1,INV017753,M5114,Repairs-Cyclical (BHS),B1002,Building Expenses,W3A05,Current Service Costs - Housing Services,W3A,Current Service Costs adjustment,W3,Current Service Costs,W,Other Operating Income and Expenditure
GUILDFORD BOROUGH COUNCIL,HRA Service Delivery,982900,C L C Contractors Limited,20/04/2023,30100233,267.71,0,Building Expenses,Property Maintenance Contractors,Invoice,BACS,No,06/04/2023 00:00,2023,1,INV017753,M5114,Repairs-Cyclical (BHS),B1002,Building Expenses,W3A05,Current Service Costs - Housing Services,W3A,Current Service Costs adjustment,W3,Current Service Costs,W,Other Operating Income and Expenditure
GUILDFORD BOROUGH COUNCIL,HRA Service Delivery,982900,C L C Contractors Limited,20/04/2023,30100233,2975.4,0,Building Expenses,Property Maintenance Contractors,Invoice,BACS,No,06/04/2023 00:00,2023,1,INV017753,M5114,Repairs-Cyclical (BHS),B1002,Building Expenses,W3A05,Current Service Costs - Housing Services,W3A,Current Service Costs adjustment,W3,Current Service Costs,W,Other Operating Income and Expenditure
GUILDFORD BOROUGH COUNCIL,HRA Service Delivery,982900,C L C Contractors Limited,20/04/2023,30100233,2896.86,0,Building Expenses,Property Maintenance Contractors,Invoice,BACS,No,06/04/2023 00:00,2023,1,INV017753,M5114,Repairs-Cyclical (BHS),B1002,Building Expenses,W3A05,Current Service Costs - Housing Services,W3A,Current Service Costs adjustment,W3,Current Service Costs,W,Other Operating Income and Expenditure
GUILDFORD BOROUGH COUNCIL,HRA Service Delivery,982900,C L C Contractors Limited,20/04/2023,30100234,7574.77,0,Building Expenses,Property Maintenance Contractors,Invoice,BACS,No,06/04/2023 00:00,2023,1,INV017762,M5114,Repairs-Cyclical (BHS),B1002,Building Expenses,W3A05,Current Service Costs - Housing Services,W3A,Current Service Costs adjustment,W3,Current Service Costs,W,Other Operating Income and Expenditure
GUILDFORD BOROUGH COUNCIL,HRA Service Delivery,982900,C L C Contractors Limited,20/04/2023,30100234,5237.38,0,Building Expenses,Property Maintenance Contractors,Invoice,BACS,No,06/04/2023 00:00,2023,1,INV017762,M5114,Repairs-Cyclical (BHS),B1002,Building Expenses,W3A05,Current Service Costs - Housing Services,W3A,Current Service Costs adjustment,W3,Current Service Costs,W,Other Operating Income and Expenditure
GUILDFORD BOROUGH COUNCIL,HRA Service Delivery,442770,Clearway Environmental Services (UK) Ltd,20/04/2023,30100414,2340,0,Asset Maintenance,Other Waste Disposal Suppliers,Invoice,BACS,No,28/03/2023 00:00,2023,1,553421,M5113,Repairs-Responsive (BHS),B1001,Asset Maintenance,W3A05,Current Service Costs - Housing Services,W3A,Current Service Costs adjustment,W3,Current Service Costs,W,Other Operating Income and Expenditure
GUILDFORD BOROUGH COUNCIL,Organisational Development,324350,Comensura Ltd,20/04/2023,30099919,38757.69,0,Agency,Other Recruitment Agencies And Service Providers,Invoice,BACS,No,09/04/2023 00:00,2023,1,1099492,G1161,Commensura Holding Account,A5191,Agency,W3A40,Current Service Costs - HR Admin,W3A,Current Service Costs adjustment,W3,Current Service Costs,W,Other Operating Income and Expenditure
GUILDFORD BOROUGH COUNCIL,Commercial Services,722880,Concrete Repairs Ltd,20/04/2023,30100451,1400,0,Asset Maintenance,"Concrete Cutting, Drilling And Maintenance Contractors",Invoice,BACS,No,28/02/2023 00:00,2023,1,SI000441,B2277,Castle Mscp,B1001,Asset Maintenance,HTP10,Off-Street Parking,HTP,Parking Services,HT,"Highways, Roads and Transport Services",H,"Highways, Roads and Transport Services"
GUILDFORD BOROUGH COUNCIL,Environmental Services,1000699,ETC Sports Surfaces Limited,20/04/2023,30090240,4105,0,Materials,,Invoice,BACS,No,08/12/2022 00:00,2023,1,8258,A1300,Trees And Countryside,D2003,Materials,CCE00,Community Parks & Open Spaces,CCE,Open Spaces,CC,Cultural & Related Services,C,"Cultural, Environmental & Planning Services"
GUILDFORD BOROUGH COUNCIL,Industrial Estates,1000613,Francis Construction Ltd,20/04/2023,30100276,131266.54,0,Contractor Payments,,Invoice,BACS,No,11/04/2023 00:00,2023,1,15391,P72037,Midleton Ind Est Redevelop,1233,Contractor Payments,XXX99,*** UNASSIGNED ***,WCC,CEC Recharges,WC,CEC Recharges,A,Central Services
GUILDFORD BOROUGH COUNCIL,Industrial Estates,1000613,Francis Construction Ltd,20/04/2023,30100276,110257.68,0,Contractor Payments,,Invoice,BACS,No,11/04/2023 00:00,2023,1,15391,P72037,Midleton Ind Est Redevelop,1233,Contractor Payments,XXX99,*** UNASSIGNED ***,WCC,CEC Recharges,WC,CEC Recharges,A,Central Services
GUILDFORD BOROUGH COUNCIL,Environmental Services,882220,Fuller Tyres Limited,20/04/2023,30099734,348,0,Materials,Other Vehicle Equipment Providers,Invoice,BACS,No,28/03/2023 00:00,2023,1,FTI-43520,K5551,Fleet Workshops,D2003,Materials,W3A48,Current Service Costs - Fleet Management,W3A,Current Service Costs adjustment,W3,Current Service Costs,W,Other Operating Income and Expenditure
GUILDFORD BOROUGH COUNCIL,Environmental Services,882220,Fuller Tyres Limited,20/04/2023,30099745,338.01,0,Materials,Other Vehicle Equipment Providers,Invoice,BACS,No,28/03/2023 00:00,2023,1,FTI-43489,K5551,Fleet Workshops,D2003,Materials,W3A48,Current Service Costs - Fleet Management,W3A,Current Service Costs adjustment,W3,Current Service Costs,W,Other Operating Income and Expenditure
GUILDFORD BOROUGH COUNCIL,HRA Service Delivery,1000773,Gas Advisory Services Ltd T/A Phoenix Compliancy Management,20/04/2023,30100469,297.2,0,Consultancy,,Invoice,BACS,No,19/12/2022 00:00,2023,1,20460,M5113,Repairs-Responsive (BHS),D6001,Consultancy,W3A05,Current Service Costs - Housing Services,W3A,Current Service Costs adjustment,W3,Current Service Costs,W,Other Operating Income and Expenditure
GUILDFORD BOROUGH COUNCIL,HRA Service Delivery,1000773,Gas Advisory Services Ltd T/A Phoenix Compliancy Management,20/04/2023,30100470,297.2,0,Consultancy,,Invoice,BACS,No,19/12/2022 00:00,2023,1,20461,M5113,Repairs-Responsive (BHS),D6001,Consultancy,W3A05,Current Service Costs - Housing Services,W3A,Current Service Costs adjustment,W3,Current Service Costs,W,Other Operating Income and Expenditure
GUILDFORD BOROUGH COUNCIL,HRA Service Delivery,217900,Glencross Cleaning Limited,20/04/2023,30100179,450,0,Cleaning Contractors,Other Cleaning And Janitorial Service Providers,Invoice,BACS,No,27/02/2023 00:00,2023,1,26801,M5113,Repairs-Responsive (BHS),D6006,Cleaning Contractors,W3A05,Current Service Costs - Housing Services,W3A,Current Service Costs adjustment,W3,Current Service Costs,W,Other Operating Income and Expenditure
GUILDFORD BOROUGH COUNCIL,HRA Service Delivery,217900,Glencross Cleaning Limited,20/04/2023,30100473,400,0,Cleaning Contractors,Other Cleaning And Janitorial Service Providers,Invoice,BACS,No,24/03/2023 00:00,2023,1,26894,M5113,Repairs-Responsive (BHS),D6006,Cleaning Contractors,W3A05,Current Service Costs - Housing Services,W3A,Current Service Costs adjustment,W3,Current Service Costs,W,Other Operating Income and Expenditure
GUILDFORD BOROUGH COUNCIL,HRA Service Delivery,648550,J T S Civil Engineers Ltd,20/04/2023,30100169,975,0,Asset Maintenance,Sewerage And Drainage Service Providers,Invoice,BACS,No,03/02/2023 00:00,2023,1,158970,M5113,Repairs-Responsive (BHS),B1001,Asset Maintenance,W3A05,Current Service Costs - Housing Services,W3A,Current Service Costs adjustment,W3,Current Service Costs,W,Other Operating Income and Expenditure
GUILDFORD BOROUGH COUNCIL,HRA Service Delivery,648550,J T S Civil Engineers Ltd,20/04/2023,30100170,1875,0,Asset Maintenance,Sewerage And Drainage Service Providers,Invoice,BACS,No,04/02/2023 00:00,2023,1,158979,M5113,Repairs-Responsive (BHS),B1001,Asset Maintenance,W3A05,Current Service Costs - Housing Services,W3A,Current Service Costs adjustment,W3,Current Service Costs,W,Other Operating Income and Expenditure
GUILDFORD BOROUGH COUNCIL,Assets and Property,748360,JC Electrics (Guildford) Ltd,20/04/2023,30100163,11611,0,Asset Maintenance,Electrical Wiring And Parts Suppliers,Invoice,BACS,No,29/03/2023 00:00,2023,1,M1174,G7515,Old Millmead House,B1001,Asset Maintenance,DBX45,Property Services,DBX,Support Service and Management Costs,DB,Children's Social Care,E,Childrens and Education Services
GUILDFORD BOROUGH COUNCIL,Commercial Services,748360,JC Electrics (Guildford) Ltd,20/04/2023,30100402,2058.2,0,Maintenance Contracts,Electrical Wiring And Parts Suppliers,Invoice,BACS,No,30/03/2023 00:00,2023,1,M1182,A5511,Museum,D1002,Maintenance Contracts,CCA30,Museums & Galleries,CCA,Culture & Heritage,CC,Cultural & Related Services,C,"Cultural, Environmental & Planning Services"
GUILDFORD BOROUGH COUNCIL,Community Services,748360,JC Electrics (Guildford) Ltd,20/04/2023,30100403,256.4,0,Asset Maintenance,Electrical Wiring And Parts Suppliers,Invoice,BACS,No,30/03/2023 00:00,2023,1,M1183,C8100,Community Hubs,B1001,Asset Maintenance,KGU00,Supporting People - Strategy,KGU,Supporting People,KG,Housing General Fund,K,Housing Services
GUILDFORD BOROUGH COUNCIL,Environmental Services,299800,Lister Wilder Ltd,20/04/2023,30099333,1625.53,0,Repair And Maintenance Of Vehicles,Emergency And Other Specialist Vehicle Dealers,Invoice,BACS,No,28/03/2023 00:00,2023,1,523873,K5551,Fleet Workshops,C1002,Repair And Maintenance Of Vehicles,W3A48,Current Service Costs - Fleet Management,W3A,Current Service Costs adjustment,W3,Current Service Costs,W,Other Operating Income and Expenditure
GUILDFORD BOROUGH COUNCIL,Environmental Services,299800,Lister Wilder Ltd,20/04/2023,30099335,1833.44,0,Repair And Maintenance Of Vehicles,Emergency And Other Specialist Vehicle Dealers,Invoice,BACS,No,28/03/2023 00:00,2023,1,523872,K5551,Fleet Workshops,C1002,Repair And Maintenance Of Vehicles,W3A48,Current Service Costs - Fleet Management,W3A,Current Service Costs adjustment,W3,Current Service Costs,W,Other Operating Income and Expenditure
GUILDFORD BOROUGH COUNCIL,Environmental Services,299800,Lister Wilder Ltd,20/04/2023,30099289,944.12,0,Repair And Maintenance Of Vehicles,Emergency And Other Specialist Vehicle Dealers,Invoice,BACS,No,28/03/2023 00:00,2023,1,523870,K5551,Fleet Workshops,C1002,Repair And Maintenance Of Vehicles,W3A48,Current Service Costs - Fleet Management,W3A,Current Service Costs adjustment,W3,Current Service Costs,W,Other Operating Income and Expenditure
GUILDFORD BOROUGH COUNCIL,Community Services,951870,Martin & Co Lettings,20/04/2023,30100320,3876,0,Emergency Accomodation,,Invoice,BACS,No,18/04/2023 00:00,2023,1,Deacon Way deposit & RIA,C3321,Refugee Support,D8009,Emergency Accomodation,SSU00,Social Support  - Asylum Seeker Support,SSU,Social Support - Asylum Seeker Support,SS,Adult Social Care,S,Adult Social Care
GUILDFORD BOROUGH COUNCIL,HRA Service Delivery,151880,Pirbright Electrical Contractors Ltd,20/04/2023,30100406,919.6,0,Asset Maintenance,Electricians,Invoice,BACS,No,27/03/2023 00:00,2023,1,45349,M2646,Bishops Court 1-40 (40),B1001,Asset Maintenance,W3A05,Current Service Costs - Housing Services,W3A,Current Service Costs adjustment,W3,Current Service Costs,W,Other Operating Income and Expenditure
GUILDFORD BOROUGH COUNCIL,Finance,146830,PricewaterhouseCoopers LLP,20/04/2023,30100360,2700,0,Consultancy,Multi-Discipline Management Consultants,Invoice,BACS,No,22/03/2023 00:00,2023,1,1355989629,G3565,Finance Specialists,D6001,Consultancy,DBX35,Finance (including Internal Audit),DBX,Support Service and Management Costs,DB,Children's Social Care,E,Childrens and Education Services
GUILDFORD BOROUGH COUNCIL,Environmental Services,720900,Rossetts (UK) Ltd,20/04/2023,30099329,393.72,0,Repair And Maintenance Of Vehicles,Truck And Bus Dealers,Invoice,BACS,No,28/03/2023 00:00,2023,1,52595791,K5551,Fleet Workshops,C1002,Repair And Maintenance Of Vehicles,W3A48,Current Service Costs - Fleet Management,W3A,Current Service Costs adjustment,W3,Current Service Costs,W,Other Operating Income and Expenditure
GUILDFORD BOROUGH COUNCIL,Environmental Services,720900,Rossetts (UK) Ltd,20/04/2023,30098965,477.58,0,Repair And Maintenance Of Vehicles,Truck And Bus Dealers,Invoice,BACS,No,28/03/2023 00:00,2023,1,52595901,K5551,Fleet Workshops,C1002,Repair And Maintenance Of Vehicles,W3A48,Current Service Costs - Fleet Management,W3A,Current Service Costs adjustment,W3,Current Service Costs,W,Other Operating Income and Expenditure
GUILDFORD BOROUGH COUNCIL,Commercial Services,836600,Salnor Roofing Services Ltd,20/04/2023,30100297,337.5,0,GF Assets - Maintenance,Roofers,Invoice,BACS,No,18/04/2023 00:00,2023,1,PN/R19947/2/APR,A2141,G Live,B1004,GF Assets - Maintenance,CCA10,Arts Development & Support,CCA,Culture & Heritage,CC,Cultural & Related Services,C,"Cultural, Environmental & Planning Services"
GUILDFORD BOROUGH COUNCIL,Executive - Miscellaneous,453690,Savills (L&P) Limited,20/04/2023,30098910,1700,0,Consultants Fees,Property Letting And Estate Agents,Invoice,BACS,No,31/12/2022 00:00,2023,1,INSU00294284,P79100,Wuv - Allotment Relocation,1221,Consultants Fees,XXX99,*** UNASSIGNED ***,WCC,CEC Recharges,WC,CEC Recharges,A,Central Services
GUILDFORD BOROUGH COUNCIL,Modern Homes,1000554,Seville Developments,20/04/2023,30100191,11500,0,Contractor Payments,,Invoice,BACS,No,31/03/2023 00:00,2023,1,6970,N42068,"Kitchen, bathroom and electrical upgrades",1233,Contractor Payments,XXX99,*** UNASSIGNED ***,WCC,CEC Recharges,WC,CEC Recharges,A,Central Services
GUILDFORD BOROUGH COUNCIL,Modern Homes,1000554,Seville Developments,20/04/2023,30100191,11500,0,Contractor Payments,,Invoice,BACS,No,31/03/2023 00:00,2023,1,6970,N42068,"Kitchen, bathroom and electrical upgrades",1233,Contractor Payments,XXX99,*** UNASSIGNED ***,WCC,CEC Recharges,WC,CEC Recharges,A,Central Services
GUILDFORD BOROUGH COUNCIL,Modern Homes,1000554,Seville Developments,20/04/2023,30100191,11500,0,Contractor Payments,,Invoice,BACS,No,31/03/2023 00:00,2023,1,6970,N42068,"Kitchen, bathroom and electrical upgrades",1233,Contractor Payments,XXX99,*** UNASSIGNED ***,WCC,CEC Recharges,WC,CEC Recharges,A,Central Services
GUILDFORD BOROUGH COUNCIL,Modern Homes,1000554,Seville Developments,20/04/2023,30100191,11500,0,Contractor Payments,,Invoice,BACS,No,31/03/2023 00:00,2023,1,6970,N42068,"Kitchen, bathroom and electrical upgrades",1233,Contractor Payments,XXX99,*** UNASSIGNED ***,WCC,CEC Recharges,WC,CEC Recharges,A,Central Services
GUILDFORD BOROUGH COUNCIL,Modern Homes,1000554,Seville Developments,20/04/2023,30100191,3874.5,0,Contractor Payments,,Invoice,BACS,No,31/03/2023 00:00,2023,1,6970,N42068,"Kitchen, bathroom and electrical upgrades",1233,Contractor Payments,XXX99,*** UNASSIGNED ***,WCC,CEC Recharges,WC,CEC Recharges,A,Central Services
GUILDFORD BOROUGH COUNCIL,Modern Homes,1000554,Seville Developments,20/04/2023,30100191,7625.5,0,Contractor Payments,,Invoice,BACS,No,31/03/2023 00:00,2023,1,6970,N42068,"Kitchen, bathroom and electrical upgrades",1233,Contractor Payments,XXX99,*** UNASSIGNED ***,WCC,CEC Recharges,WC,CEC Recharges,A,Central Services
GUILDFORD BOROUGH COUNCIL,Modern Homes,1000554,Seville Developments,20/04/2023,30100191,11500,0,Contractor Payments,,Invoice,BACS,No,31/03/2023 00:00,2023,1,6970,N42068,"Kitchen, bathroom and electrical upgrades",1233,Contractor Payments,XXX99,*** UNASSIGNED ***,WCC,CEC Recharges,WC,CEC Recharges,A,Central Services
GUILDFORD BOROUGH COUNCIL,Modern Homes,1000554,Seville Developments,20/04/2023,30100191,8064,0,Contractor Payments,,Invoice,BACS,No,31/03/2023 00:00,2023,1,6970,N42068,"Kitchen, bathroom and electrical upgrades",1233,Contractor Payments,XXX99,*** UNASSIGNED ***,WCC,CEC Recharges,WC,CEC Recharges,A,Central Services
GUILDFORD BOROUGH COUNCIL,Modern Homes,1000554,Seville Developments,20/04/2023,30100191,7526.82,0,Contractor Payments,,Invoice,BACS,No,31/03/2023 00:00,2023,1,6970,N42068,"Kitchen, bathroom and electrical upgrades",1233,Contractor Payments,XXX99,*** UNASSIGNED ***,WCC,CEC Recharges,WC,CEC Recharges,A,Central Services
GUILDFORD BOROUGH COUNCIL,Modern Homes,1000554,Seville Developments,20/04/2023,30100192,17402.95,0,Contractor Payments,,Invoice,BACS,No,09/04/2023 00:00,2023,1,6986,N42069,Void Properties - refurbishment,1233,Contractor Payments,XXX99,*** UNASSIGNED ***,WCC,CEC Recharges,WC,CEC Recharges,A,Central Services
GUILDFORD BOROUGH COUNCIL,Modern Homes,1000554,Seville Developments,20/04/2023,30100193,8590.79,0,Contractor Payments,,Invoice,BACS,No,09/04/2023 00:00,2023,1,6987,N42068,"Kitchen, bathroom and electrical upgrades",1233,Contractor Payments,XXX99,*** UNASSIGNED ***,WCC,CEC Recharges,WC,CEC Recharges,A,Central Services
GUILDFORD BOROUGH COUNCIL,Modern Homes,1000554,Seville Developments,20/04/2023,30100194,5418.41,0,Contractor Payments,,Invoice,BACS,No,09/04/2023 00:00,2023,1,6988,N42069,Void Properties - refurbishment,1233,Contractor Payments,XXX99,*** UNASSIGNED ***,WCC,CEC Recharges,WC,CEC Recharges,A,Central Services
GUILDFORD BOROUGH COUNCIL,Modern Homes,1000554,Seville Developments,20/04/2023,30100195,11932.26,0,Contractor Payments,,Invoice,BACS,No,09/04/2023 00:00,2023,1,6989,N42068,"Kitchen, bathroom and electrical upgrades",1233,Contractor Payments,XXX99,*** UNASSIGNED ***,WCC,CEC Recharges,WC,CEC Recharges,A,Central Services
GUILDFORD BOROUGH COUNCIL,Modern Homes,1000554,Seville Developments,20/04/2023,30100196,7625,0,Contractor Payments,,Invoice,BACS,No,09/04/2023 00:00,2023,1,6990,N42068,"Kitchen, bathroom and electrical upgrades",1233,Contractor Payments,XXX99,*** UNASSIGNED ***,WCC,CEC Recharges,WC,CEC Recharges,A,Central Services
GUILDFORD BOROUGH COUNCIL,Modern Homes,1000554,Seville Developments,20/04/2023,30100197,4385.61,0,Contractor Payments,,Invoice,BACS,No,09/04/2023 00:00,2023,1,6991,N42069,Void Properties - refurbishment,1233,Contractor Payments,XXX99,*** UNASSIGNED ***,WCC,CEC Recharges,WC,CEC Recharges,A,Central Services
GUILDFORD BOROUGH COUNCIL,Modern Homes,1000554,Seville Developments,20/04/2023,30100198,11750,0,Contractor Payments,,Invoice,BACS,No,09/04/2023 00:00,2023,1,6992,N42068,"Kitchen, bathroom and electrical upgrades",1233,Contractor Payments,XXX99,*** UNASSIGNED ***,WCC,CEC Recharges,WC,CEC Recharges,A,Central Services
GUILDFORD BOROUGH COUNCIL,Modern Homes,1000554,Seville Developments,20/04/2023,30100199,7625,0,Contractor Payments,,Invoice,BACS,No,09/04/2023 00:00,2023,1,6993,N42068,"Kitchen, bathroom and electrical upgrades",1233,Contractor Payments,XXX99,*** UNASSIGNED ***,WCC,CEC Recharges,WC,CEC Recharges,A,Central Services
GUILDFORD BOROUGH COUNCIL,Modern Homes,1000554,Seville Developments,20/04/2023,30100200,5217.2,0,Contractor Payments,,Invoice,BACS,No,09/04/2023 00:00,2023,1,6994,N42068,"Kitchen, bathroom and electrical upgrades",1233,Contractor Payments,XXX99,*** UNASSIGNED ***,WCC,CEC Recharges,WC,CEC Recharges,A,Central Services
GUILDFORD BOROUGH COUNCIL,Modern Homes,1000554,Seville Developments,20/04/2023,30100201,12077.82,0,Contractor Payments,,Invoice,BACS,No,09/04/2023 00:00,2023,1,6995,N42068,"Kitchen, bathroom and electrical upgrades",1233,Contractor Payments,XXX99,*** UNASSIGNED ***,WCC,CEC Recharges,WC,CEC Recharges,A,Central Services
GUILDFORD BOROUGH COUNCIL,Modern Homes,1000554,Seville Developments,20/04/2023,30100202,7778.02,0,Contractor Payments,,Invoice,BACS,No,09/04/2023 00:00,2023,1,6996,N42068,"Kitchen, bathroom and electrical upgrades",1233,Contractor Payments,XXX99,*** UNASSIGNED ***,WCC,CEC Recharges,WC,CEC Recharges,A,Central Services
GUILDFORD BOROUGH COUNCIL,Modern Homes,1000554,Seville Developments,20/04/2023,30100203,6577.97,0,Contractor Payments,,Invoice,BACS,No,10/04/2023 00:00,2023,1,6997,N42069,Void Properties - refurbishment,1233,Contractor Payments,XXX99,*** UNASSIGNED ***,WCC,CEC Recharges,WC,CEC Recharges,A,Central Services
GUILDFORD BOROUGH COUNCIL,Modern Homes,1000554,Seville Developments,20/04/2023,30100204,12402.53,0,Contractor Payments,,Invoice,BACS,No,10/04/2023 00:00,2023,1,6998,N42068,"Kitchen, bathroom and electrical upgrades",1233,Contractor Payments,XXX99,*** UNASSIGNED ***,WCC,CEC Recharges,WC,CEC Recharges,A,Central Services
GUILDFORD BOROUGH COUNCIL,Modern Homes,1000554,Seville Developments,20/04/2023,30100205,7950.21,0,Contractor Payments,,Invoice,BACS,No,10/04/2023 00:00,2023,1,6999,N42068,"Kitchen, bathroom and electrical upgrades",1233,Contractor Payments,XXX99,*** UNASSIGNED ***,WCC,CEC Recharges,WC,CEC Recharges,A,Central Services
GUILDFORD BOROUGH COUNCIL,Modern Homes,1000554,Seville Developments,20/04/2023,30100206,19090.43,0,Contractor Payments,,Invoice,BACS,No,10/04/2023 00:00,2023,1,7000,N42069,Void Properties - refurbishment,1233,Contractor Payments,XXX99,*** UNASSIGNED ***,WCC,CEC Recharges,WC,CEC Recharges,A,Central Services
GUILDFORD BOROUGH COUNCIL,Modern Homes,1000554,Seville Developments,20/04/2023,30100207,14711.82,0,Contractor Payments,,Invoice,BACS,No,10/04/2023 00:00,2023,1,7001,N42068,"Kitchen, bathroom and electrical upgrades",1233,Contractor Payments,XXX99,*** UNASSIGNED ***,WCC,CEC Recharges,WC,CEC Recharges,A,Central Services
GUILDFORD BOROUGH COUNCIL,Modern Homes,1000554,Seville Developments,20/04/2023,30100208,9573.28,0,Contractor Payments,,Invoice,BACS,No,10/04/2023 00:00,2023,1,7002,N42068,"Kitchen, bathroom and electrical upgrades",1233,Contractor Payments,XXX99,*** UNASSIGNED ***,WCC,CEC Recharges,WC,CEC Recharges,A,Central Services
GUILDFORD BOROUGH COUNCIL,Modern Homes,1000554,Seville Developments,20/04/2023,30100209,10242.77,0,Contractor Payments,,Invoice,BACS,No,10/04/2023 00:00,2023,1,7003,N42068,"Kitchen, bathroom and electrical upgrades",1233,Contractor Payments,XXX99,*** UNASSIGNED ***,WCC,CEC Recharges,WC,CEC Recharges,A,Central Services
GUILDFORD BOROUGH COUNCIL,Modern Homes,1000554,Seville Developments,20/04/2023,30100210,6750,0,Contractor Payments,,Invoice,BACS,No,10/04/2023 00:00,2023,1,7004,N47034,Pitched roof replacement,1233,Contractor Payments,XXX99,*** UNASSIGNED ***,WCC,CEC Recharges,WC,CEC Recharges,A,Central Services
GUILDFORD BOROUGH COUNCIL,Doors and Windows,1000554,Seville Developments,20/04/2023,30100211,1904.07,0,Contractor Payments,,Invoice,BACS,No,10/04/2023 00:00,2023,1,7005,N45075,Replacement of windows and doors,1233,Contractor Payments,XXX99,*** UNASSIGNED ***,WCC,CEC Recharges,WC,CEC Recharges,A,Central Services
GUILDFORD BOROUGH COUNCIL,Environmental Services,1000758,SMS Environmental Limited,20/04/2023,30100175,270,0,Asset Maintenance,,Invoice,BACS,No,28/02/2023 00:00,2023,1,146464,A1250,Stoke Park,B1001,Asset Maintenance,CCE00,Community Parks & Open Spaces,CCE,Open Spaces,CC,Cultural & Related Services,C,"Cultural, Environmental & Planning Services"
GUILDFORD BOROUGH COUNCIL,Environmental Services,1000758,SMS Environmental Limited,20/04/2023,30100175,270,0,Asset Maintenance,,Invoice,BACS,No,28/02/2023 00:00,2023,1,146464,A1250,Stoke Park,B1001,Asset Maintenance,CCE00,Community Parks & Open Spaces,CCE,Open Spaces,CC,Cultural & Related Services,C,"Cultural, Environmental & Planning Services"
GUILDFORD BOROUGH COUNCIL,Environmental Services,1000758,SMS Environmental Limited,20/04/2023,30100175,270,0,Asset Maintenance,,Invoice,BACS,No,28/02/2023 00:00,2023,1,146464,A1600,Stoke Park Depot,B1001,Asset Maintenance,CCE00,Community Parks & Open Spaces,CCE,Open Spaces,CC,Cultural & Related Services,C,"Cultural, Environmental & Planning Services"
GUILDFORD BOROUGH COUNCIL,Community Services,1000758,SMS Environmental Limited,20/04/2023,30100175,295,0,Asset Maintenance,,Invoice,BACS,No,28/02/2023 00:00,2023,1,146464,A8121,Bellfields Youth and Community Centre,B1001,Asset Maintenance,CCD00,Community Centres and Public Halls,CCD,Recreation & Sport,CC,Cultural & Related Services,C,"Cultural, Environmental & Planning Services"
GUILDFORD BOROUGH COUNCIL,Community Services,1000758,SMS Environmental Limited,20/04/2023,30100175,315,0,Asset Maintenance,,Invoice,BACS,No,28/02/2023 00:00,2023,1,146464,A8141,Park Barn Youth and Community Centre,B1001,Asset Maintenance,CCD00,Community Centres and Public Halls,CCD,Recreation & Sport,CC,Cultural & Related Services,C,"Cultural, Environmental & Planning Services"
GUILDFORD BOROUGH COUNCIL,HRA Service Delivery,913700,Stannah Limited (CIS),20/04/2023,30100215,279.4,0,Asset Maintenance,Stairlift Suppliers,Invoice,BACS,No,31/03/2023 00:00,2023,1,1085532983,M5113,Repairs-Responsive (BHS),B1001,Asset Maintenance,W3A05,Current Service Costs - Housing Services,W3A,Current Service Costs adjustment,W3,Current Service Costs,W,Other Operating Income and Expenditure
GUILDFORD BOROUGH COUNCIL,Regulatory Services,230230,Surrey County Council,20/04/2023,30100374,6862,0,Grants And Subscriptions,Local Government [Uk Only],Invoice,BACS,No,19/04/2023 00:00,2023,1,9500327092,F1511,Civil Emergencies,D9001,Grants And Subscriptions,ACG00,Emergency Planning,ACG,Emergency Planning,AC,Central Services to the Public,A,Central Services
GUILDFORD BOROUGH COUNCIL,Environmental Services,969701,Teleshore (UK) Ltd,20/04/2023,30100363,1580,0,Equipment,,Invoice,BACS,No,20/12/2022 00:00,2023,1,38672,A1500,Crematorium,D2001,Equipment,CEA10,Crematoria,CEA,"Cemetery, Cremation and Mortuary Services",CE,Environmental & Regulatory Services,C,"Cultural, Environmental & Planning Services"
GUILDFORD BOROUGH COUNCIL,Heating,692680,TSG Building Services Plc,20/04/2023,30100416,3162.6,0,Contractor Payments,General Builders,Invoice,BACS,No,28/02/2023 00:00,2023,1,1123-0703,N44075,Central heating boiler upgrades,1233,Contractor Payments,XXX99,*** UNASSIGNED ***,WCC,CEC Recharges,WC,CEC Recharges,A,Central Services
GUILDFORD BOROUGH COUNCIL,Heating,692680,TSG Building Services Plc,20/04/2023,30100417,3280.69,0,Contractor Payments,General Builders,Invoice,BACS,No,28/02/2023 00:00,2023,1,1123-0704,N44075,Central heating boiler upgrades,1233,Contractor Payments,XXX99,*** UNASSIGNED ***,WCC,CEC Recharges,WC,CEC Recharges,A,Central Services
GUILDFORD BOROUGH COUNCIL,Heating,692680,TSG Building Services Plc,20/04/2023,30100418,2301.92,0,Contractor Payments,General Builders,Invoice,BACS,No,28/02/2023 00:00,2023,1,1123-0705,N44075,Central heating boiler upgrades,1233,Contractor Payments,XXX99,*** UNASSIGNED ***,WCC,CEC Recharges,WC,CEC Recharges,A,Central Services
GUILDFORD BOROUGH COUNCIL,Heating,692680,TSG Building Services Plc,20/04/2023,30100419,4388.53,0,Contractor Payments,General Builders,Invoice,BACS,No,28/02/2023 00:00,2023,1,1123-0706,N44075,Central heating boiler upgrades,1233,Contractor Payments,XXX99,*** UNASSIGNED ***,WCC,CEC Recharges,WC,CEC Recharges,A,Central Services
GUILDFORD BOROUGH COUNCIL,Heating,692680,TSG Building Services Plc,20/04/2023,30100420,2391.96,0,Contractor Payments,General Builders,Invoice,BACS,No,28/02/2023 00:00,2023,1,1123-0707,N44075,Central heating boiler upgrades,1233,Contractor Payments,XXX99,*** UNASSIGNED ***,WCC,CEC Recharges,WC,CEC Recharges,A,Central Services
GUILDFORD BOROUGH COUNCIL,Heating,692680,TSG Building Services Plc,20/04/2023,30100421,2579.98,0,Contractor Payments,General Builders,Invoice,BACS,No,28/02/2023 00:00,2023,1,1123-0708,N44075,Central heating boiler upgrades,1233,Contractor Payments,XXX99,*** UNASSIGNED ***,WCC,CEC Recharges,WC,CEC Recharges,A,Central Services
GUILDFORD BOROUGH COUNCIL,Heating,692680,TSG Building Services Plc,20/04/2023,30100422,3468.71,0,Contractor Payments,General Builders,Invoice,BACS,No,28/02/2023 00:00,2023,1,1123-0709,N44075,Central heating boiler upgrades,1233,Contractor Payments,XXX99,*** UNASSIGNED ***,WCC,CEC Recharges,WC,CEC Recharges,A,Central Services
GUILDFORD BOROUGH COUNCIL,Heating,692680,TSG Building Services Plc,20/04/2023,30100423,2379.93,0,Contractor Payments,General Builders,Invoice,BACS,No,28/02/2023 00:00,2023,1,1123-0710,N44075,Central heating boiler upgrades,1233,Contractor Payments,XXX99,*** UNASSIGNED ***,WCC,CEC Recharges,WC,CEC Recharges,A,Central Services
GUILDFORD BOROUGH COUNCIL,Heating,692680,TSG Building Services Plc,20/04/2023,30100424,4393.06,0,Contractor Payments,General Builders,Invoice,BACS,No,28/02/2023 00:00,2023,1,1123-0711,N44075,Central heating boiler upgrades,1233,Contractor Payments,XXX99,*** UNASSIGNED ***,WCC,CEC Recharges,WC,CEC Recharges,A,Central Services
GUILDFORD BOROUGH COUNCIL,Heating,692680,TSG Building Services Plc,20/04/2023,30100425,2493.59,0,Contractor Payments,General Builders,Invoice,BACS,No,28/02/2023 00:00,2023,1,1123-0712,N44075,Central heating boiler upgrades,1233,Contractor Payments,XXX99,*** UNASSIGNED ***,WCC,CEC Recharges,WC,CEC Recharges,A,Central Services
GUILDFORD BOROUGH COUNCIL,Heating,692680,TSG Building Services Plc,20/04/2023,30100426,2268.14,0,Contractor Payments,General Builders,Invoice,BACS,No,28/02/2023 00:00,2023,1,1123-0713,N44075,Central heating boiler upgrades,1233,Contractor Payments,XXX99,*** UNASSIGNED ***,WCC,CEC Recharges,WC,CEC Recharges,A,Central Services
GUILDFORD BOROUGH COUNCIL,Heating,692680,TSG Building Services Plc,20/04/2023,30100427,3755.96,0,Contractor Payments,General Builders,Invoice,BACS,No,28/02/2023 00:00,2023,1,1123-0714,N44075,Central heating boiler upgrades,1233,Contractor Payments,XXX99,*** UNASSIGNED ***,WCC,CEC Recharges,WC,CEC Recharges,A,Central Services
GUILDFORD BOROUGH COUNCIL,Heating,692680,TSG Building Services Plc,20/04/2023,30100428,3558.59,0,Contractor Payments,General Builders,Invoice,BACS,No,28/02/2023 00:00,2023,1,1123-0715,N44075,Central heating boiler upgrades,1233,Contractor Payments,XXX99,*** UNASSIGNED ***,WCC,CEC Recharges,WC,CEC Recharges,A,Central Services
GUILDFORD BOROUGH COUNCIL,Heating,692680,TSG Building Services Plc,20/04/2023,30100429,2391.68,0,Contractor Payments,General Builders,Invoice,BACS,No,28/02/2023 00:00,2023,1,1123-0716,N44075,Central heating boiler upgrades,1233,Contractor Payments,XXX99,*** UNASSIGNED ***,WCC,CEC Recharges,WC,CEC Recharges,A,Central Services
GUILDFORD BOROUGH COUNCIL,Heating,692680,TSG Building Services Plc,20/04/2023,30100430,3434.87,0,Contractor Payments,General Builders,Invoice,BACS,No,28/02/2023 00:00,2023,1,1123-0717,N44075,Central heating boiler upgrades,1233,Contractor Payments,XXX99,*** UNASSIGNED ***,WCC,CEC Recharges,WC,CEC Recharges,A,Central Services
GUILDFORD BOROUGH COUNCIL,Heating,692680,TSG Building Services Plc,20/04/2023,30100431,3470.48,0,Contractor Payments,General Builders,Invoice,BACS,No,28/02/2023 00:00,2023,1,1123-0718,N44075,Central heating boiler upgrades,1233,Contractor Payments,XXX99,*** UNASSIGNED ***,WCC,CEC Recharges,WC,CEC Recharges,A,Central Services
GUILDFORD BOROUGH COUNCIL,Heating,692680,TSG Building Services Plc,20/04/2023,30100432,2325.09,0,Contractor Payments,General Builders,Invoice,BACS,No,28/02/2023 00:00,2023,1,1123-0719,N44075,Central heating boiler upgrades,1233,Contractor Payments,XXX99,*** UNASSIGNED ***,WCC,CEC Recharges,WC,CEC Recharges,A,Central Services
GUILDFORD BOROUGH COUNCIL,Heating,692680,TSG Building Services Plc,20/04/2023,30100433,3344.27,0,Contractor Payments,General Builders,Invoice,BACS,No,28/02/2023 00:00,2023,1,1123-0720,N44075,Central heating boiler upgrades,1233,Contractor Payments,XXX99,*** UNASSIGNED ***,WCC,CEC Recharges,WC,CEC Recharges,A,Central Services
GUILDFORD BOROUGH COUNCIL,Heating,692680,TSG Building Services Plc,20/04/2023,30100434,4743.24,0,Contractor Payments,General Builders,Invoice,BACS,No,28/02/2023 00:00,2023,1,1123-0721,N44075,Central heating boiler upgrades,1233,Contractor Payments,XXX99,*** UNASSIGNED ***,WCC,CEC Recharges,WC,CEC Recharges,A,Central Services
GUILDFORD BOROUGH COUNCIL,Heating,692680,TSG Building Services Plc,20/04/2023,30100435,3194.15,0,Contractor Payments,General Builders,Invoice,BACS,No,28/02/2023 00:00,2023,1,1123-0722,N44075,Central heating boiler upgrades,1233,Contractor Payments,XXX99,*** UNASSIGNED ***,WCC,CEC Recharges,WC,CEC Recharges,A,Central Services
GUILDFORD BOROUGH COUNCIL,Heating,692680,TSG Building Services Plc,20/04/2023,30100436,2675.65,0,Contractor Payments,General Builders,Invoice,BACS,No,28/02/2023 00:00,2023,1,1123-0723,N44075,Central heating boiler upgrades,1233,Contractor Payments,XXX99,*** UNASSIGNED ***,WCC,CEC Recharges,WC,CEC Recharges,A,Central Services
GUILDFORD BOROUGH COUNCIL,Heating,692680,TSG Building Services Plc,20/04/2023,30100437,2792.91,0,Contractor Payments,General Builders,Invoice,BACS,No,28/02/2023 00:00,2023,1,1123-0724,N44075,Central heating boiler upgrades,1233,Contractor Payments,XXX99,*** UNASSIGNED ***,WCC,CEC Recharges,WC,CEC Recharges,A,Central Services
GUILDFORD BOROUGH COUNCIL,HRA Service Delivery,692680,TSG Building Services Plc,20/04/2023,30100438,2379.93,0,Asset Maintenance,General Builders,Invoice,BACS,No,28/02/2023 00:00,2023,1,1123-0768,M5113,Repairs-Responsive (BHS),B1001,Asset Maintenance,W3A05,Current Service Costs - Housing Services,W3A,Current Service Costs adjustment,W3,Current Service Costs,W,Other Operating Income and Expenditure
GUILDFORD BOROUGH COUNCIL,Heating,692680,TSG Building Services Plc,20/04/2023,30100439,2540.56,0,Contractor Payments,General Builders,Invoice,BACS,No,31/03/2023 00:00,2023,1,1223-0547,N44075,Central heating boiler upgrades,1233,Contractor Payments,XXX99,*** UNASSIGNED ***,WCC,CEC Recharges,WC,CEC Recharges,A,Central Services
GUILDFORD BOROUGH COUNCIL,Modern Homes,692680,TSG Building Services Plc,20/04/2023,30100440,5405.76,0,Contractor Payments,General Builders,Invoice,BACS,No,31/03/2023 00:00,2023,1,1223-0548,N42069,Void Properties - refurbishment,1233,Contractor Payments,XXX99,*** UNASSIGNED ***,WCC,CEC Recharges,WC,CEC Recharges,A,Central Services
GUILDFORD BOROUGH COUNCIL,Heating,692680,TSG Building Services Plc,20/04/2023,30100441,2573.46,0,Contractor Payments,General Builders,Invoice,BACS,No,31/03/2023 00:00,2023,1,1223-0549,N44075,Central heating boiler upgrades,1233,Contractor Payments,XXX99,*** UNASSIGNED ***,WCC,CEC Recharges,WC,CEC Recharges,A,Central Services
GUILDFORD BOROUGH COUNCIL,Heating,692680,TSG Building Services Plc,20/04/2023,30100442,4140.62,0,Contractor Payments,General Builders,Invoice,BACS,No,31/03/2023 00:00,2023,1,1223-0550,N44075,Central heating boiler upgrades,1233,Contractor Payments,XXX99,*** UNASSIGNED ***,WCC,CEC Recharges,WC,CEC Recharges,A,Central Services
GUILDFORD BOROUGH COUNCIL,Heating,692680,TSG Building Services Plc,20/04/2023,30100443,3194.15,0,Contractor Payments,General Builders,Invoice,BACS,No,31/03/2023 00:00,2023,1,1223-0551,N44075,Central heating boiler upgrades,1233,Contractor Payments,XXX99,*** UNASSIGNED ***,WCC,CEC Recharges,WC,CEC Recharges,A,Central Services
GUILDFORD BOROUGH COUNCIL,Heating,692680,TSG Building Services Plc,20/04/2023,30100444,4754.18,0,Contractor Payments,General Builders,Invoice,BACS,No,31/03/2023 00:00,2023,1,1223-0552,N44075,Central heating boiler upgrades,1233,Contractor Payments,XXX99,*** UNASSIGNED ***,WCC,CEC Recharges,WC,CEC Recharges,A,Central Services
GUILDFORD BOROUGH COUNCIL,Heating,692680,TSG Building Services Plc,20/04/2023,30100445,3178.05,0,Contractor Payments,General Builders,Invoice,BACS,No,31/03/2023 00:00,2023,1,1223-0553,N44075,Central heating boiler upgrades,1233,Contractor Payments,XXX99,*** UNASSIGNED ***,WCC,CEC Recharges,WC,CEC Recharges,A,Central Services
GUILDFORD BOROUGH COUNCIL,Heating,692680,TSG Building Services Plc,20/04/2023,30100446,3332.23,0,Contractor Payments,General Builders,Invoice,BACS,No,31/03/2023 00:00,2023,1,1223-0554,N44075,Central heating boiler upgrades,1233,Contractor Payments,XXX99,*** UNASSIGNED ***,WCC,CEC Recharges,WC,CEC Recharges,A,Central Services
GUILDFORD BOROUGH COUNCIL,Heating,692680,TSG Building Services Plc,20/04/2023,30100447,4761.14,0,Contractor Payments,General Builders,Invoice,BACS,No,31/03/2023 00:00,2023,1,1223-0555,N44075,Central heating boiler upgrades,1233,Contractor Payments,XXX99,*** UNASSIGNED ***,WCC,CEC Recharges,WC,CEC Recharges,A,Central Services
GUILDFORD BOROUGH COUNCIL,Heating,692680,TSG Building Services Plc,20/04/2023,30100448,3932.5,0,Contractor Payments,General Builders,Invoice,BACS,No,31/03/2023 00:00,2023,1,1223-0556,N44075,Central heating boiler upgrades,1233,Contractor Payments,XXX99,*** UNASSIGNED ***,WCC,CEC Recharges,WC,CEC Recharges,A,Central Services
GUILDFORD BOROUGH COUNCIL,HRA Service Delivery,692680,TSG Building Services Plc,20/04/2023,30100450,9245.42,0,Asset Maintenance,General Builders,Invoice,BACS,No,31/03/2023 00:00,2023,1,1223-0566,M5114,Repairs-Cyclical (BHS),B1001,Asset Maintenance,W3A05,Current Service Costs - Housing Services,W3A,Current Service Costs adjustment,W3,Current Service Costs,W,Other Operating Income and Expenditure
GUILDFORD BOROUGH COUNCIL,Renovations,701490,Wealden Services Ltd (CIS),20/04/2023,30100452,4982,0,Contractor Payments,Property Maintenance Contractors,Invoice,BACS,No,04/04/2023 00:00,2023,1,INV-48436,N40295,Disabled adaptations,1233,Contractor Payments,XXX99,*** UNASSIGNED ***,WCC,CEC Recharges,WC,CEC Recharges,A,Central Services
GUILDFORD BOROUGH COUNCIL,Renovations,701490,Wealden Services Ltd (CIS),20/04/2023,30100453,4390.07,0,Contractor Payments,Property Maintenance Contractors,Invoice,BACS,No,04/04/2023 00:00,2023,1,INV-48437,N40295,Disabled adaptations,1233,Contractor Payments,XXX99,*** UNASSIGNED ***,WCC,CEC Recharges,WC,CEC Recharges,A,Central Services
GUILDFORD BOROUGH COUNCIL,Renovations,701490,Wealden Services Ltd (CIS),20/04/2023,30100454,4207,0,Contractor Payments,Property Maintenance Contractors,Invoice,BACS,No,04/04/2023 00:00,2023,1,INV-48438,N40295,Disabled adaptations,1233,Contractor Payments,XXX99,*** UNASSIGNED ***,WCC,CEC Recharges,WC,CEC Recharges,A,Central Services
GUILDFORD BOROUGH COUNCIL,Property,1000710,Tanglewood Development Consultancy Ltd,21/04/2023,30100256,14000,0,Consultants Fees,,Invoice,CHAPS,No,06/04/2023 00:00,2023,1,GBC/02/06062022A,P74040,WUV - Weyside Urban Village (SARP),1221,Consultants Fees,XXX99,*** UNASSIGNED ***,WCC,CEC Recharges,WC,CEC Recharges,A,Central Services
GUILDFORD BOROUGH COUNCIL,Legal & Democratic Services,748800,Shaw & Sons Limited,24/04/2023,30100801,297.5,0,Stationery & Paper,Printing Service Providers,Invoice,CHAPS,No,18/04/2023 00:00,2023,1,289420,F2151,Elections,D5007,Stationery & Paper,ACE10,Conducting Elections,ACE,Elections,AC,Central Services to the Public,A,Central Services
GUILDFORD BOROUGH COUNCIL,Renovations,1000338,3MS Gold Services Ltd,25/04/2023,30100889,2979.38,0,Contractor Payments,,Invoice,BACS,No,14/04/2023 00:00,2023,1,3085,N40295,Disabled adaptations,1233,Contractor Payments,XXX99,*** UNASSIGNED ***,WCC,CEC Recharges,WC,CEC Recharges,A,Central Services
GUILDFORD BOROUGH COUNCIL,Renovations,1000338,3MS Gold Services Ltd,25/04/2023,30100889,4469.08,0,Contractor Payments,,Invoice,BACS,No,14/04/2023 00:00,2023,1,3085,N40295,Disabled adaptations,1233,Contractor Payments,XXX99,*** UNASSIGNED ***,WCC,CEC Recharges,WC,CEC Recharges,A,Central Services
GUILDFORD BOROUGH COUNCIL,Housing Services,969700,A Star Maintenance Contractors Ltd (CIS),25/04/2023,30100928,2000,0,Services,Property Maintenance Contractors,Invoice,BACS,No,06/04/2023 00:00,2023,1,14702,K1515,Building Maintenance,D6004,Services,DBX45,Property Services,DBX,Support Service and Management Costs,DB,Children's Social Care,E,Childrens and Education Services
GUILDFORD BOROUGH COUNCIL,Housing Services,969700,A Star Maintenance Contractors Ltd (CIS),25/04/2023,30100928,3072.5,0,Materials,Property Maintenance Contractors,Invoice,BACS,No,06/04/2023 00:00,2023,1,14702,K1515,Building Maintenance,D2003,Materials,DBX45,Property Services,DBX,Support Service and Management Costs,DB,Children's Social Care,E,Childrens and Education Services
GUILDFORD BOROUGH COUNCIL,Housing Services,969700,A Star Maintenance Contractors Ltd (CIS),25/04/2023,30100933,3000,0,Services,Property Maintenance Contractors,Invoice,BACS,No,06/04/2023 00:00,2023,1,14692,K1515,Building Maintenance,D6004,Services,DBX45,Property Services,DBX,Support Service and Management Costs,DB,Children's Social Care,E,Childrens and Education Services
GUILDFORD BOROUGH COUNCIL,Housing Services,969700,A Star Maintenance Contractors Ltd (CIS),25/04/2023,30100933,4391.63,0,Materials,Property Maintenance Contractors,Invoice,BACS,No,06/04/2023 00:00,2023,1,14692,K1515,Building Maintenance,D2003,Materials,DBX45,Property Services,DBX,Support Service and Management Costs,DB,Children's Social Care,E,Childrens and Education Services
GUILDFORD BOROUGH COUNCIL,Housing Services,969700,A Star Maintenance Contractors Ltd (CIS),25/04/2023,30100939,1200,0,Services,Property Maintenance Contractors,Invoice,BACS,No,06/04/2023 00:00,2023,1,14693,K1515,Building Maintenance,D6004,Services,DBX45,Property Services,DBX,Support Service and Management Costs,DB,Children's Social Care,E,Childrens and Education Services
GUILDFORD BOROUGH COUNCIL,Housing Services,969700,A Star Maintenance Contractors Ltd (CIS),25/04/2023,30100939,899.45,0,Materials,Property Maintenance Contractors,Invoice,BACS,No,06/04/2023 00:00,2023,1,14693,K1515,Building Maintenance,D2003,Materials,DBX45,Property Services,DBX,Support Service and Management Costs,DB,Children's Social Care,E,Childrens and Education Services
GUILDFORD BOROUGH COUNCIL,Housing Services,969700,A Star Maintenance Contractors Ltd (CIS),25/04/2023,30100899,2000,0,Services,Property Maintenance Contractors,Invoice,BACS,No,06/04/2023 00:00,2023,1,14690,K1515,Building Maintenance,D6004,Services,DBX45,Property Services,DBX,Support Service and Management Costs,DB,Children's Social Care,E,Childrens and Education Services
GUILDFORD BOROUGH COUNCIL,Housing Services,969700,A Star Maintenance Contractors Ltd (CIS),25/04/2023,30100899,5597.15,0,Materials,Property Maintenance Contractors,Invoice,BACS,No,06/04/2023 00:00,2023,1,14690,K1515,Building Maintenance,D2003,Materials,DBX45,Property Services,DBX,Support Service and Management Costs,DB,Children's Social Care,E,Childrens and Education Services
GUILDFORD BOROUGH COUNCIL,Housing Services,969700,A Star Maintenance Contractors Ltd (CIS),25/04/2023,30100901,1500,0,Services,Property Maintenance Contractors,Invoice,BACS,No,06/04/2023 00:00,2023,1,14691,K1515,Building Maintenance,D6004,Services,DBX45,Property Services,DBX,Support Service and Management Costs,DB,Children's Social Care,E,Childrens and Education Services
GUILDFORD BOROUGH COUNCIL,Housing Services,969700,A Star Maintenance Contractors Ltd (CIS),25/04/2023,30100901,3831.9,0,Materials,Property Maintenance Contractors,Invoice,BACS,No,06/04/2023 00:00,2023,1,14691,K1515,Building Maintenance,D2003,Materials,DBX45,Property Services,DBX,Support Service and Management Costs,DB,Children's Social Care,E,Childrens and Education Services
GUILDFORD BOROUGH COUNCIL,Commercial Services,718130,A.I.M. Removals & Deliveries,25/04/2023,30099607,265.71,0,GF Assets - Maintenance,Removal Service Providers,Invoice,BACS,No,01/04/2023 00:00,2023,1,1214,F3311,Guildhall,B1004,GF Assets - Maintenance,CCA30,Museums & Galleries,CCA,Culture & Heritage,CC,Cultural & Related Services,C,"Cultural, Environmental & Planning Services"
GUILDFORD BOROUGH COUNCIL,HRA Service Delivery,718130,A.I.M. Removals & Deliveries,25/04/2023,30097776,450,0,Expenses,Removal Service Providers,Invoice,BACS,No,15/03/2023 00:00,2023,1,1211,M8121,Strategic Support (SHS),D8004,Expenses,W3A05,Current Service Costs - Housing Services,W3A,Current Service Costs adjustment,W3,Current Service Costs,W,Other Operating Income and Expenditure
GUILDFORD BOROUGH COUNCIL,Housing Services,1000154,Acacia Villas Guest House,25/04/2023,30099453,630,0,Emergency Accomodation,,Invoice,BACS,No,26/03/2023 00:00,2023,1,AVGH-TB15,C3311,Homelessness,D8009,Emergency Accomodation,KGU00,Supporting People - Strategy,KGU,Supporting People,KG,Housing General Fund,K,Housing Services
GUILDFORD BOROUGH COUNCIL,Regulatory Services,1000852,ALS Laboratories (UK) Ltd,25/04/2023,30099772,1095.85,0,Services,,Invoice,BACS,No,31/03/2023 00:00,2023,1,751110,C1113,Environmental Control,D6004,Services,CEE25,Environmental Protection,CEE,Environmental Health (Regulatory Services),CE,Environmental & Regulatory Services,C,"Cultural, Environmental & Planning Services"
GUILDFORD BOROUGH COUNCIL,Housing Services,1000451,AMG Electrical Ltd,25/04/2023,30100803,979.88,0,Services,,Invoice,BACS,No,14/04/2023 00:00,2023,1,2304-02,K1515,Building Maintenance,D6004,Services,DBX45,Property Services,DBX,Support Service and Management Costs,DB,Children's Social Care,E,Childrens and Education Services
GUILDFORD BOROUGH COUNCIL,Housing Services,1000451,AMG Electrical Ltd,25/04/2023,30100828,2172.45,0,Services,,Invoice,BACS,No,12/04/2023 00:00,2023,1,S/03/04/23,K1515,Building Maintenance,D6004,Services,DBX45,Property Services,DBX,Support Service and Management Costs,DB,Children's Social Care,E,Childrens and Education Services
GUILDFORD BOROUGH COUNCIL,Community Services,604000,Apetito Ltd,25/04/2023,30100342,915.61,0,Catering,Frozen Food Suppliers,Invoice,BACS,No,31/03/2023 00:00,2023,1,9004285800,C8100,Community Hubs,D3001,Catering,KGU00,Supporting People - Strategy,KGU,Supporting People,KG,Housing General Fund,K,Housing Services
GUILDFORD BOROUGH COUNCIL,Community Services,604000,Apetito Ltd,25/04/2023,30100380,8925.01,0,Catering,Frozen Food Suppliers,Invoice,BACS,No,31/03/2023 00:00,2023,1,9004276152,C8142,Community Meals Service,D3001,Catering,KGU00,Supporting People - Strategy,KGU,Supporting People,KG,Housing General Fund,K,Housing Services
GUILDFORD BOROUGH COUNCIL,Community Services,604000,Apetito Ltd,25/04/2023,30100837,824.75,0,Repair And Maintenance Of Vehicles,Frozen Food Suppliers,Invoice,BACS,No,20/03/2023 00:00,2023,1,10091827,C8142,Community Meals Service,C1002,Repair And Maintenance Of Vehicles,KGU00,Supporting People - Strategy,KGU,Supporting People,KG,Housing General Fund,K,Housing Services
GUILDFORD BOROUGH COUNCIL,Regulatory Services,822600,Applied Resilience Limited,25/04/2023,30099587,2818.75,0,Services,Other Business Service Providers,Invoice,BACS,No,01/04/2023 00:00,2023,1,GBC137,F1511,Civil Emergencies,D6004,Services,ACG00,Emergency Planning,ACG,Emergency Planning,AC,Central Services to the Public,A,Central Services
GUILDFORD BOROUGH COUNCIL,Environmental Services,757390,Bartec Municipal Technologies Limited,25/04/2023,30100336,4500,0,ICT Software,Electronic Equipment And Component Suppliers,Invoice,BACS,No,01/04/2023 00:00,2023,1,INV-10079,K3551,Refuse - Domestic,D7002,ICT Software,CEW40,Disposal of Waste,CEW,Waste Disposal,CE,Environmental & Regulatory Services,C,"Cultural, Environmental & Planning Services"
GUILDFORD BOROUGH COUNCIL,Environmental Services,757390,Bartec Municipal Technologies Limited,25/04/2023,30100336,4900,0,ICT Software,Electronic Equipment And Component Suppliers,Invoice,BACS,No,01/04/2023 00:00,2023,1,INV-10079,K3551,Refuse - Domestic,D7002,ICT Software,CEW40,Disposal of Waste,CEW,Waste Disposal,CE,Environmental & Regulatory Services,C,"Cultural, Environmental & Planning Services"
GUILDFORD BOROUGH COUNCIL,Environmental Services,757390,Bartec Municipal Technologies Limited,25/04/2023,30100336,3060,0,ICT Software,Electronic Equipment And Component Suppliers,Invoice,BACS,No,01/04/2023 00:00,2023,1,INV-10079,K3551,Refuse - Domestic,D7002,ICT Software,CEW40,Disposal of Waste,CEW,Waste Disposal,CE,Environmental & Regulatory Services,C,"Cultural, Environmental & Planning Services"
GUILDFORD BOROUGH COUNCIL,Environmental Services,757390,Bartec Municipal Technologies Limited,25/04/2023,30100336,1500,0,ICT Software,Electronic Equipment And Component Suppliers,Invoice,BACS,No,01/04/2023 00:00,2023,1,INV-10079,K3551,Refuse - Domestic,D7002,ICT Software,CEW40,Disposal of Waste,CEW,Waste Disposal,CE,Environmental & Regulatory Services,C,"Cultural, Environmental & Planning Services"
GUILDFORD BOROUGH COUNCIL,Environmental Services,757390,Bartec Municipal Technologies Limited,25/04/2023,30100336,4350,0,ICT Software,Electronic Equipment And Component Suppliers,Invoice,BACS,No,01/04/2023 00:00,2023,1,INV-10079,K3551,Refuse - Domestic,D7002,ICT Software,CEW40,Disposal of Waste,CEW,Waste Disposal,CE,Environmental & Regulatory Services,C,"Cultural, Environmental & Planning Services"
GUILDFORD BOROUGH COUNCIL,Environmental Services,757390,Bartec Municipal Technologies Limited,25/04/2023,30100336,6960,0,ICT Software,Electronic Equipment And Component Suppliers,Invoice,BACS,No,01/04/2023 00:00,2023,1,INV-10079,K3551,Refuse - Domestic,D7002,ICT Software,CEW40,Disposal of Waste,CEW,Waste Disposal,CE,Environmental & Regulatory Services,C,"Cultural, Environmental & Planning Services"
GUILDFORD BOROUGH COUNCIL,Environmental Services,757390,Bartec Municipal Technologies Limited,25/04/2023,30100336,6120,0,ICT Software,Electronic Equipment And Component Suppliers,Invoice,BACS,No,01/04/2023 00:00,2023,1,INV-10079,K3551,Refuse - Domestic,D7002,ICT Software,CEW40,Disposal of Waste,CEW,Waste Disposal,CE,Environmental & Regulatory Services,C,"Cultural, Environmental & Planning Services"
GUILDFORD BOROUGH COUNCIL,Community Services,908000,Beeline Taxis,25/04/2023,30099830,2860,0,Expenses,Taxis And Private Hire Companies,Invoice,BACS,No,01/04/2023 00:00,2023,1,925,C8100,Community Hubs,D8004,Expenses,KGU00,Supporting People - Strategy,KGU,Supporting People,KG,Housing General Fund,K,Housing Services
GUILDFORD BOROUGH COUNCIL,Legal & Democratic Services,218050,Bevan Brittan LLP,25/04/2023,30100839,2452.5,0,Consultancy,Solicitors [Uk Only],Invoice,BACS,No,15/03/2023 00:00,2023,1,10221893,G4525,Legal Services,D6001,Consultancy,DBX40,Legal,DBX,Support Service and Management Costs,DB,Children's Social Care,E,Childrens and Education Services
GUILDFORD BOROUGH COUNCIL,Other Short Term Debtors,33420,Anonymous,25/04/2023,30100792,500,0,Advances Made,,Invoice,BACS,No,21/04/2023 00:00,2023,1,BB CYCLE LOAN PAYMENT REQUISITION,J01062,Bicycle Loans,2120,Advances Made,XXX99,*** UNASSIGNED ***,WCC,CEC Recharges,WC,CEC Recharges,A,Central Services
GUILDFORD BOROUGH COUNCIL,Environmental Services,127500,Chambers Waste Management Plc,25/04/2023,30100285,390.27,0,Waste Removal,Other Waste Disposal Suppliers,Invoice,BACS,No,31/03/2023 00:00,2023,1,P618533,A1500,Crematorium,D6010,Waste Removal,CEA10,Crematoria,CEA,"Cemetery, Cremation and Mortuary Services",CE,Environmental & Regulatory Services,C,"Cultural, Environmental & Planning Services"
GUILDFORD BOROUGH COUNCIL,Housing Services,127500,Chambers Waste Management Plc,25/04/2023,30099868,336.47,0,Materials,Other Waste Disposal Suppliers,Invoice,BACS,No,31/03/2023 00:00,2023,1,P618942,K1515,Building Maintenance,D2003,Materials,DBX45,Property Services,DBX,Support Service and Management Costs,DB,Children's Social Care,E,Childrens and Education Services
GUILDFORD BOROUGH COUNCIL,Housing Services,127500,Chambers Waste Management Plc,25/04/2023,30099905,1912.22,0,Materials,Other Waste Disposal Suppliers,Invoice,BACS,No,31/03/2023 00:00,2023,1,P618494,K1515,Building Maintenance,D2003,Materials,DBX45,Property Services,DBX,Support Service and Management Costs,DB,Children's Social Care,E,Childrens and Education Services
GUILDFORD BOROUGH COUNCIL,Property,984360,Chess Engage,25/04/2023,30100070,1000,0,Consultants Fees,,Invoice,BACS,No,31/03/2023 00:00,2023,1,INV-0424,P74040,WUV - Weyside Urban Village (SARP),1221,Consultants Fees,XXX99,*** UNASSIGNED ***,WCC,CEC Recharges,WC,CEC Recharges,A,Central Services
GUILDFORD BOROUGH COUNCIL,Property,984360,Chess Engage,25/04/2023,30100059,5000,0,Consultants Fees,,Invoice,BACS,No,31/03/2023 00:00,2023,1,INV-0423,P74040,WUV - Weyside Urban Village (SARP),1221,Consultants Fees,XXX99,*** UNASSIGNED ***,WCC,CEC Recharges,WC,CEC Recharges,A,Central Services
GUILDFORD BOROUGH COUNCIL,Housing Services,921860,Cinnamon Construction Limited (CIS),25/04/2023,30100337,1260,0,Services,General Builders,Invoice,BACS,No,30/01/2023 00:00,2023,1,732023,K1515,Building Maintenance,D6004,Services,DBX45,Property Services,DBX,Support Service and Management Costs,DB,Children's Social Care,E,Childrens and Education Services
GUILDFORD BOROUGH COUNCIL,HRA Service Delivery,150290,Clarke Gammon  (please check you are using the correct CG supplier),25/04/2023,30099316,350,0,Valuers Fees,Property Letting And Estate Agents,Invoice,BACS,No,31/03/2023 00:00,2023,1,15467,M1151,Tenants Services (BHS),D6002,Valuers Fees,W3A05,Current Service Costs - Housing Services,W3A,Current Service Costs adjustment,W3,Current Service Costs,W,Other Operating Income and Expenditure
GUILDFORD BOROUGH COUNCIL,Organisational Development,324350,Comensura Ltd,25/04/2023,30100352,52220.51,0,Agency,Other Recruitment Agencies And Service Providers,Invoice,BACS,No,16/04/2023 00:00,2023,1,1099611,G1161,Commensura Holding Account,A5191,Agency,W3A40,Current Service Costs - HR Admin,W3A,Current Service Costs adjustment,W3,Current Service Costs,W,Other Operating Income and Expenditure
GUILDFORD BOROUGH COUNCIL,Environmental Services,974800,Contract Cleaning & Facilities Ltd,25/04/2023,30099429,803.08,0,Cleaning Contractors,Commercial Cleaners,Invoice,BACS,No,31/03/2023 00:00,2023,1,68121,A1500,Crematorium,D6006,Cleaning Contractors,CEA10,Crematoria,CEA,"Cemetery, Cremation and Mortuary Services",CE,Environmental & Regulatory Services,C,"Cultural, Environmental & Planning Services"
GUILDFORD BOROUGH COUNCIL,Environmental Services,713690,Countryside Contracts Ltd (Hire/NON CIS),25/04/2023,30099854,1499,0,Services,Tree Work Contractors,Invoice,BACS,No,31/03/2023 00:00,2023,1,INV-2262,A1300,Trees And Countryside,D6004,Services,CCE00,Community Parks & Open Spaces,CCE,Open Spaces,CC,Cultural & Related Services,C,"Cultural, Environmental & Planning Services"
GUILDFORD BOROUGH COUNCIL,Environmental Services,713690,Countryside Contracts Ltd (Hire/NON CIS),25/04/2023,30100026,1496,0,Services,Tree Work Contractors,Invoice,BACS,No,31/03/2023 00:00,2023,1,INV-2261,A1300,Trees And Countryside,D6004,Services,CCE00,Community Parks & Open Spaces,CCE,Open Spaces,CC,Cultural & Related Services,C,"Cultural, Environmental & Planning Services"
GUILDFORD BOROUGH COUNCIL,HRA Service Delivery,698990,Cranleigh Aerials Limited,25/04/2023,30100883,275,0,Building Expenses,Audio And Visual Equipment Suppliers,Invoice,BACS,No,18/04/2023 00:00,2023,1,706065,M5113,Repairs-Responsive (BHS),B1002,Building Expenses,W3A05,Current Service Costs - Housing Services,W3A,Current Service Costs adjustment,W3,Current Service Costs,W,Other Operating Income and Expenditure
GUILDFORD BOROUGH COUNCIL,Organisational Development,1000910,Create Tomorrow Today Ltd,25/04/2023,30099849,2162.5,0,Staff Costs,,Invoice,BACS,No,31/03/2023 00:00,2023,1,488,G1121,Learning & Development,A7100,Staff Costs,DBX70,Other Management Costs,DBX,Support Service and Management Costs,DB,Children's Social Care,E,Childrens and Education Services
GUILDFORD BOROUGH COUNCIL,Environmental Services,1000686,CTS Municipal Vehicle Hire,25/04/2023,30100287,5635,0,External Vehicle Hire,,Invoice,BACS,No,30/03/2023 00:00,2023,1,S047023,K5551,Fleet Workshops,C3001,External Vehicle Hire,W3A48,Current Service Costs - Fleet Management,W3A,Current Service Costs adjustment,W3,Current Service Costs,W,Other Operating Income and Expenditure
GUILDFORD BOROUGH COUNCIL,Housing Services,946970,Davis Property Services GU Limited (CIS),25/04/2023,30100811,3772.02,0,Services,Roofers,Invoice,BACS,No,14/04/2023 00:00,2023,1,2408,K1515,Building Maintenance,D6004,Services,DBX45,Property Services,DBX,Support Service and Management Costs,DB,Children's Social Care,E,Childrens and Education Services
GUILDFORD BOROUGH COUNCIL,Housing Services,946970,Davis Property Services GU Limited (CIS),25/04/2023,30100824,6203,0,Services,Roofers,Invoice,BACS,No,14/04/2023 00:00,2023,1,2409,K1515,Building Maintenance,D6004,Services,DBX45,Property Services,DBX,Support Service and Management Costs,DB,Children's Social Care,E,Childrens and Education Services
GUILDFORD BOROUGH COUNCIL,Executive - Miscellaneous,1000682,DWF Law LLP,25/04/2023,30100077,2385.2,0,Legal Expenses,,Invoice,BACS,No,31/03/2023 00:00,2023,1,157-0389245,P79110,WUV – SANG,1395,Legal Expenses,XXX99,*** UNASSIGNED ***,WCC,CEC Recharges,WC,CEC Recharges,A,Central Services
GUILDFORD BOROUGH COUNCIL,Executive - Miscellaneous,1000682,DWF Law LLP,25/04/2023,30100083,2302,0,Legal Expenses,,Invoice,BACS,No,31/03/2023 00:00,2023,1,157-0389221,P79100,Wuv - Allotment Relocation,1395,Legal Expenses,XXX99,*** UNASSIGNED ***,WCC,CEC Recharges,WC,CEC Recharges,A,Central Services
GUILDFORD BOROUGH COUNCIL,Executive - Miscellaneous,1000682,DWF Law LLP,25/04/2023,30100086,11327.6,0,Legal Expenses,,Invoice,BACS,No,31/03/2023 00:00,2023,1,157-0389216,P79111,WUV - Common Land,1395,Legal Expenses,XXX99,*** UNASSIGNED ***,WCC,CEC Recharges,WC,CEC Recharges,A,Central Services
GUILDFORD BOROUGH COUNCIL,Property,1000682,DWF Law LLP,25/04/2023,30100061,5186.1,0,Legal Expenses,,Invoice,BACS,No,30/03/2023 00:00,2023,1,157-0387631,P74040,WUV - Weyside Urban Village (SARP),1395,Legal Expenses,XXX99,*** UNASSIGNED ***,WCC,CEC Recharges,WC,CEC Recharges,A,Central Services
GUILDFORD BOROUGH COUNCIL,Property,1000682,DWF Law LLP,25/04/2023,30100062,4559.7,0,Legal Expenses,,Invoice,BACS,No,31/03/2023 00:00,2023,1,157-0389217,P74040,WUV - Weyside Urban Village (SARP),1395,Legal Expenses,XXX99,*** UNASSIGNED ***,WCC,CEC Recharges,WC,CEC Recharges,A,Central Services
GUILDFORD BOROUGH COUNCIL,Inventories,183200,Edmundson Electrical Limited,25/04/2023,30100706,22604.37,0,Purchases,Electrical Wiring And Parts Suppliers,Invoice,BACS,No,29/03/2023 00:00,2023,1,201202167,I01001,Stocks,2591,Purchases,DBX45,Property Services,DBX,Support Service and Management Costs,DB,Children's Social Care,E,Childrens and Education Services
GUILDFORD BOROUGH COUNCIL,Industrial Estates,698460,Ermc Limited,25/04/2023,30099836,260,0,Consultants Fees,Construction Project Management Consultants,Invoice,BACS,No,31/03/2023 00:00,2023,1,10798,P72037,Midleton Ind Est Redevelop,1221,Consultants Fees,XXX99,*** UNASSIGNED ***,WCC,CEC Recharges,WC,CEC Recharges,A,Central Services
GUILDFORD BOROUGH COUNCIL,Industrial Estates,698460,Ermc Limited,25/04/2023,30099852,900,0,Consultants Fees,Construction Project Management Consultants,Invoice,BACS,No,31/03/2023 00:00,2023,1,10799,P72037,Midleton Ind Est Redevelop,1221,Consultants Fees,XXX99,*** UNASSIGNED ***,WCC,CEC Recharges,WC,CEC Recharges,A,Central Services
GUILDFORD BOROUGH COUNCIL,Environmental Services,882000,F G Barnes & Sons Ltd T/A Barnes Daf,25/04/2023,30099464,334.62,0,Materials,Car And Van Dealers,Invoice,BACS,No,29/03/2023 00:00,2023,1,10315918,K5551,Fleet Workshops,D2003,Materials,W3A48,Current Service Costs - Fleet Management,W3A,Current Service Costs adjustment,W3,Current Service Costs,W,Other Operating Income and Expenditure
GUILDFORD BOROUGH COUNCIL,Environmental Services,710010,Fargro Limited,25/04/2023,30099608,1572,0,Materials,Other Horticultural Service Providers,Invoice,BACS,No,30/03/2023 00:00,2023,1,IN0225299,A1100,Horticulture,D2003,Materials,CCE00,Community Parks & Open Spaces,CCE,Open Spaces,CC,Cultural & Related Services,C,"Cultural, Environmental & Planning Services"
GUILDFORD BOROUGH COUNCIL,Assets and Property,200000,Fidelis Security Limited,25/04/2023,30100722,583,0,Services,Security Guards,Invoice,BACS,No,31/03/2023 00:00,2023,1,12044,G4575,Asset Management,D6004,Services,DBX45,Property Services,DBX,Support Service and Management Costs,DB,Children's Social Care,E,Childrens and Education Services
GUILDFORD BOROUGH COUNCIL,Assets and Property,200000,Fidelis Security Limited,25/04/2023,30100290,314.95,0,Services,Security Guards,Invoice,BACS,No,31/03/2023 00:00,2023,1,12041,B6550,"Multiplex Cinema, Bedford Road",D6004,Services,DBX45,Property Services,DBX,Support Service and Management Costs,DB,Children's Social Care,E,Childrens and Education Services
GUILDFORD BOROUGH COUNCIL,Assets and Property,200000,Fidelis Security Limited,25/04/2023,30100013,974.6,0,Services,Security Guards,Invoice,BACS,No,31/03/2023 00:00,2023,1,12042,B6100,Other Property Admin,D6004,Services,CPJ00,Market Undertakings,CPJ,Economic Development,CP,Planning and Development Services,C,"Cultural, Environmental & Planning Services"
GUILDFORD BOROUGH COUNCIL,Environmental Services,667001,Fluid Systems Ltd T/A Pirtek (Guildford),25/04/2023,30099397,638.75,0,Repair And Maintenance Of Vehicles,,Invoice,BACS,No,29/03/2023 00:00,2023,1,GUI11728,K5551,Fleet Workshops,C1002,Repair And Maintenance Of Vehicles,W3A48,Current Service Costs - Fleet Management,W3A,Current Service Costs adjustment,W3,Current Service Costs,W,Other Operating Income and Expenditure
GUILDFORD BOROUGH COUNCIL,Environmental Services,667001,Fluid Systems Ltd T/A Pirtek (Guildford),25/04/2023,30099420,644.45,0,Repair And Maintenance Of Vehicles,,Invoice,BACS,No,29/03/2023 00:00,2023,1,GUI11739,K5551,Fleet Workshops,C1002,Repair And Maintenance Of Vehicles,W3A48,Current Service Costs - Fleet Management,W3A,Current Service Costs adjustment,W3,Current Service Costs,W,Other Operating Income and Expenditure
GUILDFORD BOROUGH COUNCIL,Planning & Development,1000475,G2 Recruitment Solutions,25/04/2023,30100784,6502.4,0,Consultancy,,Invoice,BACS,No,01/03/2023 00:00,2023,1,118174,D5100,Development Control - Fee Earn,D6001,Consultancy,CPC00,Development Control Advice,CPC,Development Control,CP,Planning and Development Services,C,"Cultural, Environmental & Planning Services"
GUILDFORD BOROUGH COUNCIL,Community Services,1000475,G2 Recruitment Solutions,25/04/2023,30099592,5187,0,Agency,,Invoice,BACS,No,29/03/2023 00:00,2023,1,119804,C5132,Care And Repair (Detr),A5191,Agency,KGU00,Supporting People - Strategy,KGU,Supporting People,KG,Housing General Fund,K,Housing Services
GUILDFORD BOROUGH COUNCIL,Environmental Services,111790,GHL Liftrucks Ltd,25/04/2023,30100940,390,0,Hire,Fork Lift Truck Suppliers,Invoice,BACS,No,26/01/2023 00:00,2023,1,4114639,B4452,Woking Road Depot,D1001,Hire,XXX99,*** UNASSIGNED ***,WCC,CEC Recharges,WC,CEC Recharges,A,Central Services
GUILDFORD BOROUGH COUNCIL,Environmental Services,111790,GHL Liftrucks Ltd,25/04/2023,30100908,346.66,0,Hire,Fork Lift Truck Suppliers,Invoice,BACS,No,15/02/2023 00:00,2023,1,4114991,B4452,Woking Road Depot,D1001,Hire,XXX99,*** UNASSIGNED ***,WCC,CEC Recharges,WC,CEC Recharges,A,Central Services
GUILDFORD BOROUGH COUNCIL,Regeneration & Planning Policy,1000172,Gleeds Advisory Ltd,25/04/2023,30100016,35456,0,Consultancy,,Invoice,BACS,No,31/03/2023 00:00,2023,1,LNDM0037/011,F5530,Major Projects,D6001,Consultancy,XXX99,*** UNASSIGNED ***,WCC,CEC Recharges,WC,CEC Recharges,A,Central Services
GUILDFORD BOROUGH COUNCIL,Planning & Development,1000232,Hankinson Duckett Associates Ltd,25/04/2023,30100833,1200.45,0,Consultancy,,Invoice,BACS,No,30/03/2023 00:00,2023,1,HD17610,D5100,Development Control - Fee Earn,D6001,Consultancy,CPC00,Development Control Advice,CPC,Development Control,CP,Planning and Development Services,C,"Cultural, Environmental & Planning Services"
GUILDFORD BOROUGH COUNCIL,Property,979080,Haverly Consulting Ltd,25/04/2023,30099921,10800,0,Consultants Fees,,Invoice,BACS,No,31/03/2023 00:00,2023,1,HC2096,P74040,WUV - Weyside Urban Village (SARP),1221,Consultants Fees,XXX99,*** UNASSIGNED ***,WCC,CEC Recharges,WC,CEC Recharges,A,Central Services
GUILDFORD BOROUGH COUNCIL,Organisational Development,863310,Health Assured Ltd,25/04/2023,30099807,4452,0,Staff Costs,Occupational Health Providers,Invoice,BACS,No,01/04/2023 00:00,2023,1,SF-149882,G2555,HR Services,A7100,Staff Costs,DBX70,Other Management Costs,DBX,Support Service and Management Costs,DB,Children's Social Care,E,Childrens and Education Services
GUILDFORD BOROUGH COUNCIL,HRA Service Delivery,372840,HML Independent Medical Advice Ltd,25/04/2023,30099754,332.37,0,Services,Other Medical Professionals,Invoice,BACS,No,31/03/2023 00:00,2023,1,GU/4434/23,M1131,"Advice,Regs,Tenant Select(SHS)",D6004,Services,W3A05,Current Service Costs - Housing Services,W3A,Current Service Costs adjustment,W3,Current Service Costs,W,Other Operating Income and Expenditure
GUILDFORD BOROUGH COUNCIL,Environmental Services,1000629,IC Brindle,25/04/2023,30100378,270,0,Materials,,Invoice,BACS,No,28/02/2023 00:00,2023,1,1844,A1700,Parks Ranger Service,D2003,Materials,CCD20,Sports Development & Community Recreation,CCD,Recreation & Sport,CC,Cultural & Related Services,C,"Cultural, Environmental & Planning Services"
GUILDFORD BOROUGH COUNCIL,Finance,996230,Imperial Treasury Services,25/04/2023,30100725,8410.96,0,Brokers Commission,,Invoice,BACS,No,28/02/2023 00:00,2023,1,2229,F1135,Treasury Management Admin,D6003,Brokers Commission,DBX35,Finance (including Internal Audit),DBX,Support Service and Management Costs,DB,Children's Social Care,E,Childrens and Education Services
GUILDFORD BOROUGH COUNCIL,Finance,996230,Imperial Treasury Services,25/04/2023,30100725,4986.3,0,Brokers Commission,,Invoice,BACS,No,28/02/2023 00:00,2023,1,2229,F1135,Treasury Management Admin,D6003,Brokers Commission,DBX35,Finance (including Internal Audit),DBX,Support Service and Management Costs,DB,Children's Social Care,E,Childrens and Education Services
GUILDFORD BOROUGH COUNCIL,Property,974700,John Thompson & Partners LLP,25/04/2023,30099454,5830,0,Consultants Fees,,Invoice,BACS,No,31/03/2023 00:00,2023,1,S3356,P74040,WUV - Weyside Urban Village (SARP),1221,Consultants Fees,XXX99,*** UNASSIGNED ***,WCC,CEC Recharges,WC,CEC Recharges,A,Central Services
GUILDFORD BOROUGH COUNCIL,Executive - Miscellaneous,974700,John Thompson & Partners LLP,25/04/2023,30099856,1500,0,Consultants Fees,,Invoice,BACS,No,31/03/2023 00:00,2023,1,01715/D,P79100,Wuv - Allotment Relocation,1221,Consultants Fees,XXX99,*** UNASSIGNED ***,WCC,CEC Recharges,WC,CEC Recharges,A,Central Services
GUILDFORD BOROUGH COUNCIL,Environmental Services,284700,Kendall Cars Limited,25/04/2023,30100271,340.6,0,External Vehicle Hire,"Car, Van And Truck Hire Companies",Invoice,BACS,No,31/03/2023 00:00,2023,1,1904279,K5551,Fleet Workshops,C3001,External Vehicle Hire,W3A48,Current Service Costs - Fleet Management,W3A,Current Service Costs adjustment,W3,Current Service Costs,W,Other Operating Income and Expenditure
GUILDFORD BOROUGH COUNCIL,Environmental Services,284700,Kendall Cars Limited,25/04/2023,30100277,685.1,0,External Vehicle Hire,"Car, Van And Truck Hire Companies",Invoice,BACS,No,30/03/2023 00:00,2023,1,1904256,K5551,Fleet Workshops,C3001,External Vehicle Hire,W3A48,Current Service Costs - Fleet Management,W3A,Current Service Costs adjustment,W3,Current Service Costs,W,Other Operating Income and Expenditure
GUILDFORD BOROUGH COUNCIL,Legal & Democratic Services,787670,Lawyers In Local Government,25/04/2023,30099809,925,0,Grants And Subscriptions,Third Party Supplier,Invoice,BACS,No,01/04/2023 00:00,2023,1,LGM-9132,G4525,Legal Services,D9001,Grants And Subscriptions,DBX40,Legal,DBX,Support Service and Management Costs,DB,Children's Social Care,E,Childrens and Education Services
GUILDFORD BOROUGH COUNCIL,Environmental Services,299800,Lister Wilder Ltd,25/04/2023,30099732,269.52,0,Materials,Emergency And Other Specialist Vehicle Dealers,Invoice,BACS,No,31/03/2023 00:00,2023,1,524097,A1200,Sports Grounds,D2003,Materials,CCE00,Community Parks & Open Spaces,CCE,Open Spaces,CC,Cultural & Related Services,C,"Cultural, Environmental & Planning Services"
GUILDFORD BOROUGH COUNCIL,Vehicle and Plant Acquisition,299800,Lister Wilder Ltd,25/04/2023,30099339,30002,0,Vehicle Purchase,Emergency And Other Specialist Vehicle Dealers,Invoice,BACS,No,31/03/2023 00:00,2023,1,524067,P58014,Vehicle & Plant Acqs 2022-23,1745,Vehicle Purchase,XXX99,*** UNASSIGNED ***,WCC,CEC Recharges,WC,CEC Recharges,A,Central Services
GUILDFORD BOROUGH COUNCIL,Environmental Services,299800,Lister Wilder Ltd,25/04/2023,30099396,328.61,0,Repair And Maintenance Of Vehicles,Emergency And Other Specialist Vehicle Dealers,Invoice,BACS,No,31/03/2023 00:00,2023,1,524071,K5551,Fleet Workshops,C1002,Repair And Maintenance Of Vehicles,W3A48,Current Service Costs - Fleet Management,W3A,Current Service Costs adjustment,W3,Current Service Costs,W,Other Operating Income and Expenditure
GUILDFORD BOROUGH COUNCIL,Finance,446960,Local Government Futures Ltd,25/04/2023,30100787,10375,0,Grants And Subscriptions,Other Business And Management Consultants,Invoice,BACS,No,08/03/2023 00:00,2023,1,6003852,G3565,Finance Specialists,D9001,Grants And Subscriptions,DBX35,Finance (including Internal Audit),DBX,Support Service and Management Costs,DB,Children's Social Care,E,Childrens and Education Services
GUILDFORD BOROUGH COUNCIL,Planning & Development,1000620,Luken Beck MDP Limited,25/04/2023,30100607,14380,0,Consultancy,,Invoice,BACS,No,22/03/2023 00:00,2023,1,220036/04,D5100,Development Control - Fee Earn,D6001,Consultancy,CPC00,Development Control Advice,CPC,Development Control,CP,Planning and Development Services,C,"Cultural, Environmental & Planning Services"
GUILDFORD BOROUGH COUNCIL,Property,872990,Marks Consulting Partners Limited,25/04/2023,30099925,3000,0,Consultants Fees,Other Recruitment Agencies And Service Providers,Invoice,BACS,No,29/03/2023 00:00,2023,1,INV-8989,P74040,WUV - Weyside Urban Village (SARP),1221,Consultants Fees,XXX99,*** UNASSIGNED ***,WCC,CEC Recharges,WC,CEC Recharges,A,Central Services
GUILDFORD BOROUGH COUNCIL,Regulatory Services,968950,Mink Farm Boarding Kennels and Cattery,25/04/2023,30099455,2163.58,0,Services,Animal Boarding Service Providers,Invoice,BACS,No,31/03/2023 00:00,2023,1,73559,B8512,Environmental Control,D6004,Services,CEE60,Animal & Public Health,CEE,Environmental Health (Regulatory Services),CE,Environmental & Regulatory Services,C,"Cultural, Environmental & Planning Services"
GUILDFORD BOROUGH COUNCIL,Commercial Services,851140,Monatrix Ltd,25/04/2023,30100862,644,0,Asset Maintenance,Closed Circuit Television (Cctv) Suppliers,Invoice,BACS,No,30/03/2023 00:00,2023,1,16847,B2219,Bedford Road Mscp,B1001,Asset Maintenance,HTP10,Off-Street Parking,HTP,Parking Services,HT,"Highways, Roads and Transport Services",H,"Highways, Roads and Transport Services"
GUILDFORD BOROUGH COUNCIL,Commercial Services,851140,Monatrix Ltd,25/04/2023,30100863,883,0,Asset Maintenance,Closed Circuit Television (Cctv) Suppliers,Invoice,BACS,No,30/03/2023 00:00,2023,1,16848,B2244,Farnham Road Mscp,B1001,Asset Maintenance,HTP10,Off-Street Parking,HTP,Parking Services,HT,"Highways, Roads and Transport Services",H,"Highways, Roads and Transport Services"
GUILDFORD BOROUGH COUNCIL,Property,952020,Montagu Evans LLP,25/04/2023,30099320,1500,0,Consultants Fees,Surveyors And Inspectors,Invoice,BACS,No,31/03/2023 00:00,2023,1,ADV231668,P74040,WUV - Weyside Urban Village (SARP),1221,Consultants Fees,XXX99,*** UNASSIGNED ***,WCC,CEC Recharges,WC,CEC Recharges,A,Central Services
GUILDFORD BOROUGH COUNCIL,HRA Service Delivery,729420,Morgan Hunt UK Limited,25/04/2023,30099410,1899.05,0,Agency,Other Recruitment Agencies And Service Providers,Invoice,BACS,No,02/04/2023 00:00,2023,1,1311671,M5111,Repairs-Admin (BHS),A5191,Agency,W3A05,Current Service Costs - Housing Services,W3A,Current Service Costs adjustment,W3,Current Service Costs,W,Other Operating Income and Expenditure
GUILDFORD BOROUGH COUNCIL,HRA Service Delivery,729420,Morgan Hunt UK Limited,25/04/2023,30099413,1437.82,0,Agency,Other Recruitment Agencies And Service Providers,Invoice,BACS,No,02/04/2023 00:00,2023,1,1311672,M5111,Repairs-Admin (BHS),A5191,Agency,W3A05,Current Service Costs - Housing Services,W3A,Current Service Costs adjustment,W3,Current Service Costs,W,Other Operating Income and Expenditure
GUILDFORD BOROUGH COUNCIL,Heating,729420,Morgan Hunt UK Limited,25/04/2023,30099390,1345,0,Contractor Payments,Other Recruitment Agencies And Service Providers,Invoice,BACS,No,02/04/2023 00:00,2023,1,1311669,N44075,Central heating boiler upgrades,1233,Contractor Payments,XXX99,*** UNASSIGNED ***,WCC,CEC Recharges,WC,CEC Recharges,A,Central Services
GUILDFORD BOROUGH COUNCIL,HRA Service Delivery,729420,Morgan Hunt UK Limited,25/04/2023,30099390,809.4,0,Services,Other Recruitment Agencies And Service Providers,Invoice,BACS,No,02/04/2023 00:00,2023,1,1311669,M5114,Repairs-Cyclical (BHS),D6004,Services,W3A05,Current Service Costs - Housing Services,W3A,Current Service Costs adjustment,W3,Current Service Costs,W,Other Operating Income and Expenditure
GUILDFORD BOROUGH COUNCIL,HRA Service Delivery,729420,Morgan Hunt UK Limited,25/04/2023,30099392,1321.24,0,Agency,Other Recruitment Agencies And Service Providers,Invoice,BACS,No,02/04/2023 00:00,2023,1,1311673,M5111,Repairs-Admin (BHS),A5191,Agency,W3A05,Current Service Costs - Housing Services,W3A,Current Service Costs adjustment,W3,Current Service Costs,W,Other Operating Income and Expenditure
GUILDFORD BOROUGH COUNCIL,HRA Service Delivery,729420,Morgan Hunt UK Limited,25/04/2023,30099395,1437.82,0,Agency,Other Recruitment Agencies And Service Providers,Invoice,BACS,No,02/04/2023 00:00,2023,1,1311668,M5111,Repairs-Admin (BHS),A5191,Agency,W3A05,Current Service Costs - Housing Services,W3A,Current Service Costs adjustment,W3,Current Service Costs,W,Other Operating Income and Expenditure
GUILDFORD BOROUGH COUNCIL,HRA Service Delivery,729420,Morgan Hunt UK Limited,25/04/2023,30099384,1437.82,0,Agency,Other Recruitment Agencies And Service Providers,Invoice,BACS,No,02/04/2023 00:00,2023,1,1311667,M5111,Repairs-Admin (BHS),A5191,Agency,W3A05,Current Service Costs - Housing Services,W3A,Current Service Costs adjustment,W3,Current Service Costs,W,Other Operating Income and Expenditure
GUILDFORD BOROUGH COUNCIL,HRA Service Delivery,729420,Morgan Hunt UK Limited,25/04/2023,30099430,1846.6,0,Agency,Other Recruitment Agencies And Service Providers,Invoice,BACS,No,02/04/2023 00:00,2023,1,1311666,M5111,Repairs-Admin (BHS),A5191,Agency,W3A05,Current Service Costs - Housing Services,W3A,Current Service Costs adjustment,W3,Current Service Costs,W,Other Operating Income and Expenditure
GUILDFORD BOROUGH COUNCIL,HRA Service Delivery,729420,Morgan Hunt UK Limited,25/04/2023,30099437,1328.6,0,Agency,Other Recruitment Agencies And Service Providers,Invoice,BACS,No,02/04/2023 00:00,2023,1,1311675,M5111,Repairs-Admin (BHS),A5191,Agency,W3A05,Current Service Costs - Housing Services,W3A,Current Service Costs adjustment,W3,Current Service Costs,W,Other Operating Income and Expenditure
GUILDFORD BOROUGH COUNCIL,HRA Service Delivery,729420,Morgan Hunt UK Limited,25/04/2023,30099443,1200.29,0,Agency,Other Recruitment Agencies And Service Providers,Invoice,BACS,No,02/04/2023 00:00,2023,1,1311670,M5111,Repairs-Admin (BHS),A5191,Agency,W3A05,Current Service Costs - Housing Services,W3A,Current Service Costs adjustment,W3,Current Service Costs,W,Other Operating Income and Expenditure
GUILDFORD BOROUGH COUNCIL,Modern Homes,729420,Morgan Hunt UK Limited,25/04/2023,30099458,1577.5,0,Contractor Payments,Other Recruitment Agencies And Service Providers,Invoice,BACS,No,02/04/2023 00:00,2023,1,1311676,N42069,Void Properties - refurbishment,1233,Contractor Payments,XXX99,*** UNASSIGNED ***,WCC,CEC Recharges,WC,CEC Recharges,A,Central Services
GUILDFORD BOROUGH COUNCIL,HRA Service Delivery,729420,Morgan Hunt UK Limited,25/04/2023,30099591,1000.48,0,Agency,Other Recruitment Agencies And Service Providers,Invoice,BACS,No,02/04/2023 00:00,2023,1,1311677,M5111,Repairs-Admin (BHS),A5191,Agency,W3A05,Current Service Costs - Housing Services,W3A,Current Service Costs adjustment,W3,Current Service Costs,W,Other Operating Income and Expenditure
GUILDFORD BOROUGH COUNCIL,Environmental Services,1000517,Morris Leslie Plant Hire Ltd,25/04/2023,30099442,827,0,Materials,,Invoice,BACS,No,31/03/2023 00:00,2023,1,1000622343,A1300,Trees And Countryside,D2003,Materials,CCE00,Community Parks & Open Spaces,CCE,Open Spaces,CC,Cultural & Related Services,C,"Cultural, Environmental & Planning Services"
GUILDFORD BOROUGH COUNCIL,Executive - Miscellaneous,1000517,Morris Leslie Plant Hire Ltd,25/04/2023,30099888,2377.95,0,Contractor Payments,,Invoice,BACS,No,31/03/2023 00:00,2023,1,1000622341,P79100,Wuv - Allotment Relocation,1233,Contractor Payments,XXX99,*** UNASSIGNED ***,WCC,CEC Recharges,WC,CEC Recharges,A,Central Services
GUILDFORD BOROUGH COUNCIL,Environmental Services,1000517,Morris Leslie Plant Hire Ltd,25/04/2023,30099893,629.6,0,Grounds Maintenance,,Invoice,BACS,No,31/03/2023 00:00,2023,1,1000622342,A1010,SPA Sites,B6001,Grounds Maintenance,CCE00,Community Parks & Open Spaces,CCE,Open Spaces,CC,Cultural & Related Services,C,"Cultural, Environmental & Planning Services"
GUILDFORD BOROUGH COUNCIL,Environmental Services,993920,Munihire Ltd,25/04/2023,30100282,3565,0,External Vehicle Hire,,Invoice,BACS,No,29/03/2023 00:00,2023,1,MHL10293,K5551,Fleet Workshops,C3001,External Vehicle Hire,W3A48,Current Service Costs - Fleet Management,W3A,Current Service Costs adjustment,W3,Current Service Costs,W,Other Operating Income and Expenditure
GUILDFORD BOROUGH COUNCIL,Assets and Property,884470,Opus Energy Limited,25/04/2023,30100283,460.47,0,Utilities,Mains Electricity Suppliers,Invoice,BACS,No,30/03/2023 00:00,2023,1,73869151,B6111,Investment Property,B2001,Utilities,CPJ00,Market Undertakings,CPJ,Economic Development,CP,Planning and Development Services,C,"Cultural, Environmental & Planning Services"
GUILDFORD BOROUGH COUNCIL,HRA Service Delivery,629000,Orchard Information Systems Ltd,25/04/2023,30100558,6058.34,0,ICT Software,Computer Systems Integrators,Invoice,BACS,No,30/06/2022 00:00,2023,1,SLMR/00015857,M5113,Repairs-Responsive (BHS),D7002,ICT Software,W3A05,Current Service Costs - Housing Services,W3A,Current Service Costs adjustment,W3,Current Service Costs,W,Other Operating Income and Expenditure
GUILDFORD BOROUGH COUNCIL,HRA Service Delivery,629000,Orchard Information Systems Ltd,25/04/2023,30100777,468.49,0,ICT Software,Computer Systems Integrators,Invoice,BACS,No,30/06/2022 00:00,2023,1,SLMR/00015846,M5113,Repairs-Responsive (BHS),D7002,ICT Software,W3A05,Current Service Costs - Housing Services,W3A,Current Service Costs adjustment,W3,Current Service Costs,W,Other Operating Income and Expenditure
GUILDFORD BOROUGH COUNCIL,Commercial Services,876560,Park Now Limited,25/04/2023,30100272,42985.46,0,Service fees,Other It Service Providers,Invoice,BACS,No,01/04/2023 00:00,2023,1,R230331-122,B2111,Car Parks - Administration,D8011,Service fees,HTP10,Off-Street Parking,HTP,Parking Services,HT,"Highways, Roads and Transport Services",H,"Highways, Roads and Transport Services"
GUILDFORD BOROUGH COUNCIL,HRA Service Delivery,261400,Paul Phelan t/a J&G Drain Services,25/04/2023,30100892,350,0,Asset Maintenance,Sewerage And Drainage Service Providers,Invoice,BACS,No,30/03/2023 00:00,2023,1,86876,M5113,Repairs-Responsive (BHS),B1001,Asset Maintenance,W3A05,Current Service Costs - Housing Services,W3A,Current Service Costs adjustment,W3,Current Service Costs,W,Other Operating Income and Expenditure
GUILDFORD BOROUGH COUNCIL,HRA Service Delivery,144020,Perega Limited,25/04/2023,30096680,3870,0,Consultancy,Other Construction Consultants,Invoice,BACS,No,28/02/2023 00:00,2023,1,13866,M5114,Repairs-Cyclical (BHS),D6001,Consultancy,W3A05,Current Service Costs - Housing Services,W3A,Current Service Costs adjustment,W3,Current Service Costs,W,Other Operating Income and Expenditure
GUILDFORD BOROUGH COUNCIL,Modern Homes,144020,Perega Limited,25/04/2023,30100467,1038.75,0,Contractor Payments,Other Construction Consultants,Invoice,BACS,No,31/03/2023 00:00,2023,1,13928,N48057,Structural works - various properties,1233,Contractor Payments,XXX99,*** UNASSIGNED ***,WCC,CEC Recharges,WC,CEC Recharges,A,Central Services
GUILDFORD BOROUGH COUNCIL,Modern Homes,144020,Perega Limited,25/04/2023,30100468,1038.75,0,Contractor Payments,Other Construction Consultants,Invoice,BACS,No,31/03/2023 00:00,2023,1,13929,N48057,Structural works - various properties,1233,Contractor Payments,XXX99,*** UNASSIGNED ***,WCC,CEC Recharges,WC,CEC Recharges,A,Central Services
GUILDFORD BOROUGH COUNCIL,Property,919010,Perfect Circle JV Ltd,25/04/2023,30099334,2416.67,0,Consultants Fees,Construction Project Management Consultants,Invoice,BACS,No,31/03/2023 00:00,2023,1,LNDM0036/026,P74040,WUV - Weyside Urban Village (SARP),1221,Consultants Fees,XXX99,*** UNASSIGNED ***,WCC,CEC Recharges,WC,CEC Recharges,A,Central Services
GUILDFORD BOROUGH COUNCIL,Property,919010,Perfect Circle JV Ltd,25/04/2023,30099321,8093.94,0,Consultants Fees,Construction Project Management Consultants,Invoice,BACS,No,31/03/2023 00:00,2023,1,LNDM0031/053,P74040,WUV - Weyside Urban Village (SARP),1221,Consultants Fees,XXX99,*** UNASSIGNED ***,WCC,CEC Recharges,WC,CEC Recharges,A,Central Services
GUILDFORD BOROUGH COUNCIL,Property,919010,Perfect Circle JV Ltd,25/04/2023,30099319,7584.87,0,Consultants Fees,Construction Project Management Consultants,Invoice,BACS,No,31/03/2023 00:00,2023,1,LNDM0034/042,P74040,WUV - Weyside Urban Village (SARP),1221,Consultants Fees,XXX99,*** UNASSIGNED ***,WCC,CEC Recharges,WC,CEC Recharges,A,Central Services
GUILDFORD BOROUGH COUNCIL,Property,919010,Perfect Circle JV Ltd,25/04/2023,30099324,11985.04,0,Consultants Fees,Construction Project Management Consultants,Invoice,BACS,No,31/03/2023 00:00,2023,1,LNDM0035/037,P74040,WUV - Weyside Urban Village (SARP),1221,Consultants Fees,XXX99,*** UNASSIGNED ***,WCC,CEC Recharges,WC,CEC Recharges,A,Central Services
GUILDFORD BOROUGH COUNCIL,Property,919010,Perfect Circle JV Ltd,25/04/2023,30099276,14912.23,0,Consultants Fees,Construction Project Management Consultants,Invoice,BACS,No,31/03/2023 00:00,2023,1,LNDM0033/031,P74040,WUV - Weyside Urban Village (SARP),1221,Consultants Fees,XXX99,*** UNASSIGNED ***,WCC,CEC Recharges,WC,CEC Recharges,A,Central Services
GUILDFORD BOROUGH COUNCIL,Executive - Miscellaneous,919010,Perfect Circle JV Ltd,25/04/2023,30099284,1060.78,0,Consultants Fees,Construction Project Management Consultants,Invoice,BACS,No,31/03/2023 00:00,2023,1,LNDM0036/027,P79100,Wuv - Allotment Relocation,1221,Consultants Fees,XXX99,*** UNASSIGNED ***,WCC,CEC Recharges,WC,CEC Recharges,A,Central Services
GUILDFORD BOROUGH COUNCIL,Property,919010,Perfect Circle JV Ltd,25/04/2023,30099282,7612,0,Consultants Fees,Construction Project Management Consultants,Invoice,BACS,No,31/03/2023 00:00,2023,1,LNDM0035/036,P74040,WUV - Weyside Urban Village (SARP),1221,Consultants Fees,XXX99,*** UNASSIGNED ***,WCC,CEC Recharges,WC,CEC Recharges,A,Central Services
GUILDFORD BOROUGH COUNCIL,Property,919010,Perfect Circle JV Ltd,25/04/2023,30099298,10500.44,0,Consultants Fees,Construction Project Management Consultants,Invoice,BACS,No,31/03/2023 00:00,2023,1,LNDM0034/041,P74040,WUV - Weyside Urban Village (SARP),1221,Consultants Fees,XXX99,*** UNASSIGNED ***,WCC,CEC Recharges,WC,CEC Recharges,A,Central Services
GUILDFORD BOROUGH COUNCIL,Property,919010,Perfect Circle JV Ltd,25/04/2023,30099301,5555.56,0,Consultants Fees,Construction Project Management Consultants,Invoice,BACS,No,31/03/2023 00:00,2023,1,LNDM0036/028,P74040,WUV - Weyside Urban Village (SARP),1221,Consultants Fees,XXX99,*** UNASSIGNED ***,WCC,CEC Recharges,WC,CEC Recharges,A,Central Services
GUILDFORD BOROUGH COUNCIL,Executive - Miscellaneous,919010,Perfect Circle JV Ltd,25/04/2023,30099287,3127.89,0,Consultants Fees,Construction Project Management Consultants,Invoice,BACS,No,31/03/2023 00:00,2023,1,LNDM0031/054,P79100,Wuv - Allotment Relocation,1221,Consultants Fees,XXX99,*** UNASSIGNED ***,WCC,CEC Recharges,WC,CEC Recharges,A,Central Services
GUILDFORD BOROUGH COUNCIL,Property,919010,Perfect Circle JV Ltd,25/04/2023,30099305,4396.47,0,Consultants Fees,Construction Project Management Consultants,Invoice,BACS,No,31/03/2023 00:00,2023,1,LNDM0031/055,P74040,WUV - Weyside Urban Village (SARP),1221,Consultants Fees,XXX99,*** UNASSIGNED ***,WCC,CEC Recharges,WC,CEC Recharges,A,Central Services
GUILDFORD BOROUGH COUNCIL,Property,919010,Perfect Circle JV Ltd,25/04/2023,30099295,8899.88,0,Consultants Fees,Construction Project Management Consultants,Invoice,BACS,No,31/03/2023 00:00,2023,1,LNDM0032/026,P74040,WUV - Weyside Urban Village (SARP),1221,Consultants Fees,XXX99,*** UNASSIGNED ***,WCC,CEC Recharges,WC,CEC Recharges,A,Central Services
GUILDFORD BOROUGH COUNCIL,Executive - Miscellaneous,992900,Pinsent Masons LLP,25/04/2023,30099813,3697.5,0,Consultants Fees,Other Legal Service Providers,Invoice,BACS,No,31/03/2023 00:00,2023,1,6744905,P79037,Ash Road Bridge,1221,Consultants Fees,XXX99,*** UNASSIGNED ***,WCC,CEC Recharges,WC,CEC Recharges,A,Central Services
GUILDFORD BOROUGH COUNCIL,Executive - Miscellaneous,992900,Pinsent Masons LLP,25/04/2023,30099814,850,0,Legal Expenses,Other Legal Service Providers,Invoice,BACS,No,31/03/2023 00:00,2023,1,6744900,P79037,Ash Road Bridge,1395,Legal Expenses,XXX99,*** UNASSIGNED ***,WCC,CEC Recharges,WC,CEC Recharges,A,Central Services
GUILDFORD BOROUGH COUNCIL,Executive - Miscellaneous,992900,Pinsent Masons LLP,25/04/2023,30099823,3483.23,0,Legal Expenses,Other Legal Service Providers,Invoice,BACS,No,31/03/2023 00:00,2023,1,6744893,P79037,Ash Road Bridge,1395,Legal Expenses,XXX99,*** UNASSIGNED ***,WCC,CEC Recharges,WC,CEC Recharges,A,Central Services
GUILDFORD BOROUGH COUNCIL,Executive - Miscellaneous,992900,Pinsent Masons LLP,25/04/2023,30099825,4690.2,0,Consultants Fees,Other Legal Service Providers,Invoice,BACS,No,31/03/2023 00:00,2023,1,6744871,P79037,Ash Road Bridge,1221,Consultants Fees,XXX99,*** UNASSIGNED ***,WCC,CEC Recharges,WC,CEC Recharges,A,Central Services
GUILDFORD BOROUGH COUNCIL,Executive - Miscellaneous,992900,Pinsent Masons LLP,25/04/2023,30099806,526.1,0,Legal Expenses,Other Legal Service Providers,Invoice,BACS,No,31/03/2023 00:00,2023,1,6744881,P79037,Ash Road Bridge,1395,Legal Expenses,XXX99,*** UNASSIGNED ***,WCC,CEC Recharges,WC,CEC Recharges,A,Central Services
GUILDFORD BOROUGH COUNCIL,Organisational Development,925630,Police & Crime Commissioner For Surrey,25/04/2023,30099209,2909,0,Grants And Subscriptions,Police Forces,Invoice,BACS,No,30/03/2023 00:00,2023,1,1041111,F5724,Safer Guildford Partnership,D9001,Grants And Subscriptions,CEH00,Community Safety (Safety Services),CEH,Community Safety (Safety Services),CE,Environmental & Regulatory Services,C,"Cultural, Environmental & Planning Services"
GUILDFORD BOROUGH COUNCIL,Inventories,1000725,PPG Architectural Coatings UK Limited T/A Johnston,25/04/2023,30100720,740,0,Purchases,,Invoice,BACS,No,17/03/2023 00:00,2023,1,4483555799,I01001,Stocks,2591,Purchases,DBX45,Property Services,DBX,Support Service and Management Costs,DB,Children's Social Care,E,Childrens and Education Services
GUILDFORD BOROUGH COUNCIL,Executive - Miscellaneous,1000709,Quoin Datum Consultants Ltd,25/04/2023,30099843,12400,0,Consultants Fees,,Invoice,BACS,No,01/04/2023 00:00,2023,1,QDC_GBC013,P79037,Ash Road Bridge,1221,Consultants Fees,XXX99,*** UNASSIGNED ***,WCC,CEC Recharges,WC,CEC Recharges,A,Central Services
GUILDFORD BOROUGH COUNCIL,Renovations,342910,Rand Associates Consultancy Services Ltd,25/04/2023,30099720,1979.25,0,Consultants Fees,Quantity Surveyors,Invoice,BACS,No,31/03/2023 00:00,2023,1,8993,N40291,Condition Appraisals,1221,Consultants Fees,XXX99,*** UNASSIGNED ***,WCC,CEC Recharges,WC,CEC Recharges,A,Central Services
GUILDFORD BOROUGH COUNCIL,Assets and Property,1000687,Rapleys LLP,25/04/2023,30100041,354.17,0,Consultancy,,Invoice,BACS,No,31/03/2023 00:00,2023,1,1038457,G4575,Asset Management,D6001,Consultancy,DBX45,Property Services,DBX,Support Service and Management Costs,DB,Children's Social Care,E,Childrens and Education Services
GUILDFORD BOROUGH COUNCIL,Housing Services,846250,Revive Services (CIS),25/04/2023,30100819,3230,0,Services,Other Cleaning And Janitorial Service Providers,Invoice,BACS,No,17/04/2023 00:00,2023,1,205A,K1515,Building Maintenance,D6004,Services,DBX45,Property Services,DBX,Support Service and Management Costs,DB,Children's Social Care,E,Childrens and Education Services
GUILDFORD BOROUGH COUNCIL,Assets and Property,106990,RICS,25/04/2023,30100670,488.6,0,Staff Costs,Professional Associations,Invoice,BACS,No,11/01/2023 00:00,2023,1,INV-00277268,G4575,Asset Management,A7100,Staff Costs,DBX45,Property Services,DBX,Support Service and Management Costs,DB,Children's Social Care,E,Childrens and Education Services
GUILDFORD BOROUGH COUNCIL,Property,1000920,Rockwood Homes Limited,25/04/2023,30100821,6176.33,0,Contractor Payments,,Invoice,BACS,No,08/03/2023 00:00,2023,1,TYT01,P74072,Tyting Farm- Removal Of Barns,1233,Contractor Payments,XXX99,*** UNASSIGNED ***,WCC,CEC Recharges,WC,CEC Recharges,A,Central Services
GUILDFORD BOROUGH COUNCIL,Environmental Services,720900,Rossetts (UK) Ltd,25/04/2023,30099408,370.52,0,Repair And Maintenance Of Vehicles,Truck And Bus Dealers,Invoice,BACS,No,31/03/2023 00:00,2023,1,52596368,K5551,Fleet Workshops,C1002,Repair And Maintenance Of Vehicles,W3A48,Current Service Costs - Fleet Management,W3A,Current Service Costs adjustment,W3,Current Service Costs,W,Other Operating Income and Expenditure
GUILDFORD BOROUGH COUNCIL,Inventories,271200,Saint-Gobain Building Distribution Limited (Jewson),25/04/2023,30100661,5835.76,0,Purchases,Builders Merchants,Invoice,BACS,No,31/03/2023 00:00,2023,1,0652/00702153,I01001,Stocks,2591,Purchases,DBX45,Property Services,DBX,Support Service and Management Costs,DB,Children's Social Care,E,Childrens and Education Services
GUILDFORD BOROUGH COUNCIL,Inventories,271200,Saint-Gobain Building Distribution Limited (Jewson),25/04/2023,30100783,11634.13,0,Purchases,Builders Merchants,Invoice,BACS,No,28/02/2023 00:00,2023,1,0652/00701738,I01001,Stocks,2591,Purchases,DBX45,Property Services,DBX,Support Service and Management Costs,DB,Children's Social Care,E,Childrens and Education Services
GUILDFORD BOROUGH COUNCIL,Executive - Miscellaneous,453690,Savills (L&P) Limited,25/04/2023,30100034,300,0,Consultants Fees,Property Letting And Estate Agents,Invoice,BACS,No,31/03/2023 00:00,2023,1,INSU00314300,P79100,Wuv - Allotment Relocation,1221,Consultants Fees,XXX99,*** UNASSIGNED ***,WCC,CEC Recharges,WC,CEC Recharges,A,Central Services
GUILDFORD BOROUGH COUNCIL,Property,453690,Savills (L&P) Limited,25/04/2023,30099225,1000,0,Consultants Fees,Property Letting And Estate Agents,Invoice,BACS,No,31/03/2023 00:00,2023,1,INSU00312212,P74040,WUV - Weyside Urban Village (SARP),1221,Consultants Fees,XXX99,*** UNASSIGNED ***,WCC,CEC Recharges,WC,CEC Recharges,A,Central Services
GUILDFORD BOROUGH COUNCIL,Modern Homes,1000554,Seville Developments,25/04/2023,30100879,11500,0,Contractor Payments,,Invoice,BACS,No,14/04/2023 00:00,2023,1,7021,N42068,"Kitchen, bathroom and electrical upgrades",1233,Contractor Payments,XXX99,*** UNASSIGNED ***,WCC,CEC Recharges,WC,CEC Recharges,A,Central Services
GUILDFORD BOROUGH COUNCIL,Modern Homes,1000554,Seville Developments,25/04/2023,30100879,7625.5,0,Contractor Payments,,Invoice,BACS,No,14/04/2023 00:00,2023,1,7021,N42068,"Kitchen, bathroom and electrical upgrades",1233,Contractor Payments,XXX99,*** UNASSIGNED ***,WCC,CEC Recharges,WC,CEC Recharges,A,Central Services
GUILDFORD BOROUGH COUNCIL,Modern Homes,1000554,Seville Developments,25/04/2023,30100879,7625.5,0,Contractor Payments,,Invoice,BACS,No,14/04/2023 00:00,2023,1,7021,N42068,"Kitchen, bathroom and electrical upgrades",1233,Contractor Payments,XXX99,*** UNASSIGNED ***,WCC,CEC Recharges,WC,CEC Recharges,A,Central Services
GUILDFORD BOROUGH COUNCIL,Modern Homes,1000554,Seville Developments,25/04/2023,30100879,7625.5,0,Contractor Payments,,Invoice,BACS,No,14/04/2023 00:00,2023,1,7021,N42068,"Kitchen, bathroom and electrical upgrades",1233,Contractor Payments,XXX99,*** UNASSIGNED ***,WCC,CEC Recharges,WC,CEC Recharges,A,Central Services
GUILDFORD BOROUGH COUNCIL,Modern Homes,1000554,Seville Developments,25/04/2023,30100879,7625.5,0,Contractor Payments,,Invoice,BACS,No,14/04/2023 00:00,2023,1,7021,N42068,"Kitchen, bathroom and electrical upgrades",1233,Contractor Payments,XXX99,*** UNASSIGNED ***,WCC,CEC Recharges,WC,CEC Recharges,A,Central Services
GUILDFORD BOROUGH COUNCIL,Modern Homes,1000554,Seville Developments,25/04/2023,30100879,7625.5,0,Contractor Payments,,Invoice,BACS,No,14/04/2023 00:00,2023,1,7021,N42068,"Kitchen, bathroom and electrical upgrades",1233,Contractor Payments,XXX99,*** UNASSIGNED ***,WCC,CEC Recharges,WC,CEC Recharges,A,Central Services
GUILDFORD BOROUGH COUNCIL,Modern Homes,1000554,Seville Developments,25/04/2023,30100879,7625.5,0,Contractor Payments,,Invoice,BACS,No,14/04/2023 00:00,2023,1,7021,N42068,"Kitchen, bathroom and electrical upgrades",1233,Contractor Payments,XXX99,*** UNASSIGNED ***,WCC,CEC Recharges,WC,CEC Recharges,A,Central Services
GUILDFORD BOROUGH COUNCIL,Modern Homes,1000554,Seville Developments,25/04/2023,30100879,7625.5,0,Contractor Payments,,Invoice,BACS,No,14/04/2023 00:00,2023,1,7021,N42068,"Kitchen, bathroom and electrical upgrades",1233,Contractor Payments,XXX99,*** UNASSIGNED ***,WCC,CEC Recharges,WC,CEC Recharges,A,Central Services
GUILDFORD BOROUGH COUNCIL,Modern Homes,1000554,Seville Developments,25/04/2023,30100879,7625.5,0,Contractor Payments,,Invoice,BACS,No,14/04/2023 00:00,2023,1,7021,N42068,"Kitchen, bathroom and electrical upgrades",1233,Contractor Payments,XXX99,*** UNASSIGNED ***,WCC,CEC Recharges,WC,CEC Recharges,A,Central Services
GUILDFORD BOROUGH COUNCIL,Modern Homes,1000554,Seville Developments,25/04/2023,30100879,7625.5,0,Contractor Payments,,Invoice,BACS,No,14/04/2023 00:00,2023,1,7021,N42068,"Kitchen, bathroom and electrical upgrades",1233,Contractor Payments,XXX99,*** UNASSIGNED ***,WCC,CEC Recharges,WC,CEC Recharges,A,Central Services
GUILDFORD BOROUGH COUNCIL,Modern Homes,1000554,Seville Developments,25/04/2023,30100879,7625.5,0,Contractor Payments,,Invoice,BACS,No,14/04/2023 00:00,2023,1,7021,N42068,"Kitchen, bathroom and electrical upgrades",1233,Contractor Payments,XXX99,*** UNASSIGNED ***,WCC,CEC Recharges,WC,CEC Recharges,A,Central Services
GUILDFORD BOROUGH COUNCIL,Modern Homes,1000554,Seville Developments,25/04/2023,30100879,7625.5,0,Contractor Payments,,Invoice,BACS,No,14/04/2023 00:00,2023,1,7021,N42068,"Kitchen, bathroom and electrical upgrades",1233,Contractor Payments,XXX99,*** UNASSIGNED ***,WCC,CEC Recharges,WC,CEC Recharges,A,Central Services
GUILDFORD BOROUGH COUNCIL,Modern Homes,1000554,Seville Developments,25/04/2023,30100879,7625.5,0,Contractor Payments,,Invoice,BACS,No,14/04/2023 00:00,2023,1,7021,N42068,"Kitchen, bathroom and electrical upgrades",1233,Contractor Payments,XXX99,*** UNASSIGNED ***,WCC,CEC Recharges,WC,CEC Recharges,A,Central Services
GUILDFORD BOROUGH COUNCIL,Modern Homes,1000554,Seville Developments,25/04/2023,30100879,7625.5,0,Contractor Payments,,Invoice,BACS,No,14/04/2023 00:00,2023,1,7021,N42068,"Kitchen, bathroom and electrical upgrades",1233,Contractor Payments,XXX99,*** UNASSIGNED ***,WCC,CEC Recharges,WC,CEC Recharges,A,Central Services
GUILDFORD BOROUGH COUNCIL,Modern Homes,1000554,Seville Developments,25/04/2023,30100879,7625.5,0,Contractor Payments,,Invoice,BACS,No,14/04/2023 00:00,2023,1,7021,N42068,"Kitchen, bathroom and electrical upgrades",1233,Contractor Payments,XXX99,*** UNASSIGNED ***,WCC,CEC Recharges,WC,CEC Recharges,A,Central Services
GUILDFORD BOROUGH COUNCIL,Modern Homes,1000554,Seville Developments,25/04/2023,30100879,11500,0,Contractor Payments,,Invoice,BACS,No,14/04/2023 00:00,2023,1,7021,N42068,"Kitchen, bathroom and electrical upgrades",1233,Contractor Payments,XXX99,*** UNASSIGNED ***,WCC,CEC Recharges,WC,CEC Recharges,A,Central Services
GUILDFORD BOROUGH COUNCIL,Modern Homes,1000554,Seville Developments,25/04/2023,30100879,7625.5,0,Contractor Payments,,Invoice,BACS,No,14/04/2023 00:00,2023,1,7021,N42068,"Kitchen, bathroom and electrical upgrades",1233,Contractor Payments,XXX99,*** UNASSIGNED ***,WCC,CEC Recharges,WC,CEC Recharges,A,Central Services
GUILDFORD BOROUGH COUNCIL,Modern Homes,1000554,Seville Developments,25/04/2023,30100879,7625.5,0,Contractor Payments,,Invoice,BACS,No,14/04/2023 00:00,2023,1,7021,N42068,"Kitchen, bathroom and electrical upgrades",1233,Contractor Payments,XXX99,*** UNASSIGNED ***,WCC,CEC Recharges,WC,CEC Recharges,A,Central Services
GUILDFORD BOROUGH COUNCIL,Modern Homes,1000554,Seville Developments,25/04/2023,30100879,11500,0,Contractor Payments,,Invoice,BACS,No,14/04/2023 00:00,2023,1,7021,N42068,"Kitchen, bathroom and electrical upgrades",1233,Contractor Payments,XXX99,*** UNASSIGNED ***,WCC,CEC Recharges,WC,CEC Recharges,A,Central Services
GUILDFORD BOROUGH COUNCIL,Modern Homes,1000554,Seville Developments,25/04/2023,30100879,11500,0,Contractor Payments,,Invoice,BACS,No,14/04/2023 00:00,2023,1,7021,N42068,"Kitchen, bathroom and electrical upgrades",1233,Contractor Payments,XXX99,*** UNASSIGNED ***,WCC,CEC Recharges,WC,CEC Recharges,A,Central Services
GUILDFORD BOROUGH COUNCIL,Modern Homes,1000554,Seville Developments,25/04/2023,30100879,7625.5,0,Contractor Payments,,Invoice,BACS,No,14/04/2023 00:00,2023,1,7021,N42068,"Kitchen, bathroom and electrical upgrades",1233,Contractor Payments,XXX99,*** UNASSIGNED ***,WCC,CEC Recharges,WC,CEC Recharges,A,Central Services
GUILDFORD BOROUGH COUNCIL,Modern Homes,1000554,Seville Developments,25/04/2023,30100879,11500,0,Contractor Payments,,Invoice,BACS,No,14/04/2023 00:00,2023,1,7021,N42068,"Kitchen, bathroom and electrical upgrades",1233,Contractor Payments,XXX99,*** UNASSIGNED ***,WCC,CEC Recharges,WC,CEC Recharges,A,Central Services
GUILDFORD BOROUGH COUNCIL,HRA Service Delivery,1000554,Seville Developments,25/04/2023,30100879,11500,0,Consultancy,,Invoice,BACS,No,14/04/2023 00:00,2023,1,7021,M5113,Repairs-Responsive (BHS),D6001,Consultancy,W3A05,Current Service Costs - Housing Services,W3A,Current Service Costs adjustment,W3,Current Service Costs,W,Other Operating Income and Expenditure
GUILDFORD BOROUGH COUNCIL,Modern Homes,1000554,Seville Developments,25/04/2023,30100879,7625.5,0,Contractor Payments,,Invoice,BACS,No,14/04/2023 00:00,2023,1,7021,N42068,"Kitchen, bathroom and electrical upgrades",1233,Contractor Payments,XXX99,*** UNASSIGNED ***,WCC,CEC Recharges,WC,CEC Recharges,A,Central Services
GUILDFORD BOROUGH COUNCIL,Modern Homes,1000554,Seville Developments,25/04/2023,30100879,7625.5,0,Contractor Payments,,Invoice,BACS,No,14/04/2023 00:00,2023,1,7021,N42068,"Kitchen, bathroom and electrical upgrades",1233,Contractor Payments,XXX99,*** UNASSIGNED ***,WCC,CEC Recharges,WC,CEC Recharges,A,Central Services
GUILDFORD BOROUGH COUNCIL,Modern Homes,1000554,Seville Developments,25/04/2023,30100879,7625.5,0,Contractor Payments,,Invoice,BACS,No,14/04/2023 00:00,2023,1,7021,N42068,"Kitchen, bathroom and electrical upgrades",1233,Contractor Payments,XXX99,*** UNASSIGNED ***,WCC,CEC Recharges,WC,CEC Recharges,A,Central Services
GUILDFORD BOROUGH COUNCIL,Modern Homes,1000554,Seville Developments,25/04/2023,30100879,7625.5,0,Contractor Payments,,Invoice,BACS,No,14/04/2023 00:00,2023,1,7021,N42068,"Kitchen, bathroom and electrical upgrades",1233,Contractor Payments,XXX99,*** UNASSIGNED ***,WCC,CEC Recharges,WC,CEC Recharges,A,Central Services
GUILDFORD BOROUGH COUNCIL,Modern Homes,1000554,Seville Developments,25/04/2023,30100879,7625.5,0,Contractor Payments,,Invoice,BACS,No,14/04/2023 00:00,2023,1,7021,N42068,"Kitchen, bathroom and electrical upgrades",1233,Contractor Payments,XXX99,*** UNASSIGNED ***,WCC,CEC Recharges,WC,CEC Recharges,A,Central Services
GUILDFORD BOROUGH COUNCIL,Modern Homes,1000554,Seville Developments,25/04/2023,30100879,7625.5,0,Contractor Payments,,Invoice,BACS,No,14/04/2023 00:00,2023,1,7021,N42068,"Kitchen, bathroom and electrical upgrades",1233,Contractor Payments,XXX99,*** UNASSIGNED ***,WCC,CEC Recharges,WC,CEC Recharges,A,Central Services
GUILDFORD BOROUGH COUNCIL,Modern Homes,1000554,Seville Developments,25/04/2023,30100879,7625.5,0,Contractor Payments,,Invoice,BACS,No,14/04/2023 00:00,2023,1,7021,N42068,"Kitchen, bathroom and electrical upgrades",1233,Contractor Payments,XXX99,*** UNASSIGNED ***,WCC,CEC Recharges,WC,CEC Recharges,A,Central Services
GUILDFORD BOROUGH COUNCIL,Modern Homes,1000554,Seville Developments,25/04/2023,30100879,7625.5,0,Contractor Payments,,Invoice,BACS,No,14/04/2023 00:00,2023,1,7021,N42068,"Kitchen, bathroom and electrical upgrades",1233,Contractor Payments,XXX99,*** UNASSIGNED ***,WCC,CEC Recharges,WC,CEC Recharges,A,Central Services
GUILDFORD BOROUGH COUNCIL,Modern Homes,1000554,Seville Developments,25/04/2023,30100879,7625.5,0,Contractor Payments,,Invoice,BACS,No,14/04/2023 00:00,2023,1,7021,N42068,"Kitchen, bathroom and electrical upgrades",1233,Contractor Payments,XXX99,*** UNASSIGNED ***,WCC,CEC Recharges,WC,CEC Recharges,A,Central Services
GUILDFORD BOROUGH COUNCIL,Modern Homes,1000554,Seville Developments,25/04/2023,30100879,7625.5,0,Contractor Payments,,Invoice,BACS,No,14/04/2023 00:00,2023,1,7021,N42068,"Kitchen, bathroom and electrical upgrades",1233,Contractor Payments,XXX99,*** UNASSIGNED ***,WCC,CEC Recharges,WC,CEC Recharges,A,Central Services
GUILDFORD BOROUGH COUNCIL,Executive - Miscellaneous,1000078,Shorts Group Limited,25/04/2023,30100024,580,0,Contractor Payments,,Invoice,BACS,No,31/03/2023 00:00,2023,1,S267840,P79100,Wuv - Allotment Relocation,1233,Contractor Payments,XXX99,*** UNASSIGNED ***,WCC,CEC Recharges,WC,CEC Recharges,A,Central Services
GUILDFORD BOROUGH COUNCIL,Housing Services,807270,Simon Property Solution Ltd,25/04/2023,30100831,2545.73,0,Services,House Builders,Invoice,BACS,No,17/04/2023 00:00,2023,1,221GBC,K1515,Building Maintenance,D6004,Services,DBX45,Property Services,DBX,Support Service and Management Costs,DB,Children's Social Care,E,Childrens and Education Services
GUILDFORD BOROUGH COUNCIL,HRA Service Delivery,1000758,SMS Environmental Limited,25/04/2023,30100176,2220,0,Asset Maintenance,,Invoice,BACS,No,29/03/2023 00:00,2023,1,147443,M5106,Repairs-Shelt-Responsive (BHS),B1001,Asset Maintenance,W3A05,Current Service Costs - Housing Services,W3A,Current Service Costs adjustment,W3,Current Service Costs,W,Other Operating Income and Expenditure
GUILDFORD BOROUGH COUNCIL,HRA Service Delivery,1000758,SMS Environmental Limited,25/04/2023,30100177,370,0,Asset Maintenance,,Invoice,BACS,No,31/03/2023 00:00,2023,1,147630,M5106,Repairs-Shelt-Responsive (BHS),B1001,Asset Maintenance,W3A05,Current Service Costs - Housing Services,W3A,Current Service Costs adjustment,W3,Current Service Costs,W,Other Operating Income and Expenditure
GUILDFORD BOROUGH COUNCIL,Commercial Services,1000050,Stevens and Bolton,25/04/2023,30099770,612.5,0,Services,,Invoice,BACS,No,30/03/2023 00:00,2023,1,1393685,B5201,Artington Park & Ride,D6004,Services,HTT11,Support to Public Transport Operators - Bus Services,HTT,Public Transport,HT,"Highways, Roads and Transport Services",H,"Highways, Roads and Transport Services"
GUILDFORD BOROUGH COUNCIL,Commercial Services,667120,Stripe Consulting Limited,25/04/2023,30100049,950,0,Asset Maintenance,Other Construction Consultants,Invoice,BACS,No,31/03/2023 00:00,2023,1,INV-5271,B2219,Bedford Road Mscp,B1001,Asset Maintenance,HTP10,Off-Street Parking,HTP,Parking Services,HT,"Highways, Roads and Transport Services",H,"Highways, Roads and Transport Services"
GUILDFORD BOROUGH COUNCIL,Modern Homes,949710,T Gilmartin Limited,25/04/2023,30100846,19653.24,0,Contractor Payments,Asbestos Removal Service Providers,Invoice,BACS,No,15/03/2023 00:00,2023,1,INV-161947-K3Z9W4,N42069,Void Properties - refurbishment,1233,Contractor Payments,XXX99,*** UNASSIGNED ***,WCC,CEC Recharges,WC,CEC Recharges,A,Central Services
GUILDFORD BOROUGH COUNCIL,Modern Homes,949710,T Gilmartin Limited,25/04/2023,30100847,49841.6,0,Contractor Payments,Asbestos Removal Service Providers,Invoice,BACS,No,31/03/2023 00:00,2023,1,INV-164987-F9P2T8,N42069,Void Properties - refurbishment,1233,Contractor Payments,XXX99,*** UNASSIGNED ***,WCC,CEC Recharges,WC,CEC Recharges,A,Central Services
GUILDFORD BOROUGH COUNCIL,Modern Homes,949710,T Gilmartin Limited,25/04/2023,30100848,25797.86,0,Contractor Payments,Asbestos Removal Service Providers,Invoice,BACS,No,31/03/2023 00:00,2023,1,INV-164988-N1H2Y9,N42069,Void Properties - refurbishment,1233,Contractor Payments,XXX99,*** UNASSIGNED ***,WCC,CEC Recharges,WC,CEC Recharges,A,Central Services
GUILDFORD BOROUGH COUNCIL,Modern Homes,949710,T Gilmartin Limited,25/04/2023,30100849,26649.34,0,Contractor Payments,Asbestos Removal Service Providers,Invoice,BACS,No,31/03/2023 00:00,2023,1,INV-164990-L5N5M0,N42069,Void Properties - refurbishment,1233,Contractor Payments,XXX99,*** UNASSIGNED ***,WCC,CEC Recharges,WC,CEC Recharges,A,Central Services
GUILDFORD BOROUGH COUNCIL,Modern Homes,949710,T Gilmartin Limited,25/04/2023,30100850,7065.35,0,Contractor Payments,Asbestos Removal Service Providers,Invoice,BACS,No,31/03/2023 00:00,2023,1,INV-164991-R2M0S5,N42069,Void Properties - refurbishment,1233,Contractor Payments,XXX99,*** UNASSIGNED ***,WCC,CEC Recharges,WC,CEC Recharges,A,Central Services
GUILDFORD BOROUGH COUNCIL,Modern Homes,949710,T Gilmartin Limited,25/04/2023,30100851,15350,0,Contractor Payments,Asbestos Removal Service Providers,Invoice,BACS,No,31/03/2023 00:00,2023,1,INV-164992-J0G9S3,N42069,Void Properties - refurbishment,1233,Contractor Payments,XXX99,*** UNASSIGNED ***,WCC,CEC Recharges,WC,CEC Recharges,A,Central Services
GUILDFORD BOROUGH COUNCIL,Modern Homes,949710,T Gilmartin Limited,25/04/2023,30100852,7629.94,0,Contractor Payments,Asbestos Removal Service Providers,Invoice,BACS,No,13/04/2023 00:00,2023,1,INV-166606-Z7S5B4,N42069,Void Properties - refurbishment,1233,Contractor Payments,XXX99,*** UNASSIGNED ***,WCC,CEC Recharges,WC,CEC Recharges,A,Central Services
GUILDFORD BOROUGH COUNCIL,Modern Homes,949710,T Gilmartin Limited,25/04/2023,30100853,17800,0,Contractor Payments,Asbestos Removal Service Providers,Invoice,BACS,No,13/04/2023 00:00,2023,1,INV-166608-S1Q7W2,N42069,Void Properties - refurbishment,1233,Contractor Payments,XXX99,*** UNASSIGNED ***,WCC,CEC Recharges,WC,CEC Recharges,A,Central Services
GUILDFORD BOROUGH COUNCIL,Modern Homes,949710,T Gilmartin Limited,25/04/2023,30100854,3808.07,0,Contractor Payments,Asbestos Removal Service Providers,Invoice,BACS,No,14/04/2023 00:00,2023,1,INV-166880-J8X9J9,N42069,Void Properties - refurbishment,1233,Contractor Payments,XXX99,*** UNASSIGNED ***,WCC,CEC Recharges,WC,CEC Recharges,A,Central Services
GUILDFORD BOROUGH COUNCIL,Modern Homes,949710,T Gilmartin Limited,25/04/2023,30100855,18400,0,Contractor Payments,Asbestos Removal Service Providers,Invoice,BACS,No,14/04/2023 00:00,2023,1,INV-166881-P4W2G5,N42069,Void Properties - refurbishment,1233,Contractor Payments,XXX99,*** UNASSIGNED ***,WCC,CEC Recharges,WC,CEC Recharges,A,Central Services
GUILDFORD BOROUGH COUNCIL,Renovations,960100,T J Hunt Contracting Ltd,25/04/2023,30100843,5358,0,Contractor Payments,Civil Engineers,Invoice,BACS,No,14/04/2023 00:00,2023,1,30535,N40295,Disabled adaptations,1233,Contractor Payments,XXX99,*** UNASSIGNED ***,WCC,CEC Recharges,WC,CEC Recharges,A,Central Services
GUILDFORD BOROUGH COUNCIL,Renovations,960100,T J Hunt Contracting Ltd,25/04/2023,30100844,1291,0,Contractor Payments,Civil Engineers,Invoice,BACS,No,14/04/2023 00:00,2023,1,30536,N40295,Disabled adaptations,1233,Contractor Payments,XXX99,*** UNASSIGNED ***,WCC,CEC Recharges,WC,CEC Recharges,A,Central Services
GUILDFORD BOROUGH COUNCIL,Renovations,960100,T J Hunt Contracting Ltd,25/04/2023,30100845,1298,0,Contractor Payments,Civil Engineers,Invoice,BACS,No,14/04/2023 00:00,2023,1,30537,N40295,Disabled adaptations,1233,Contractor Payments,XXX99,*** UNASSIGNED ***,WCC,CEC Recharges,WC,CEC Recharges,A,Central Services
GUILDFORD BOROUGH COUNCIL,Grants,984970,The OT Practice Ltd,25/04/2023,30099450,1785,0,Contractor Payments,,Invoice,BACS,No,31/03/2023 00:00,2023,1,INV-040464,N51019,BCF Non Grant Expenditure,1233,Contractor Payments,XXX99,*** UNASSIGNED ***,WCC,CEC Recharges,WC,CEC Recharges,A,Central Services
GUILDFORD BOROUGH COUNCIL,Renovations,984970,The OT Practice Ltd,25/04/2023,30099605,1500,0,Contractor Payments,,Invoice,BACS,No,31/03/2023 00:00,2023,1,INV-040466,N40295,Disabled adaptations,1233,Contractor Payments,XXX99,*** UNASSIGNED ***,WCC,CEC Recharges,WC,CEC Recharges,A,Central Services
GUILDFORD BOROUGH COUNCIL,Legal & Democratic Services,673650,Thomson Reuters,25/04/2023,30099614,343,0,Publications,,Invoice,BACS,No,01/04/2023 00:00,2023,1,848140391,F2511,Electoral Registration,D5001,Publications,ACE00,Registration of Electors,ACE,Elections,AC,Central Services to the Public,A,Central Services
GUILDFORD BOROUGH COUNCIL,HRA Service Delivery,690490,Town and Country Cleaners Ltd,25/04/2023,30099999,769.6,0,Cleaning Contractors,Commercial Cleaners,Invoice,BACS,No,29/03/2023 00:00,2023,1,83225,M3690,Supported Hsg-General (SHS),D6006,Cleaning Contractors,W3A05,Current Service Costs - Housing Services,W3A,Current Service Costs adjustment,W3,Current Service Costs,W,Other Operating Income and Expenditure
GUILDFORD BOROUGH COUNCIL,HRA Service Delivery,690490,Town and Country Cleaners Ltd,25/04/2023,30099999,8850.4,0,Cleaning Contractors,Commercial Cleaners,Invoice,BACS,No,29/03/2023 00:00,2023,1,83225,M1515,Sheltered Accomodation,D6006,Cleaning Contractors,W3A05,Current Service Costs - Housing Services,W3A,Current Service Costs adjustment,W3,Current Service Costs,W,Other Operating Income and Expenditure
GUILDFORD BOROUGH COUNCIL,HRA Service Delivery,690490,Town and Country Cleaners Ltd,25/04/2023,30099742,7020,0,Cleaning Contractors,Commercial Cleaners,Invoice,BACS,No,29/03/2023 00:00,2023,1,83224,M1151,Tenants Services (BHS),D6006,Cleaning Contractors,W3A05,Current Service Costs - Housing Services,W3A,Current Service Costs adjustment,W3,Current Service Costs,W,Other Operating Income and Expenditure
GUILDFORD BOROUGH COUNCIL,Organisational Development,957830,TP Health Ltd,25/04/2023,30099767,1222,0,Staff Costs,Health And Safety Training Providers,Invoice,BACS,No,31/03/2023 00:00,2023,1,10219,G2555,HR Services,A7100,Staff Costs,DBX70,Other Management Costs,DBX,Support Service and Management Costs,DB,Children's Social Care,E,Childrens and Education Services
GUILDFORD BOROUGH COUNCIL,Finance,975910,Unit4 Business Software Ltd,25/04/2023,30100066,3549,0,ICT Software,,Invoice,BACS,No,31/03/2023 00:00,2023,1,2000014533,G3565,Finance Specialists,D7002,ICT Software,DBX35,Finance (including Internal Audit),DBX,Support Service and Management Costs,DB,Children's Social Care,E,Childrens and Education Services
GUILDFORD BOROUGH COUNCIL,Communication & Customer Services,975910,Unit4 Business Software Ltd,25/04/2023,30100022,22032.06,0,ICT Software,,Invoice,BACS,No,25/01/2023 00:00,2023,1,20000016185,G3547,ICT Development,D7002,ICT Software,DBX70,Other Management Costs,DBX,Support Service and Management Costs,DB,Children's Social Care,E,Childrens and Education Services
GUILDFORD BOROUGH COUNCIL,HRA Service Delivery,948420,Up North Communications Ltd,25/04/2023,30099312,995,0,"Advertising, Publicity & Promotion",Media Production Agencies,Invoice,BACS,No,31/03/2023 00:00,2023,1,INV-0624,M1152,Tenant Participation (BHS),D5002,"Advertising, Publicity & Promotion",W3A05,Current Service Costs - Housing Services,W3A,Current Service Costs adjustment,W3,Current Service Costs,W,Other Operating Income and Expenditure
GUILDFORD BOROUGH COUNCIL,Environmental Services,1000713,Vivedia Limited,25/04/2023,30099290,4949,0,Stock For Re-Sale,,Invoice,BACS,No,31/03/2023 00:00,2023,1,2023-03-GUILDFORD,A1500,Crematorium,D2004,Stock For Re-Sale,CEA10,Crematoria,CEA,"Cemetery, Cremation and Mortuary Services",CE,Environmental & Regulatory Services,C,"Cultural, Environmental & Planning Services"
GUILDFORD BOROUGH COUNCIL,Housing Services,969700,A Star Maintenance Contractors Ltd (CIS),27/04/2023,30101107,600,0,Services,Property Maintenance Contractors,Invoice,BACS,No,20/04/2023 00:00,2023,1,14711,K1515,Building Maintenance,D6004,Services,DBX45,Property Services,DBX,Support Service and Management Costs,DB,Children's Social Care,E,Childrens and Education Services
GUILDFORD BOROUGH COUNCIL,Housing Services,969700,A Star Maintenance Contractors Ltd (CIS),27/04/2023,30101107,627.27,0,Materials,Property Maintenance Contractors,Invoice,BACS,No,20/04/2023 00:00,2023,1,14711,K1515,Building Maintenance,D2003,Materials,DBX45,Property Services,DBX,Support Service and Management Costs,DB,Children's Social Care,E,Childrens and Education Services
GUILDFORD BOROUGH COUNCIL,Housing Services,969700,A Star Maintenance Contractors Ltd (CIS),27/04/2023,30101112,2000,0,Services,Property Maintenance Contractors,Invoice,BACS,No,20/04/2023 00:00,2023,1,14712,K1515,Building Maintenance,D6004,Services,DBX45,Property Services,DBX,Support Service and Management Costs,DB,Children's Social Care,E,Childrens and Education Services
GUILDFORD BOROUGH COUNCIL,Housing Services,969700,A Star Maintenance Contractors Ltd (CIS),27/04/2023,30101112,2938.23,0,Materials,Property Maintenance Contractors,Invoice,BACS,No,20/04/2023 00:00,2023,1,14712,K1515,Building Maintenance,D2003,Materials,DBX45,Property Services,DBX,Support Service and Management Costs,DB,Children's Social Care,E,Childrens and Education Services
GUILDFORD BOROUGH COUNCIL,Inventories,178400,Akw Medi-Care Limited,27/04/2023,30100608,629.21,0,Purchases,Mobility Disability Equipment Suppliers,Invoice,BACS,No,04/04/2023 00:00,2023,1,2157601,I01001,Stocks,2591,Purchases,DBX45,Property Services,DBX,Support Service and Management Costs,DB,Children's Social Care,E,Childrens and Education Services
GUILDFORD BOROUGH COUNCIL,HRA Service Delivery,129090,Breyer Group Plc,27/04/2023,30101045,1881.85,0,Asset Maintenance,General Builders,Invoice,BACS,No,20/04/2023 00:00,2023,1,56660,M5106,Repairs-Shelt-Responsive (BHS),B1001,Asset Maintenance,W3A05,Current Service Costs - Housing Services,W3A,Current Service Costs adjustment,W3,Current Service Costs,W,Other Operating Income and Expenditure
GUILDFORD BOROUGH COUNCIL,Assets and Property,412860,British Gas (Payment Area 60),27/04/2023,30100120,272.42,0,Utilities,Mains Gas Suppliers,Invoice,BACS,No,04/04/2023 00:00,2023,1,844800806,B6550,"Multiplex Cinema, Bedford Road",B2001,Utilities,DBX45,Property Services,DBX,Support Service and Management Costs,DB,Children's Social Care,E,Childrens and Education Services
GUILDFORD BOROUGH COUNCIL,Modern Homes,148650,Brodie Plant Goddard,27/04/2023,30100235,1265,0,Contractor Payments,Quantity Surveyors,Invoice,BACS,No,04/04/2023 00:00,2023,1,14140/4384,N47034,Pitched roof replacement,1233,Contractor Payments,XXX99,*** UNASSIGNED ***,WCC,CEC Recharges,WC,CEC Recharges,A,Central Services
GUILDFORD BOROUGH COUNCIL,Renovations,900320,BSW Building Services Ltd,27/04/2023,30101047,1668,0,Contractor Payments,"Plumbing, Heating And Ac (Hvac) Contractors",Invoice,BACS,No,18/11/2022 00:00,2023,1,78000,N40276,Lift Refurb Japonica Ct 2020-21,1233,Contractor Payments,XXX99,*** UNASSIGNED ***,WCC,CEC Recharges,WC,CEC Recharges,A,Central Services
GUILDFORD BOROUGH COUNCIL,Housing Services,777540,BT Global Services,27/04/2023,30100023,6926.94,0,Telephones & Broadband,Fixed Telecoms Service Providers,Invoice,BACS,No,03/04/2023 00:00,2023,1,20035909,F7540,Town Centre CCTV System,D7004,Telephones & Broadband,HTX10,Highways & Transport - Professional and Engineering Services,HTX,Highways Management and Support,HT,"Highways, Roads and Transport Services",H,"Highways, Roads and Transport Services"
GUILDFORD BOROUGH COUNCIL,HRA Service Delivery,982900,C L C Contractors Limited,27/04/2023,30101095,624.75,0,Asset Maintenance,Property Maintenance Contractors,Invoice,BACS,No,04/04/2023 00:00,2023,1,INV017720,M5114,Repairs-Cyclical (BHS),B1001,Asset Maintenance,W3A05,Current Service Costs - Housing Services,W3A,Current Service Costs adjustment,W3,Current Service Costs,W,Other Operating Income and Expenditure
GUILDFORD BOROUGH COUNCIL,HRA Service Delivery,982900,C L C Contractors Limited,27/04/2023,30101095,975.49,0,Asset Maintenance,Property Maintenance Contractors,Invoice,BACS,No,04/04/2023 00:00,2023,1,INV017720,M5114,Repairs-Cyclical (BHS),B1001,Asset Maintenance,W3A05,Current Service Costs - Housing Services,W3A,Current Service Costs adjustment,W3,Current Service Costs,W,Other Operating Income and Expenditure
GUILDFORD BOROUGH COUNCIL,HRA Service Delivery,982900,C L C Contractors Limited,27/04/2023,30101095,756.28,0,Asset Maintenance,Property Maintenance Contractors,Invoice,BACS,No,04/04/2023 00:00,2023,1,INV017720,M5114,Repairs-Cyclical (BHS),B1001,Asset Maintenance,W3A05,Current Service Costs - Housing Services,W3A,Current Service Costs adjustment,W3,Current Service Costs,W,Other Operating Income and Expenditure
GUILDFORD BOROUGH COUNCIL,HRA Service Delivery,982900,C L C Contractors Limited,27/04/2023,30101095,292.71,0,Asset Maintenance,Property Maintenance Contractors,Invoice,BACS,No,04/04/2023 00:00,2023,1,INV017720,M5114,Repairs-Cyclical (BHS),B1001,Asset Maintenance,W3A05,Current Service Costs - Housing Services,W3A,Current Service Costs adjustment,W3,Current Service Costs,W,Other Operating Income and Expenditure
GUILDFORD BOROUGH COUNCIL,HRA Service Delivery,982900,C L C Contractors Limited,27/04/2023,30101095,452.77,0,Asset Maintenance,Property Maintenance Contractors,Invoice,BACS,No,04/04/2023 00:00,2023,1,INV017720,M5114,Repairs-Cyclical (BHS),B1001,Asset Maintenance,W3A05,Current Service Costs - Housing Services,W3A,Current Service Costs adjustment,W3,Current Service Costs,W,Other Operating Income and Expenditure
GUILDFORD BOROUGH COUNCIL,HRA Service Delivery,982900,C L C Contractors Limited,27/04/2023,30101095,815.63,0,Asset Maintenance,Property Maintenance Contractors,Invoice,BACS,No,04/04/2023 00:00,2023,1,INV017720,M5114,Repairs-Cyclical (BHS),B1001,Asset Maintenance,W3A05,Current Service Costs - Housing Services,W3A,Current Service Costs adjustment,W3,Current Service Costs,W,Other Operating Income and Expenditure
GUILDFORD BOROUGH COUNCIL,HRA Service Delivery,982900,C L C Contractors Limited,27/04/2023,30101095,306.91,0,Asset Maintenance,Property Maintenance Contractors,Invoice,BACS,No,04/04/2023 00:00,2023,1,INV017720,M5114,Repairs-Cyclical (BHS),B1001,Asset Maintenance,W3A05,Current Service Costs - Housing Services,W3A,Current Service Costs adjustment,W3,Current Service Costs,W,Other Operating Income and Expenditure
GUILDFORD BOROUGH COUNCIL,HRA Service Delivery,982900,C L C Contractors Limited,27/04/2023,30101095,272.93,0,Asset Maintenance,Property Maintenance Contractors,Invoice,BACS,No,04/04/2023 00:00,2023,1,INV017720,M5114,Repairs-Cyclical (BHS),B1001,Asset Maintenance,W3A05,Current Service Costs - Housing Services,W3A,Current Service Costs adjustment,W3,Current Service Costs,W,Other Operating Income and Expenditure
GUILDFORD BOROUGH COUNCIL,HRA Service Delivery,982900,C L C Contractors Limited,27/04/2023,30101095,530.72,0,Asset Maintenance,Property Maintenance Contractors,Invoice,BACS,No,04/04/2023 00:00,2023,1,INV017720,M5114,Repairs-Cyclical (BHS),B1001,Asset Maintenance,W3A05,Current Service Costs - Housing Services,W3A,Current Service Costs adjustment,W3,Current Service Costs,W,Other Operating Income and Expenditure
GUILDFORD BOROUGH COUNCIL,HRA Service Delivery,982900,C L C Contractors Limited,27/04/2023,30101095,734.52,0,Asset Maintenance,Property Maintenance Contractors,Invoice,BACS,No,04/04/2023 00:00,2023,1,INV017720,M5114,Repairs-Cyclical (BHS),B1001,Asset Maintenance,W3A05,Current Service Costs - Housing Services,W3A,Current Service Costs adjustment,W3,Current Service Costs,W,Other Operating Income and Expenditure
GUILDFORD BOROUGH COUNCIL,HRA Service Delivery,982900,C L C Contractors Limited,27/04/2023,30101095,1447.18,0,Asset Maintenance,Property Maintenance Contractors,Invoice,BACS,No,04/04/2023 00:00,2023,1,INV017720,M5114,Repairs-Cyclical (BHS),B1001,Asset Maintenance,W3A05,Current Service Costs - Housing Services,W3A,Current Service Costs adjustment,W3,Current Service Costs,W,Other Operating Income and Expenditure
GUILDFORD BOROUGH COUNCIL,Executive - Miscellaneous,127400,Chambers Runfold Plc,27/04/2023,30100840,2861.2,0,Contractor Payments,Quarry And Aggregates Suppliers,Invoice,BACS,No,07/03/2023 00:00,2023,1,206854,P79100,Wuv - Allotment Relocation,1233,Contractor Payments,XXX99,*** UNASSIGNED ***,WCC,CEC Recharges,WC,CEC Recharges,A,Central Services
GUILDFORD BOROUGH COUNCIL,Environmental Services,186020,Chubb Fire & Security Ltd,27/04/2023,30100475,386.17,0,Asset Maintenance,Fire Fighting And Rescue Equipment Suppliers,Invoice,BACS,No,03/04/2023 00:00,2023,1,9822734,A1500,Crematorium,B1001,Asset Maintenance,CEA10,Crematoria,CEA,"Cemetery, Cremation and Mortuary Services",CE,Environmental & Regulatory Services,C,"Cultural, Environmental & Planning Services"
GUILDFORD BOROUGH COUNCIL,Housing Services,921860,Cinnamon Construction Limited (CIS),27/04/2023,30101140,6921,0,Services,General Builders,Invoice,BACS,No,24/04/2023 00:00,2023,1,155,K1515,Building Maintenance,D6004,Services,DBX45,Property Services,DBX,Support Service and Management Costs,DB,Children's Social Care,E,Childrens and Education Services
GUILDFORD BOROUGH COUNCIL,Housing Services,150290,Clarke Gammon  (please check you are using the correct CG supplier),27/04/2023,30100924,1500,0,Valuers Fees,Property Letting And Estate Agents,Invoice,BACS,No,20/04/2023 00:00,2023,1,15481,C4111,Affordable Housing Development,D6002,Valuers Fees,KGU00,Supporting People - Strategy,KGU,Supporting People,KG,Housing General Fund,K,Housing Services
GUILDFORD BOROUGH COUNCIL,HRA Service Delivery,150290,Clarke Gammon  (please check you are using the correct CG supplier),27/04/2023,30099460,285,0,Valuers Fees,Property Letting And Estate Agents,Invoice,BACS,No,14/07/2022 00:00,2023,1,15234,M1181,Sale Of Council Houses (BHS),D6002,Valuers Fees,W3A05,Current Service Costs - Housing Services,W3A,Current Service Costs adjustment,W3,Current Service Costs,W,Other Operating Income and Expenditure
GUILDFORD BOROUGH COUNCIL,Executive - Miscellaneous,705240,Countryside Contracts Ltd (CIS),27/04/2023,30100938,3500,0,Contractor Payments,Tree Work Contractors,Invoice,BACS,No,21/04/2023 00:00,2023,1,INV-2274,P79100,Wuv - Allotment Relocation,1233,Contractor Payments,XXX99,*** UNASSIGNED ***,WCC,CEC Recharges,WC,CEC Recharges,A,Central Services
GUILDFORD BOROUGH COUNCIL,Executive - Miscellaneous,705240,Countryside Contracts Ltd (CIS),27/04/2023,30100938,1320,0,Contractor Payments,Tree Work Contractors,Invoice,BACS,No,21/04/2023 00:00,2023,1,INV-2274,P79100,Wuv - Allotment Relocation,1233,Contractor Payments,XXX99,*** UNASSIGNED ***,WCC,CEC Recharges,WC,CEC Recharges,A,Central Services
GUILDFORD BOROUGH COUNCIL,Renovations,1000906,Crucial Environmental Ltd,27/04/2023,30101050,316,0,Contractor Payments,,Invoice,BACS,No,06/04/2023 00:00,2023,1,INV-19479,N40299,Asbestos removal,1233,Contractor Payments,XXX99,*** UNASSIGNED ***,WCC,CEC Recharges,WC,CEC Recharges,A,Central Services
GUILDFORD BOROUGH COUNCIL,Renovations,1000906,Crucial Environmental Ltd,27/04/2023,30101050,316,0,Contractor Payments,,Invoice,BACS,No,06/04/2023 00:00,2023,1,INV-19479,N40299,Asbestos removal,1233,Contractor Payments,XXX99,*** UNASSIGNED ***,WCC,CEC Recharges,WC,CEC Recharges,A,Central Services
GUILDFORD BOROUGH COUNCIL,Renovations,1000906,Crucial Environmental Ltd,27/04/2023,30101050,316,0,Contractor Payments,,Invoice,BACS,No,06/04/2023 00:00,2023,1,INV-19479,N40299,Asbestos removal,1233,Contractor Payments,XXX99,*** UNASSIGNED ***,WCC,CEC Recharges,WC,CEC Recharges,A,Central Services
GUILDFORD BOROUGH COUNCIL,Renovations,1000906,Crucial Environmental Ltd,27/04/2023,30101050,812,0,Contractor Payments,,Invoice,BACS,No,06/04/2023 00:00,2023,1,INV-19479,N40299,Asbestos removal,1233,Contractor Payments,XXX99,*** UNASSIGNED ***,WCC,CEC Recharges,WC,CEC Recharges,A,Central Services
GUILDFORD BOROUGH COUNCIL,Renovations,1000906,Crucial Environmental Ltd,27/04/2023,30101050,544,0,Contractor Payments,,Invoice,BACS,No,06/04/2023 00:00,2023,1,INV-19479,N40299,Asbestos removal,1233,Contractor Payments,XXX99,*** UNASSIGNED ***,WCC,CEC Recharges,WC,CEC Recharges,A,Central Services
GUILDFORD BOROUGH COUNCIL,Renovations,1000906,Crucial Environmental Ltd,27/04/2023,30101050,812,0,Contractor Payments,,Invoice,BACS,No,06/04/2023 00:00,2023,1,INV-19479,N40299,Asbestos removal,1233,Contractor Payments,XXX99,*** UNASSIGNED ***,WCC,CEC Recharges,WC,CEC Recharges,A,Central Services
GUILDFORD BOROUGH COUNCIL,Renovations,1000906,Crucial Environmental Ltd,27/04/2023,30101050,688,0,Contractor Payments,,Invoice,BACS,No,06/04/2023 00:00,2023,1,INV-19479,N40299,Asbestos removal,1233,Contractor Payments,XXX99,*** UNASSIGNED ***,WCC,CEC Recharges,WC,CEC Recharges,A,Central Services
GUILDFORD BOROUGH COUNCIL,Environmental Services,795800,CTG Enterprises Ltd,27/04/2023,30099759,7488,0,Materials,Other Cleaning And Janitorial Service Providers,Invoice,BACS,No,03/04/2023 00:00,2023,1,GU2056GBC,A1300,Trees And Countryside,D2003,Materials,CCE00,Community Parks & Open Spaces,CCE,Open Spaces,CC,Cultural & Related Services,C,"Cultural, Environmental & Planning Services"
GUILDFORD BOROUGH COUNCIL,Housing Services,713710,D G Property Refurbishment Ltd,27/04/2023,30101117,3100,0,Materials,Restoration Specialists,Invoice,BACS,No,24/04/2023 00:00,2023,1,178,K1515,Building Maintenance,D2003,Materials,DBX45,Property Services,DBX,Support Service and Management Costs,DB,Children's Social Care,E,Childrens and Education Services
GUILDFORD BOROUGH COUNCIL,Housing Services,713710,D G Property Refurbishment Ltd,27/04/2023,30101117,2158.5,0,Services,Restoration Specialists,Invoice,BACS,No,24/04/2023 00:00,2023,1,178,K1515,Building Maintenance,D6004,Services,DBX45,Property Services,DBX,Support Service and Management Costs,DB,Children's Social Care,E,Childrens and Education Services
GUILDFORD BOROUGH COUNCIL,Housing Services,946970,Davis Property Services GU Limited (CIS),27/04/2023,30101114,8027.87,0,Services,Roofers,Invoice,BACS,No,19/04/2023 00:00,2023,1,2410,K1515,Building Maintenance,D6004,Services,DBX45,Property Services,DBX,Support Service and Management Costs,DB,Children's Social Care,E,Childrens and Education Services
GUILDFORD BOROUGH COUNCIL,Housing Services,946970,Davis Property Services GU Limited (CIS),27/04/2023,30101134,7322.83,0,Services,Roofers,Invoice,BACS,No,19/04/2023 00:00,2023,1,2411,K1515,Building Maintenance,D6004,Services,DBX45,Property Services,DBX,Support Service and Management Costs,DB,Children's Social Care,E,Childrens and Education Services
GUILDFORD BOROUGH COUNCIL,Planning & Development,1000445,East Hampshire District Council,27/04/2023,30100934,900,0,Consultancy,,Invoice,BACS,No,28/02/2023 00:00,2023,1,2000216128,D5100,Development Control - Fee Earn,D6001,Consultancy,CPC00,Development Control Advice,CPC,Development Control,CP,Planning and Development Services,C,"Cultural, Environmental & Planning Services"
GUILDFORD BOROUGH COUNCIL,Assets and Property,1000744,Ecotricity Limited,27/04/2023,30100057,1240.07,0,Utilities,,Invoice,BACS,No,03/04/2023 00:00,2023,1,3458817,B5341,Midleton Industrial Estate,B2001,Utilities,CPJ00,Market Undertakings,CPJ,Economic Development,CP,Planning and Development Services,C,"Cultural, Environmental & Planning Services"
GUILDFORD BOROUGH COUNCIL,Assets and Property,1000744,Ecotricity Limited,27/04/2023,30100065,2161.88,0,Utilities,,Invoice,BACS,No,03/04/2023 00:00,2023,1,3458803,B5341,Midleton Industrial Estate,B2001,Utilities,CPJ00,Market Undertakings,CPJ,Economic Development,CP,Planning and Development Services,C,"Cultural, Environmental & Planning Services"
GUILDFORD BOROUGH COUNCIL,Assets and Property,1000744,Ecotricity Limited,27/04/2023,30100074,276.15,0,Utilities,,Invoice,BACS,No,03/04/2023 00:00,2023,1,3458818,B5341,Midleton Industrial Estate,B2001,Utilities,CPJ00,Market Undertakings,CPJ,Economic Development,CP,Planning and Development Services,C,"Cultural, Environmental & Planning Services"
GUILDFORD BOROUGH COUNCIL,Communication & Customer Services,853640,EE Limited (Airtime Payments),27/04/2023,30100088,6141.03,0,Telephones & Broadband,Mobile Communications Service Providers,Invoice,BACS,No,03/04/2023 00:00,2023,1,1287835140,G3548,ICT Technical & Infrastructure,D7004,Telephones & Broadband,DBX70,Other Management Costs,DBX,Support Service and Management Costs,DB,Children's Social Care,E,Childrens and Education Services
GUILDFORD BOROUGH COUNCIL,Assets and Property,959080,F & G Cleaners Ltd,27/04/2023,30100920,3027,0,Maintenance Contracts,,Invoice,BACS,No,03/04/2023 00:00,2023,1,60266,G7511,Millmead House,D1002,Maintenance Contracts,DBX70,Other Management Costs,DBX,Support Service and Management Costs,DB,Children's Social Care,E,Childrens and Education Services
GUILDFORD BOROUGH COUNCIL,Assets and Property,959080,F & G Cleaners Ltd,27/04/2023,30100903,431,0,Maintenance Contracts,,Invoice,BACS,No,03/04/2023 00:00,2023,1,60267,G7511,Millmead House,D1002,Maintenance Contracts,DBX70,Other Management Costs,DBX,Support Service and Management Costs,DB,Children's Social Care,E,Childrens and Education Services
GUILDFORD BOROUGH COUNCIL,Environmental Services,882220,Fuller Tyres Limited,27/04/2023,30099872,1332,0,Materials,Other Vehicle Equipment Providers,Invoice,BACS,No,04/04/2023 00:00,2023,1,FTI-43522,K5551,Fleet Workshops,D2003,Materials,W3A48,Current Service Costs - Fleet Management,W3A,Current Service Costs adjustment,W3,Current Service Costs,W,Other Operating Income and Expenditure
GUILDFORD BOROUGH COUNCIL,Environmental Services,882220,Fuller Tyres Limited,27/04/2023,30099764,1270,0,Materials,Other Vehicle Equipment Providers,Invoice,BACS,No,03/04/2023 00:00,2023,1,FTI-43506,K5551,Fleet Workshops,D2003,Materials,W3A48,Current Service Costs - Fleet Management,W3A,Current Service Costs adjustment,W3,Current Service Costs,W,Other Operating Income and Expenditure
GUILDFORD BOROUGH COUNCIL,Environmental Services,111790,GHL Liftrucks Ltd,27/04/2023,30100912,390,0,Hire,Fork Lift Truck Suppliers,Invoice,BACS,No,26/02/2023 00:00,2023,1,4115221,B4452,Woking Road Depot,D1001,Hire,XXX99,*** UNASSIGNED ***,WCC,CEC Recharges,WC,CEC Recharges,A,Central Services
GUILDFORD BOROUGH COUNCIL,HRA Service Delivery,217900,Glencross Cleaning Limited,27/04/2023,30100182,350,0,Cleaning Contractors,Other Cleaning And Janitorial Service Providers,Invoice,BACS,No,04/04/2023 00:00,2023,1,26913,M5113,Repairs-Responsive (BHS),D6006,Cleaning Contractors,W3A05,Current Service Costs - Housing Services,W3A,Current Service Costs adjustment,W3,Current Service Costs,W,Other Operating Income and Expenditure
GUILDFORD BOROUGH COUNCIL,HRA Service Delivery,217900,Glencross Cleaning Limited,27/04/2023,30100183,450,0,Cleaning Contractors,Other Cleaning And Janitorial Service Providers,Invoice,BACS,No,04/04/2023 00:00,2023,1,26914,M5113,Repairs-Responsive (BHS),D6006,Cleaning Contractors,W3A05,Current Service Costs - Housing Services,W3A,Current Service Costs adjustment,W3,Current Service Costs,W,Other Operating Income and Expenditure
GUILDFORD BOROUGH COUNCIL,HRA Service Delivery,217900,Glencross Cleaning Limited,27/04/2023,30100184,350,0,Cleaning Contractors,Other Cleaning And Janitorial Service Providers,Invoice,BACS,No,04/04/2023 00:00,2023,1,26915,M5113,Repairs-Responsive (BHS),D6006,Cleaning Contractors,W3A05,Current Service Costs - Housing Services,W3A,Current Service Costs adjustment,W3,Current Service Costs,W,Other Operating Income and Expenditure
GUILDFORD BOROUGH COUNCIL,HRA Service Delivery,217900,Glencross Cleaning Limited,27/04/2023,30100185,350,0,Cleaning Contractors,Other Cleaning And Janitorial Service Providers,Invoice,BACS,No,04/04/2023 00:00,2023,1,26916,M5113,Repairs-Responsive (BHS),D6006,Cleaning Contractors,W3A05,Current Service Costs - Housing Services,W3A,Current Service Costs adjustment,W3,Current Service Costs,W,Other Operating Income and Expenditure
GUILDFORD BOROUGH COUNCIL,HRA Service Delivery,217900,Glencross Cleaning Limited,27/04/2023,30100186,350,0,Cleaning Contractors,Other Cleaning And Janitorial Service Providers,Invoice,BACS,No,04/04/2023 00:00,2023,1,26917,M5113,Repairs-Responsive (BHS),D6006,Cleaning Contractors,W3A05,Current Service Costs - Housing Services,W3A,Current Service Costs adjustment,W3,Current Service Costs,W,Other Operating Income and Expenditure
GUILDFORD BOROUGH COUNCIL,Finance,156250,Hays Specialist Recruitment Limited,27/04/2023,30099589,2880,0,Agency,Other Recruitment Agencies And Service Providers,Invoice,BACS,No,04/04/2023 00:00,2023,1,1012885100,G3593,Procurement Services,A5191,Agency,DBX35,Finance (including Internal Audit),DBX,Support Service and Management Costs,DB,Children's Social Care,E,Childrens and Education Services
GUILDFORD BOROUGH COUNCIL,Parks & Countryside,1000765,Henderson & Taylor Public Works Limited,27/04/2023,30100265,4538,0,Contractor Payments,,Invoice,BACS,No,17/04/2023 00:00,2023,1,109442,P18215,"Parks-Paths,Roads & Car Park",1233,Contractor Payments,XXX99,*** UNASSIGNED ***,WCC,CEC Recharges,WC,CEC Recharges,A,Central Services
GUILDFORD BOROUGH COUNCIL,Parks & Countryside,1000765,Henderson & Taylor Public Works Limited,27/04/2023,30100286,4829,0,Contractor Payments,,Invoice,BACS,No,17/04/2023 00:00,2023,1,109441,P18215,"Parks-Paths,Roads & Car Park",1233,Contractor Payments,XXX99,*** UNASSIGNED ***,WCC,CEC Recharges,WC,CEC Recharges,A,Central Services
GUILDFORD BOROUGH COUNCIL,Environmental Services,167040,ICCM,27/04/2023,30100752,310,0,Grants And Subscriptions,Other Training Providers,Invoice,BACS,No,03/04/2023 00:00,2023,1,16060,A1500,Crematorium,D9001,Grants And Subscriptions,CEA10,Crematoria,CEA,"Cemetery, Cremation and Mortuary Services",CE,Environmental & Regulatory Services,C,"Cultural, Environmental & Planning Services"
GUILDFORD BOROUGH COUNCIL,Commercial Services,1000761,Jade Security Services Ltd,27/04/2023,30101025,2439.45,0,Bank Charges,,Invoice,BACS,No,31/03/2023 00:00,2023,1,5381,B2217,Guildford On-Street,D8002,Bank Charges,HTP00,On-Street Parking,HTP,Parking Services,HT,"Highways, Roads and Transport Services",H,"Highways, Roads and Transport Services"
GUILDFORD BOROUGH COUNCIL,Commercial Services,1000761,Jade Security Services Ltd,27/04/2023,30101025,11279.85,0,Bank Charges,,Invoice,BACS,No,31/03/2023 00:00,2023,1,5381,B2217,Guildford On-Street,D8002,Bank Charges,HTP00,On-Street Parking,HTP,Parking Services,HT,"Highways, Roads and Transport Services",H,"Highways, Roads and Transport Services"
GUILDFORD BOROUGH COUNCIL,Commercial Services,1000761,Jade Security Services Ltd,27/04/2023,30101025,2939.85,0,Bank Charges,,Invoice,BACS,No,31/03/2023 00:00,2023,1,5381,B2217,Guildford On-Street,D8002,Bank Charges,HTP00,On-Street Parking,HTP,Parking Services,HT,"Highways, Roads and Transport Services",H,"Highways, Roads and Transport Services"
GUILDFORD BOROUGH COUNCIL,Commercial Services,1000761,Jade Security Services Ltd,27/04/2023,30101025,562.95,0,Bank Charges,,Invoice,BACS,No,31/03/2023 00:00,2023,1,5381,B2215,Waverley On-Street,D8002,Bank Charges,HTP00,On-Street Parking,HTP,Parking Services,HT,"Highways, Roads and Transport Services",H,"Highways, Roads and Transport Services"
GUILDFORD BOROUGH COUNCIL,Commercial Services,748360,JC Electrics (Guildford) Ltd,27/04/2023,30101030,322,0,Asset Maintenance,Electrical Wiring And Parts Suppliers,Invoice,BACS,No,12/04/2023 00:00,2023,1,M1203,A2141,G Live,B1001,Asset Maintenance,CCA10,Arts Development & Support,CCA,Culture & Heritage,CC,Cultural & Related Services,C,"Cultural, Environmental & Planning Services"
GUILDFORD BOROUGH COUNCIL,Assets and Property,748360,JC Electrics (Guildford) Ltd,27/04/2023,30101033,292.3,0,Asset Maintenance,Electrical Wiring And Parts Suppliers,Invoice,BACS,No,12/04/2023 00:00,2023,1,M1206,G7515,Old Millmead House,B1001,Asset Maintenance,DBX45,Property Services,DBX,Support Service and Management Costs,DB,Children's Social Care,E,Childrens and Education Services
GUILDFORD BOROUGH COUNCIL,Commercial Services,877460,JJ Surveying Ltd,27/04/2023,30100295,630,0,Consultancy,Surveyors And Inspectors,Invoice,BACS,No,03/04/2023 00:00,2023,1,1691,D5700,Building Control - Fee,D6001,Consultancy,CPB00,Building Regulations,CPB,Building Control,CP,Planning and Development Services,C,"Cultural, Environmental & Planning Services"
GUILDFORD BOROUGH COUNCIL,Inventories,510200,M E Duffell Ltd,27/04/2023,30100574,4190.16,0,Purchases,Keys And Locksmiths,Invoice,BACS,No,03/04/2023 00:00,2023,1,I2594224,I01001,Stocks,2591,Purchases,DBX45,Property Services,DBX,Support Service and Management Costs,DB,Children's Social Care,E,Childrens and Education Services
GUILDFORD BOROUGH COUNCIL,Organisational Development,971670,My Staff Shop Limited,27/04/2023,30101004,810.75,0,Staff Costs,Other Business Service Providers,Invoice,BACS,No,24/04/2023 00:00,2023,1,INV-9405,G2555,HR Services,A7100,Staff Costs,DBX70,Other Management Costs,DBX,Support Service and Management Costs,DB,Children's Social Care,E,Childrens and Education Services
GUILDFORD BOROUGH COUNCIL,Inventories,634040,Prax Petroleum Ltd,27/04/2023,30099766,14037.66,0,Purchases,"Petrol, Diesel And Lubricant Suppliers",Invoice,BACS,No,04/04/2023 00:00,2023,1,200100532,I01001,Stocks,2591,Purchases,DBX45,Property Services,DBX,Support Service and Management Costs,DB,Children's Social Care,E,Childrens and Education Services
GUILDFORD BOROUGH COUNCIL,Housing Services,847120,Project 114 Ltd,27/04/2023,30099445,1140,0,Emergency Accomodation,Property Letting And Estate Agents,Invoice,BACS,No,03/04/2023 00:00,2023,1,3593,C3311,Homelessness,D8009,Emergency Accomodation,KGU00,Supporting People - Strategy,KGU,Supporting People,KG,Housing General Fund,K,Housing Services
GUILDFORD BOROUGH COUNCIL,Housing Services,846250,Revive Services (CIS),27/04/2023,30101105,3500,0,Services,Other Cleaning And Janitorial Service Providers,Invoice,BACS,No,24/04/2023 00:00,2023,1,206A,K1515,Building Maintenance,D6004,Services,DBX45,Property Services,DBX,Support Service and Management Costs,DB,Children's Social Care,E,Childrens and Education Services
GUILDFORD BOROUGH COUNCIL,Housing Services,769600,RGB Decorating Limited (CIS),27/04/2023,30101139,8850,0,Services,Painters And Decorators,Invoice,BACS,No,24/04/2023 00:00,2023,1,322324,K1515,Building Maintenance,D6004,Services,DBX45,Property Services,DBX,Support Service and Management Costs,DB,Children's Social Care,E,Childrens and Education Services
GUILDFORD BOROUGH COUNCIL,Community Services,742000,Scattergoods Agency Ltd,27/04/2023,30099729,711.9,0,Agency,Other Recruitment Agencies And Service Providers,Invoice,BACS,No,04/04/2023 00:00,2023,1,440362,C8100,Community Hubs,A5191,Agency,KGU00,Supporting People - Strategy,KGU,Supporting People,KG,Housing General Fund,K,Housing Services
GUILDFORD BOROUGH COUNCIL,Renovations,921750,SCBS (CIS),27/04/2023,30101051,5261.74,0,Contractor Payments,Other Construction Contractors,Invoice,BACS,No,19/04/2023 00:00,2023,1,1911,N40295,Disabled adaptations,1233,Contractor Payments,XXX99,*** UNASSIGNED ***,WCC,CEC Recharges,WC,CEC Recharges,A,Central Services
GUILDFORD BOROUGH COUNCIL,Renovations,921750,SCBS (CIS),27/04/2023,30101052,5155.1,0,Contractor Payments,Other Construction Contractors,Invoice,BACS,No,19/04/2023 00:00,2023,1,1912,N40295,Disabled adaptations,1233,Contractor Payments,XXX99,*** UNASSIGNED ***,WCC,CEC Recharges,WC,CEC Recharges,A,Central Services
GUILDFORD BOROUGH COUNCIL,Grants,729250,SCBS (Grants only),27/04/2023,30100841,2979.29,0,Grants To Private Owners,General Builders,Invoice,BACS,No,20/04/2023 00:00,2023,1,SCBS 1916,N51008,Mandatory DFG,1311,Grants To Private Owners,XXX99,*** UNASSIGNED ***,WCC,CEC Recharges,WC,CEC Recharges,A,Central Services
GUILDFORD BOROUGH COUNCIL,Renovations,1000554,Seville Developments,27/04/2023,30101071,3828.78,0,Contractor Payments,,Invoice,BACS,No,13/03/2023 00:00,2023,1,6726,N40292,Fire protection works,1233,Contractor Payments,XXX99,*** UNASSIGNED ***,WCC,CEC Recharges,WC,CEC Recharges,A,Central Services
GUILDFORD BOROUGH COUNCIL,Renovations,1000554,Seville Developments,27/04/2023,30101072,12130.17,0,Contractor Payments,,Invoice,BACS,No,13/03/2023 00:00,2023,1,6727,N40292,Fire protection works,1233,Contractor Payments,XXX99,*** UNASSIGNED ***,WCC,CEC Recharges,WC,CEC Recharges,A,Central Services
GUILDFORD BOROUGH COUNCIL,Renovations,1000554,Seville Developments,27/04/2023,30101073,8347.47,0,Contractor Payments,,Invoice,BACS,No,13/03/2023 00:00,2023,1,6728,N40292,Fire protection works,1233,Contractor Payments,XXX99,*** UNASSIGNED ***,WCC,CEC Recharges,WC,CEC Recharges,A,Central Services
GUILDFORD BOROUGH COUNCIL,Renovations,1000554,Seville Developments,27/04/2023,30101074,20440.13,0,Contractor Payments,,Invoice,BACS,No,13/03/2023 00:00,2023,1,6729,N40292,Fire protection works,1233,Contractor Payments,XXX99,*** UNASSIGNED ***,WCC,CEC Recharges,WC,CEC Recharges,A,Central Services
GUILDFORD BOROUGH COUNCIL,Renovations,1000554,Seville Developments,27/04/2023,30101075,20440.13,0,Contractor Payments,,Invoice,BACS,No,13/03/2023 00:00,2023,1,6730,N40292,Fire protection works,1233,Contractor Payments,XXX99,*** UNASSIGNED ***,WCC,CEC Recharges,WC,CEC Recharges,A,Central Services
GUILDFORD BOROUGH COUNCIL,Renovations,1000554,Seville Developments,27/04/2023,30101076,20440.13,0,Contractor Payments,,Invoice,BACS,No,13/03/2023 00:00,2023,1,6731,N40292,Fire protection works,1233,Contractor Payments,XXX99,*** UNASSIGNED ***,WCC,CEC Recharges,WC,CEC Recharges,A,Central Services
GUILDFORD BOROUGH COUNCIL,Renovations,1000554,Seville Developments,27/04/2023,30101077,20809.74,0,Contractor Payments,,Invoice,BACS,No,13/03/2023 00:00,2023,1,6732,N40292,Fire protection works,1233,Contractor Payments,XXX99,*** UNASSIGNED ***,WCC,CEC Recharges,WC,CEC Recharges,A,Central Services
GUILDFORD BOROUGH COUNCIL,Renovations,1000554,Seville Developments,27/04/2023,30101078,20440.13,0,Contractor Payments,,Invoice,BACS,No,13/03/2023 00:00,2023,1,6733,N40292,Fire protection works,1233,Contractor Payments,XXX99,*** UNASSIGNED ***,WCC,CEC Recharges,WC,CEC Recharges,A,Central Services
GUILDFORD BOROUGH COUNCIL,Renovations,1000554,Seville Developments,27/04/2023,30101079,20754.63,0,Contractor Payments,,Invoice,BACS,No,13/03/2023 00:00,2023,1,6734,N40292,Fire protection works,1233,Contractor Payments,XXX99,*** UNASSIGNED ***,WCC,CEC Recharges,WC,CEC Recharges,A,Central Services
GUILDFORD BOROUGH COUNCIL,Renovations,1000554,Seville Developments,27/04/2023,30101080,20440.09,0,Contractor Payments,,Invoice,BACS,No,13/03/2023 00:00,2023,1,6735,N40292,Fire protection works,1233,Contractor Payments,XXX99,*** UNASSIGNED ***,WCC,CEC Recharges,WC,CEC Recharges,A,Central Services
GUILDFORD BOROUGH COUNCIL,Renovations,1000554,Seville Developments,27/04/2023,30101081,20440.09,0,Contractor Payments,,Invoice,BACS,No,13/03/2023 00:00,2023,1,6736,N40292,Fire protection works,1233,Contractor Payments,XXX99,*** UNASSIGNED ***,WCC,CEC Recharges,WC,CEC Recharges,A,Central Services
GUILDFORD BOROUGH COUNCIL,Renovations,1000554,Seville Developments,27/04/2023,30101082,20440.09,0,Contractor Payments,,Invoice,BACS,No,13/03/2023 00:00,2023,1,6737,N40292,Fire protection works,1233,Contractor Payments,XXX99,*** UNASSIGNED ***,WCC,CEC Recharges,WC,CEC Recharges,A,Central Services
GUILDFORD BOROUGH COUNCIL,Renovations,1000554,Seville Developments,27/04/2023,30101083,20440.09,0,Contractor Payments,,Invoice,BACS,No,13/03/2023 00:00,2023,1,6738,N40292,Fire protection works,1233,Contractor Payments,XXX99,*** UNASSIGNED ***,WCC,CEC Recharges,WC,CEC Recharges,A,Central Services
GUILDFORD BOROUGH COUNCIL,Renovations,1000554,Seville Developments,27/04/2023,30101084,20440.09,0,Contractor Payments,,Invoice,BACS,No,13/03/2023 00:00,2023,1,6739,N40292,Fire protection works,1233,Contractor Payments,XXX99,*** UNASSIGNED ***,WCC,CEC Recharges,WC,CEC Recharges,A,Central Services
GUILDFORD BOROUGH COUNCIL,Renovations,1000554,Seville Developments,27/04/2023,30101085,16192.52,0,Contractor Payments,,Invoice,BACS,No,30/03/2023 00:00,2023,1,6740,N40292,Fire protection works,1233,Contractor Payments,XXX99,*** UNASSIGNED ***,WCC,CEC Recharges,WC,CEC Recharges,A,Central Services
GUILDFORD BOROUGH COUNCIL,Renovations,1000554,Seville Developments,27/04/2023,30101086,20440.09,0,Contractor Payments,,Invoice,BACS,No,13/03/2023 00:00,2023,1,6769,N40292,Fire protection works,1233,Contractor Payments,XXX99,*** UNASSIGNED ***,WCC,CEC Recharges,WC,CEC Recharges,A,Central Services
GUILDFORD BOROUGH COUNCIL,Renovations,1000554,Seville Developments,27/04/2023,30101087,1570.8,0,Contractor Payments,,Invoice,BACS,No,31/03/2023 00:00,2023,1,6958,N40292,Fire protection works,1233,Contractor Payments,XXX99,*** UNASSIGNED ***,WCC,CEC Recharges,WC,CEC Recharges,A,Central Services
GUILDFORD BOROUGH COUNCIL,Renovations,1000554,Seville Developments,27/04/2023,30101088,1570.8,0,Contractor Payments,,Invoice,BACS,No,31/03/2023 00:00,2023,1,6959,N40292,Fire protection works,1233,Contractor Payments,XXX99,*** UNASSIGNED ***,WCC,CEC Recharges,WC,CEC Recharges,A,Central Services
GUILDFORD BOROUGH COUNCIL,Renovations,1000554,Seville Developments,27/04/2023,30101089,1570.8,0,Contractor Payments,,Invoice,BACS,No,31/03/2023 00:00,2023,1,6960,N40292,Fire protection works,1233,Contractor Payments,XXX99,*** UNASSIGNED ***,WCC,CEC Recharges,WC,CEC Recharges,A,Central Services
GUILDFORD BOROUGH COUNCIL,Renovations,1000554,Seville Developments,27/04/2023,30101090,1768.8,0,Contractor Payments,,Invoice,BACS,No,31/03/2023 00:00,2023,1,6961,N40292,Fire protection works,1233,Contractor Payments,XXX99,*** UNASSIGNED ***,WCC,CEC Recharges,WC,CEC Recharges,A,Central Services
GUILDFORD BOROUGH COUNCIL,Renovations,1000554,Seville Developments,27/04/2023,30101091,3328.6,0,Contractor Payments,,Invoice,BACS,No,18/04/2023 00:00,2023,1,7027,N40292,Fire protection works,1233,Contractor Payments,XXX99,*** UNASSIGNED ***,WCC,CEC Recharges,WC,CEC Recharges,A,Central Services
GUILDFORD BOROUGH COUNCIL,Renovations,1000554,Seville Developments,27/04/2023,30101092,1825,0,Contractor Payments,,Invoice,BACS,No,18/04/2023 00:00,2023,1,7029,N40294,Condition Appraisal works 2021/22,1233,Contractor Payments,XXX99,*** UNASSIGNED ***,WCC,CEC Recharges,WC,CEC Recharges,A,Central Services
GUILDFORD BOROUGH COUNCIL,Renovations,1000554,Seville Developments,27/04/2023,30101092,1825,0,Contractor Payments,,Invoice,BACS,No,18/04/2023 00:00,2023,1,7029,N40294,Condition Appraisal works 2021/22,1233,Contractor Payments,XXX99,*** UNASSIGNED ***,WCC,CEC Recharges,WC,CEC Recharges,A,Central Services
GUILDFORD BOROUGH COUNCIL,Renovations,1000554,Seville Developments,27/04/2023,30101092,975,0,Contractor Payments,,Invoice,BACS,No,18/04/2023 00:00,2023,1,7029,N40294,Condition Appraisal works 2021/22,1233,Contractor Payments,XXX99,*** UNASSIGNED ***,WCC,CEC Recharges,WC,CEC Recharges,A,Central Services
GUILDFORD BOROUGH COUNCIL,Renovations,1000554,Seville Developments,27/04/2023,30101092,975,0,Contractor Payments,,Invoice,BACS,No,18/04/2023 00:00,2023,1,7029,N40294,Condition Appraisal works 2021/22,1233,Contractor Payments,XXX99,*** UNASSIGNED ***,WCC,CEC Recharges,WC,CEC Recharges,A,Central Services
GUILDFORD BOROUGH COUNCIL,Renovations,1000554,Seville Developments,27/04/2023,30101092,7995,0,Contractor Payments,,Invoice,BACS,No,18/04/2023 00:00,2023,1,7029,N40294,Condition Appraisal works 2021/22,1233,Contractor Payments,XXX99,*** UNASSIGNED ***,WCC,CEC Recharges,WC,CEC Recharges,A,Central Services
GUILDFORD BOROUGH COUNCIL,Renovations,1000554,Seville Developments,27/04/2023,30101092,7995,0,Contractor Payments,,Invoice,BACS,No,18/04/2023 00:00,2023,1,7029,N40294,Condition Appraisal works 2021/22,1233,Contractor Payments,XXX99,*** UNASSIGNED ***,WCC,CEC Recharges,WC,CEC Recharges,A,Central Services
GUILDFORD BOROUGH COUNCIL,Renovations,1000554,Seville Developments,27/04/2023,30101093,17209.29,0,Contractor Payments,,Invoice,BACS,No,18/04/2023 00:00,2023,1,7030,N40292,Fire protection works,1233,Contractor Payments,XXX99,*** UNASSIGNED ***,WCC,CEC Recharges,WC,CEC Recharges,A,Central Services
GUILDFORD BOROUGH COUNCIL,Renovations,1000554,Seville Developments,27/04/2023,30101093,17209.29,0,Contractor Payments,,Invoice,BACS,No,18/04/2023 00:00,2023,1,7030,N40292,Fire protection works,1233,Contractor Payments,XXX99,*** UNASSIGNED ***,WCC,CEC Recharges,WC,CEC Recharges,A,Central Services
